{"text_format":"1","workbook":"xlsx","n_sheets":5,"sheets":["RawWikipediaList","MountainList","Trial","CenterDistances","ShortList"],"not_rendered":{"charts":0,"images":0,"macros":1,"external_links":0,"defined_names":22,"comments":0,"pivot_tables":0},"unopened":[],"bounds":{"document_bytes":16777216,"sheet_cells":100000,"rows_first":2000,"rows_last":500,"rows_between":2000,"halvings":0,"cell_chars":16384,"cell_head_chars":4096},"cells_cut":0,"cells_raw":0,"read":"whole","date_system":"1900"}

{"sheet":"RawWikipediaList","index":0,"n_rows":1431,"n_cols":6,"rows_kept":1431,"cut":false,"hidden":false,"merged":[]}
["FROM:","Mark Biegert"]
["SUBJECT:","List of Mountain Elevations from the Wikipedia"]
["DATE:","2014-12-17"]
[]
["This page contains the result of my copy and paste from this Wikipedia page."]
["Link"]
[]
[null,"1 8,000 metres"]
[null,"2 7,000 metres"]
[null,"3 6,000 metres"]
[null,"4 5,000 metres"]
[null,"5 4,000 metres"]
[null,"6 3,000 metres"]
[null,"7 2,000 metres"]
[null,"8 1,000 metres"]
[null,"9 Under 1,000 metres"]
[null,"10 See also"]
[]
[null,"8,000 metres[edit]"]
[]
[null,"There are 14 mountains over 8,000 metres (26,247 ft) and are often referred to as the Eight-thousanders. All are located in the two highest mountain ranges in the world, the Himalayas and the Karakoram."]
[]
[null,"Mt. Everest – 8,848 m (29,029 ft)"]
[null,"K2 – 8,611 m (28,251 ft)"]
[null,"Mountain","Metres","Feet","Range","Location and Notes"]
[null,"Mount Everest",8848,29029,"Himalayas  ","Nepal/China (Tibet)"]
[null,"K2",8611,28251,"Karakoram  ","China/Pakistan (Gilgit–Baltistan) – The \"Savage Mountain\"."]
[null,"Kangchenjunga",8586,28169,"Himalayas  ","Nepal/India – Considered to be highest until 1849."]
[null,null,null,null,null,"Highest peak in India."]
[null,"Lhotse",8516,27940,"Himalayas  ","Nepal/China (Tibet) – Climbers ascend Lhotse Face in climbing Everest"]
[null,"Makalu",8462,27762,"Himalayas  ","Nepal/China (Tibet)"]
[null,"Cho Oyu",8201,26906,"Himalayas  ","Nepal/China (Tibet) – Considered \"easiest\" eight-thousander"]
[null,"Dhaulagiri",8167,26795,"Himalayas  ","Nepal – Presumed world's highest from 1808-1838"]
[null,"Manaslu",8156,26759,"Himalayas  ","Nepal"]
[null,"Nanga Parbat",8125,26657,"Himalayas  ","Pakistan"]
[null,"Annapurna",8091,26545,"Himalayas  ","Nepal – First eight-thousander to be climbed (1950)"]
[null,"Gasherbrum I",8068,26470,"Karakoram  ","China/Pakistan – Originally named K5"]
[null,"Broad Peak",8047,26401,"Karakoram  ","China/Pakistan – Originally named K3"]
[null,"Gasherbrum II",8035,26362,"Karakoram  ","China/Pakistan – Originally named K4"]
[null,"Shishapangma",8012,26286,"Himalayas  ","China (Tibet)"]
[]
[null,"7,000 metres[edit]"]
[]
[null,"Left to right: Gasherbrum IV, VII, V, VI"]
[null,"Nanda Devi - 7,816 m (25,643 ft)"]
[null,"Rakaposhi - 7,788 m (25,551 ft)"]
[null,"Annapurna I and South (left)"]
[null,"Muztagh Tower - 7,273 m (23,862 ft)"]
[null,"Baruntse - 7,220 m (23,688 ft)"]
[null,"Pumori - 7,161 m (23,494 ft)"]
[null,"Mountain","Metres","Feet","Range","Location and Notes"]
[null,"Gyachung Kang",7952,26089,"Himalayas  ","Nepal (Khumbu)/China (Tibet)"]
[null,"Gasherbrum III",7946,26070,"Karakoram  ","China/Pakistan"]
[null,"Annapurna II",7937,26040,"Himalayas  ","Nepal"]
[null,"Gasherbrum IV",7932,26024,"Karakoram  ","China/Pakistan"]
[null,"Himalchuli",7893,25896,"Himalayas  ","Manaslu, Nepal"]
[null,"Distaghil Sar",7885,25869,"Karakoram  ","Pakistan"]
[null,"Ngadi Chuli",7871,25823,"Himalayas  ","Manaslu, Nepal"]
[null,"Nuptse",7861,25791,"Himalayas  ","Everest Massif, Nepal"]
[null,"Khunyang Chhish",7852,25761,"Karakoram  ","Pakistan"]
[null,"Masherbrum",7821,25659,"Karakoram  ","Pakistan – Originally named K1"]
[null,"Nanda Devi",7816,25643,"Himalayas  ","India (Uttarakand) – #2 in India"]
[null,"Chomo Lonzo",7804,25604,"Himalayas  ","Makalu Massiff, Nepal/China (Tibet)"]
[null,"Batura Sar",7795,25574,"Karakoram  ","Pakistan"]
[null,"Kanjut Sar",7790,25558,"Karakoram  ","Pakistan"]
[null,"Rakaposhi",7788,25551,"Karakoram  ","Pakistan"]
[null,"Namcha Barwa",7782,25531,"Himalayas  ","China (Tibet)"]
[null,"Batura II",7762,25466,"Karakoram  ","Pakistan"]
[null,"Kamet",7756,25446,"Himalayas  ","India (Uttarakand)"]
[null,"Saltoro Kangri",7742,25400,"Karakoram  ","Kashmir, Pakistan/India"]
[null,"Batura III",7729,25358,"Karakoram  ","Pakistan"]
[null,"Kongur Tagh",7719,25325,"Kunlun Mountains  ","China – Possibly 7649? metres"]
[null,"Jannu",7710,25295,"Himalayas  ","Kangchenjunga, Nepal"]
[null,"Molamenqing",7710,25295,"Himalayas  ","Shishapangma group, China (Tibet)"]
[null,"Gurla Mandhata",7694,25243,"Himalayas (Nalakankar)  ","China (Tibet)"]
[null,"Tirich Mir",7690,25230,"Hindu Kush  ","Pakistan – #1 in Hindu Kush"]
[null,"Saser Kangri",7672,25171,"Karakoram  ","India"]
[null,"Chogolisa",7665,25148,"Karakoram  ","Pakistan"]
[null,"Shispare",7611,24970,"Karakoram  ","Pakistan"]
[null,"Changtse",7583,24879,"Himalayas  ","Everest Massif, China (Tibet)"]
[null,"Trivor",7577,24859,"Karakoram  ","Pakistan"]
[null,"Gangkhar Puensum",7570,24836,"Himalayas  ","Bhutan/China (Tibet)"]
[null,"Gongga Shan",7556,24790,"Daxue Shan  ","Sichuan, China"]
[null,"Annapurna III",7555,24787,"Himalayas  ","Nepal"]
[null,"Kula Kangri",7554,24783,"Himalayas  ","China (Tibet) (possibly also Bhutan)"]
[null,"Chogolisa II",7554,24783,"Karakoram  ","Pakistan"]
[null,"Muztagh Ata",7546,24757,"Kongur Tagh  ","China (Xinjiang)"]
[null,"Skyang Kangri",7545,24754,"Karakoram  ","Pakistan/China"]
[null,"Yukshin Gardan Sar",7530,24705,"Karakoram  ","Pakistan"]
[null,"Annapurna IV",7525,24688,"Himalayas  ","Nepal"]
[null,"Mamostong Kangri",7516,24659,"Karakoram  ","Kashmir, India"]
[null,"Ismoil Somoni Peak",7495,24590,"Pamir Mountains  ","Tajikistan"]
[null,"Noshaq",7492,24580,"Hindu Kush  ","Afghanistan – #1 in Afghanistan"]
[null,"Pumari Chhish",7492,24580,"Karakoram  ","Pakistan"]
[null,"Passu Sar",7476,24528,"Karakoram  ","Pakistan"]
[null,"Malubiting",7458,24469,"Karakoram  ","Pakistan"]
[null,"Gangapurna",7455,24459,"Annapurna Himalaya  ","Nepal"]
[null,"Jengish Chokusu",7439,24406,"Tian Shan  ","China/Kyrgyzstan – #1 in Tian Shan"]
[null,"K12",7428,24370,"Karakoram  ","Pakistan"]
[null,"Istor-o-Nal",7403,24288,"Hindu Kush  ","Pakistan"]
[null,"Ghent Kangri",7401,24281,"Karakoram  ","Pakistan"]
[null,"Haramosh Peak",7397,24268,"Karakoram  ","Pakistan"]
[null,"Kabru",7394,24259,"Himalayas  ","Kanchenjunga, India/Nepal"]
[null,"Ultar",7388,24239,"Karakoram  ","Pakistan"]
[null,"Rimo I",7385,24229,"Karakoram  ","India"]
[null,"Sherpi Kangri",7380,24213,"Karakoram  ","India"]
[null,"Labuche Kang",7367,24170,"Himalayas  ","near Cho Oyu, Nepal/China (Tibet)"]
[null,"Kirat Chuli",7365,24163,"Himalayas  ","Nepal/India border"]
[null,"Skil Brum",7360,24147,"Karakoram  ","Pakistan – May also be given as 7,410 m"]
[null,"Gimmigela Chuli",7350,24114,"Himalayas  ","Nepal/India border"]
[null,"Bojohagur Duanasir",7329,24045,"Karakoram  ","Pakistan"]
[null,"Chamlang",7319,24012,"Himalayas  ","Khumbu, Nepal"]
[null,"Jomolhari / Chomolhari",7314,23996,"Himalayas  ","Bhutan/China (Tibet)"]
[null,"Baltoro Kangri",7312,23990,"Karakoram  ","Pakistan"]
[null,"Siguang Ri",7308,23976,"Himalayas  ","China (Tibet)"]
[null,"The Crown",7295,23934,"Karakoram  ","China (Xinjiang)"]
[null,"Gyala Peri",7294,23930,"Himalayas  ","China (Tibet)"]
[null,"Porong Ri",7292,23924,"Himalayas  ","China (Tibet)"]
[null,"Baintha Brakk",7285,23901,"Karakoram  ","Pakistan"]
[null,"Yutmaru Sar",7283,23894,"Karakoram  ","Pakistan"]
[null,"K6",7282,23891,"Karakoram  ","Pakistan – Also known as Baltistan Peak"]
[null,"Kangpenqing",7281,23888,"Himalayas  ","China (Tibet)"]
[null,"Mana Peak",7272,23858,"Himalayas  ","India (Uttarakand) – SSE of Kamet"]
[null,"Muztagh Tower",7273,23862,"Karakoram  ","Pakistan"]
[null,"Diran",7257,23809,"Karakoram  ","Pakistan"]
[null,"Apsarasas Kangri",7245,23770,"Karakoram  ","China/Pakistan"]
[null,"Langtang Lirung",7227,23711,"Himalayas  ","Nepal"]
[null,"Khartaphu",7213,23665,"Himalayas  ","China (Tibet)"]
[null,"Tongshanjiabu",7207,23645,"Himalayas  ","Bhutan/China"]
[null,"Langtang Ri",7205,23638,"Himalayas  ","Nepal/China (Tibet)"]
[null,"Kangphu Kang",7204,23635,"Himalayas  ","Bhutan/China"]
[null,"Annapurna South",7219,23684,"Himalayas  ","Nepal"]
[null,"Melungtse",7181,23560,"Rolwaling Himalayas  ","China (Tibet)"]
[null,"Liushi Shan",7167,23514,"Kunlun  ","China – #1 in Kunlun"]
[null,"Baruntse",7162,23497,"Himalayas  ","Khumbu, Nepal"]
[null,"Pumori",7161,23494,"Himalayas  ","Khumbu, Nepal"]
[null,"Nemjung",7140,23425,"Himalayas  ","Nepal"]
[null,"Udren Zom",7140,23425,"Hindu Kush  ","Pakistan"]
[null,"Nun Kun",7135,23409,"Karakoram  ","India"]
[null,"Tilicho Peak",7134,23406,"Himalayas  ","Annapurna Himal, Nepal"]
[null,"Gauri Sankar",7134,23406,"Rolwaling Himalayas  ","Nepal/China (Tibet)"]
[null,"Lenin Peak",7134,23406,"Pamir Mountains  ","Tajikistan-Kyrgyzstan – #2 in Pamirs"]
[null,"Api",7132,23399,"Himalayas  ","Nepal"]
[null,"Pauhunri",7128,23386,"Himalayas  ","India/China (Tibet)"]
[null,"Korzhenevskaya",7105,23310,"Pamir Mountains  ","Tajikistan – #3 in Pamirs"]
[null,"Lunpo Gangri",7095,23278,"Himalayas (Gangdise)  ","China (Tibet)"]
[null,"Dunagiri",7066,23182,"Himalayas  ","India (Uttarakand)"]
[null,"Kangto",7060,23163,"Himalayas  ","India/China (Tibet)"]
[null,"Nyegyi Kansang",7047,23120,"Himalayas  ","India/China (Tibet)"]
[null,"Kezhen Peak",7038,23091,"Karakoram  ","China (Xinjiang)"]
[null,"Shah Dhar",7038,23091,"Hindu Kush  ","Afghanistan/Pakistan"]
[null,"Spantik",7027,23054,"Karakoram  ","Pakistan"]
[null,"Khan Tengri",7010,22999,"Tian Shan  ","Kyrgyzstan-Kazakhstan – #2 in Tian Shan"]
[]
[null,"6,000 metres[edit]"]
[]
[null,"Machapuchare - 6,993 m (22,943 ft)"]
[null,"Ama Dablam - 6,812 m (22,349 ft)"]
[null,"Huascarán - 6,768 m (22,205 ft)"]
[null,"Chimborazo - 6,267 m (20,561 ft)"]
[null,"Imja Tse - 6,160 m (20,210 ft)"]
[null,"Mitre Peak - 6,010 m (19,718 ft)"]
[null,"Mountain","Metres","Feet","Location and Notes"]
[null,"Machapuchare",6993,22943,"Annapurna Himalaya, Nepal – Officially unclimbed (attempts not allowed)"]
[null,"Kang Guru",6981,22904,"Manaslu Himalaya, Nepal – 2005 avalanche kills 18"]
[null,"Avicenna Peak",6974,22881,"Pamir Mountains, Tajikistan – #3 in Pamirs"]
[null,"Ulugh Muztagh",6973,22877,"Kunlun Mountains, Tibet – Often misquoted as 7,723 m"]
[null,"Aconcagua",6962,22841,"Andes, Argentina – Highest in both the Western and Southern Hemispheres"]
[null,"Lunkho e Dosare",6901,22641,"Hindu Kush, Afghanistan-Pakistan"]
[null,"Ojos del Salado",6891,22608,"Andes, Argentina-Chile – Highest volcano on Earth"]
[null,"Siniolchu",6888,22598,"Kangchenjunga Himalaya, India"]
[null,"Nanda Kot",6861,22510,"Kumaon Himalayas, India"]
[null,"Angel Sar",6858,22500,"Karakoram, Pakistan"]
[null,"Chongra Peak",6830,22408,"Nanga Parbat Himalaya, Pakistan"]
[null,"Ama Dablam",6812,22349,"Himalayas, Nepal (Khumbu)"]
[null,"Monte Pissis",6795,22293,"Andes, Argentina – Third highest in Western Hemisphere"]
[null,"Biarchedi",6781,22247,"Karakoram, Pakistan"]
[null,"Huascarán Sur",6768,22205,"Andes, Peru – Highest"]
[null,"Nevado Tres Cruces",6749,22142,"Andes, Argentina/Chile"]
[null,"Kawagarbo",6740,22113,"Himalayas, China (Yunnan/Tibet)"]
[null,"Llullaillaco",6739,22110,"Andes, Argentina/Chile"]
[null,"Cho Polu",6735,22096,"Himalayas, Nepal (Khumbu)"]
[null,"Mount Pandim",6691,21952,"Himalayas, India (Sikkim)"]
[null,"Num Ri",6677,21906,"Himalayas, Nepal (Khumbu)"]
[null,"Gul Lasht Zom",6657,21841,"Hindu Kush, Pakistan"]
[null,"Huascarán Norte",6655,21834,"Andes, Peru"]
[null,"Khumbutse",6640,21785,"Himalayas, Nepal (Khumbu)/China (Tibet) – First peak west of Everest"]
[null,"Mount Kailash",6638,21778,"Transhimalaya, western Tibet – Officially unclimbed (attempts not allowed)"]
[null,"Yerupajá",6635,21768,"Andes, Peru"]
[null,"Thamserku",6623,21729,"Himalayas, Nepal (Khumbu)"]
[null,"Incahuasi",6621,21722,"Andes, Argentina/Chile"]
[null,"Manirang",6597,21644,"Himalayas, India (Himachal Pradesh)"]
[null,"Nilkantha",6596,21640,"Himalayas, India (Uttarakhand)"]
[null,"Phuparash Peak",6574,21568,"Karakoram, Pakistan"]
[null,"Sickle Moon Peak",6574,21568,"Himalayas, Kashmir, India"]
[null,"Buni Zom",6551,21493,"Hindu Kush, Pakistan"]
[null,"Nevado Sajama",6542,21463,"Andes, Bolivia – Highest"]
[null,"Singu Chuli",6501,21329,"Annapurna Himalayas, Nepal"]
[null,"Taboche",6501,21329,"Himalayas, Nepal (Khumbu)"]
[null,"Cerro El Muerto",6488,21286,"Andes, Argentina/Chile"]
[null,"Mera Peak",6476,21247,"Himalayas, Nepal (Khumbu)"]
[null,"Illimani",6462,21201,"Andes, Bolivia"]
[null,"Hiunchuli",6441,21132,"Annapurna Himalaya, Nepal"]
[null,"Cholatse",6440,21129,"Himalayas, Nepal (Khumbu)"]
[null,"Ancohuma",6427,21086,"Andes, Bolivia"]
[null,"Coropuna",6425,21079,"Andes, Peru"]
[null,"Antofalla",6409,21027,"Andes, Argentina"]
[null,"Huandoy",6395,20981,"Andes, Peru"]
[null,"Illampu",6368,20892,"Andes, Bolivia"]
[null,"Kusum Kangguru",6367,20889,"Himalayas, Nepal (Khumbu)"]
[null,"Kinnaur Kailash",6349,20830,"Himalayas, Kinnaur, India"]
[null,"Parinaquta",6348,20827,"Andes, Bolivia/Chile"]
[null,"Siula Grande",6344,20814,"Andes, Peru"]
[null,"Bamba Dhura",6334,20781,"Uttarakhand Himalayas, India"]
[null,"Ampato",6288,20630,"Andes, Peru"]
[null,"Amne Machin",6282,20610,"Kunlun Mountains, China (Qinghai)"]
[null,"Pomerape",6282,20610,"Andes, Bolivia/Chile"]
[null,"Salcantay",6271,20574,"Andes, Peru"]
[null,"Chimborazo",6267,20561,"Ecuador – Furthest point from Earth's center"]
[null,"Mount McKinley",6168,20236,"Alaska Range, United States (Alaska) – Highest in North America"]
[null,"Kongde Ri",6187,20299,"Himalayas, Nepal (Khumbu)"]
[null,"Aucanquilcha",6176,20262,"Andes, Chile"]
[null,"Imja Tse",6160,20210,"Himalayas, Nepal (Khumbu)"]
[null,"Stok Kangri",6137,20135,"Stok Range, Himalayas, India"]
[null,"Pisang Peak",6091,19984,"Annapurna Himalaya, Nepal"]
[null,"Huayna Potosí",6088,19974,"Andes, Bolivia"]
[null,"Aracar",6082,19954,"Andes, Argentina"]
[null,"Chachakumani",6074,19928,"Andes, Bolivia"]
[null,"Chachani",6057,19872,"Andes, Peru"]
[null,"Acotango",6052,19856,"Andes, Bolivia/Chile"]
[null,"Socompa",6051,19852,"Andes, Argentina/Chile"]
[null,"Acamarachi",6046,19836,"Andes, Chile"]
[null,"Mitre Peak",6010,19718,"Karakoram, Pakistan"]
[null,"Wallqa Wallqa",6025,19767,"Andes, Peru"]
[null,"Uturunku",6020,19751,"Andes, Bolivia"]
[]
[null,"5,000 metres[edit]"]
[]
[null,"Mount Logan – 5,959 m (19,551 ft)"]
[null,"Alpamayo – 5,947 m (19,511 ft)"]
[null,"Kilimanjaro – 5,895 m (19,341 ft)"]
[null,"Damavand – 5,610 m (18,406 ft)"]
[null,"Shkhara – 5,201 m (17,064 ft)"]
[null,"Mount Kenya – 5,199 m (17,057 ft)"]
[null,"Mountain","Metres","Feet","Range","Location and Notes"]
[null,"Mount Logan",5959,19551,"Saint Elias Mountains  ","Yukon, Canada – Highest in Canada"]
[null,"Alpamayo",5947,19511,"Andes  ","Peru"]
[null,"Cerro Lípez",5929,19452,"Andes  ","Bolivia"]
[null,"Licancabur",5920,19423,"Andes  ","Bolivia/Chile"]
[null,"Cotopaxi",5897,19347,"Andes  ","Ecuador – Second highest in Ecuador"]
[null,"Mount Kilimanjaro",5895,19341,"  ","Tanzania – Highest in Africa"]
[null,"Hkakabo Razi",5881,19295,"Himalayas  ","Myanmar – Highest in Southeast Asia"]
[null,"El Misti",5822,19101,"Andes  ","Peru"]
[null,"Cayambe",5790,18996,"Andes  ","Ecuador – Third highest in Ecuador"]
[null,"Pico Cristóbal Colón",5776,18950,"Sierra Nevada de Santa Marta  ","Colombia – Highest coastal mountain"]
[null,"Antisana",5753,18875,"Andes  ","Ecuador"]
[null,"Nevado Pisco",5752,18871,"Andes  ","Peru"]
[null,"Nevado Anallajsi",5750,18865,"Andes  ","Bolivia"]
[null,"Pokalde",5745,18848,"Khumbu Himalayas  ","Nepal – 7 km SW of Everest"]
[null,"Ubinas",5672,18609,"Andes  ","Peru – Active volcano (2006)"]
[null,"Mount Elbrus",5642,18510,"Caucasus Mountains  ","North Caucasus, Russia – Highest in Caucasus"]
[null,"Mehrbani Peak",5639,18501,"Karakoram  ","Pakistan"]
[null,"Pico de Orizaba",5636,18491,"Trans-Mexican Volcanic Belt  ","Mexico – Highest in Mexico"]
[null,"Mount Damavand",5610,18406,"Alborz  ","Iran – Highest in Iran and ME, highest volcano in Asia"]
[null,"Nevado Mismi",5597,18363,"Andes  ","Peru – Glacial source of the Amazon River"]
[null,"Jade Dragon Snow Mountain",5596,18360,"Hengduan Mountains  ","Yunnan, China"]
[null,"Lascar Volcano",5592,18346,"Andes  ","Chile"]
[null,"Kala Patthar",5545,18192,"Khumbu Himalayas  ","Nepal – Popular trekking peak"]
[null,"Mount Saint Elias",5489,18009,"Saint Elias Mountains  ","Yukon, Canada/Alaska, USA – Second highest in both countries"]
[null,"Concord Peak",5469,17943,"Pamir Mountains  ","Afghanistan–Tajikistan"]
[null,"Machoi Peak",5458,17907,"Himalaya  ","Kashmir"]
[null,"El Plomo",5450,17881,"Andes  ","Chile"]
[null,"Bogda Feng",5445,17864,"Tien Shan  ","Xinjiang, China"]
[null,"Popocatépetl",5426,17802,"Trans-Mexican Volcanic Belt  ","Mexico – Second highest in Mexico"]
[null,"Kolahoi Peak",5425,17799,"Himalaya  ","Highest in Kashmir Valley"]
[null,"Chacaltaya",5421,17785,"Andes  ","Bolivia"]
[null,"Haba Xueshan",5396,17703,"Himalaya  ","Yunnan, China"]
[null,"Nevado del Ruiz",5389,17680,"Andes  ","Colombia – 23,000 people died in 1985 eruption"]
[null,"El Altar",5320,17454,"Andes  ","Ecuador"]
[null,"Mount Foraker",5304,17402,"Alaska Range  ","Alaska, USA"]
[null,"Mount Haramukh",5300,17388,"Himalaya  ","Kashmir valley"]
[null,"Maipo",5264,17270,"Andes  ","Argentina/Chile"]
[null,"Illiniza",5248,17218,"Andes  ","Ecuador"]
[null,"Sirbal Peak",5236,17178,"Himalaya  ","Kashmir Valley, India"]
[null,"Sangay",5230,17159,"Andes  ","Ecuador"]
[null,"Iztaccíhuatl",5230,17159,"Trans-Mexican Volcanic Belt  ","Mexico – Third highest in Mexico"]
[null,"Mount Lucania",5226,17146,"Saint Elias Mountains  ","Yukon, Canada – Third highest in Canada"]
[null,"Dykh-Tau",5205,17077,"Caucasus Mountains  ","North Caucasus, Russia – Second highest in the Caucasus"]
[null,"Shkhara",5201,17064,"Caucasus Mountains  ","Georgia – Highest in Georgia"]
[null,"Mount Kenya",5199,17057,"  ","Kenya – Highest in Kenya"]
[null,"Malika Parbat",5190,17028,"Himalaya  ","Kaghan Valley, Pakistan|Highest in Kaghan Valley of Pakistan"]
[null,"Amarnath Peak",5186,17014,"Himalaya  ","Kashmir Valley, India"]
[null,"King Peak",5173,16972,"Saint Elias Mountains  ","Yukon, Canada – Fourth highest in Canada"]
[null,"Boris Yeltsin Peak",5168,16955,"Teskey Ala-Too  ","Kyrgyzstan"]
[null,"Koshtan-Tau",5150,16896,"Caucasus Mountains  ","North Caucasus, Russia"]
[null,"Mount Ararat",5137,16854,"  ","Turkey – Highest in Turkey"]
[null,"Mount Stanley",5109,16762,"Ruwenzori Mountains  ","Congo/Uganda – Third highest in Africa"]
[null,"Mount Steele",5073,16644,"Saint Elias Mountains  ","Yukon, Canada – Fifth highest in Canada"]
[null,"Janga",5051,16572,"Caucasus Mountains  ","Georgia / North Caucasus, Russia – Second highest in Georgia"]
[null,"Mount Kazbek",5047,16558,"Caucasus Mountains  ","Georgia – Third highest in the country"]
[null,"Tungurahua",5023,16480,"Andes  ","Ecuador – Active volcano"]
[null,"Carihuairazo",5018,16463,"Andes  ","Ecuador"]
[null,"Mount Bona",5005,16421,"Saint Elias Mountains  ","Alaska, USA – Also given as 5,030 m or 5,045m"]
[]
[null,"4,000 metres[edit]"]
[]
[null,"Mt. Blackburn – 4,996 m (16,391 ft)"]
[null,"Pico Bolívar – 4,981 m (16,342 ft)"]
[null,"Tetnuldi – 4,858 m (15,938 ft)"]
[null,"Alam Kuh – 4,850 m (15,912 ft)"]
[null,"Mont Blanc – 4,810 m (15,781 ft)"]
[null,"Monte Rosa – 4,634 m (15,203 ft)"]
[null,"Mount Wilhelm – 4,509 m (14,793 ft)"]
[null,"Matterhorn – 4,478 m (14,692 ft)"]
[null,"Mt. Shasta – 4,322 m (14,180 ft)"]
[null,"Finsteraarhorn – 4,274 m (14,022 ft)"]
[null,"Grand Teton – 4,197 m (13,770 ft)"]
[null,"Breithorn – 4,164 m (13,661 ft)"]
[null,"Mount Kinabalu – 4,095 m (13,435 ft)"]
[null,"Mountain","Metres","Feet","Location and Notes"]
[null,"Mount Blackburn",4996,16391,"Wrangell Mtns., Alaska, USA (also given 5036 m)"]
[null,"Pico Bolívar",4981,16342,"Sierra Nevada de Mérida, Andes, Venezuela – Highest in Venezuela"]
[null,"Pik Talgar",4979,16335,"Tian Shan, Kazakhstan – Highest in northern Tian Shan"]
[null,"Mount Sanford",4949,16237,"Wrangell Mtns., Alaska, USA"]
[null,"Pico Humboldt",4940,16207,"Sierra Nevada de Mérida, Andes, Venezuela"]
[null,"Vinson Massif",4892,16050,"Sentinel Range, Ellsworth Mountains, Antarctica – Highest in Antarctica"]
[null,"Pico Bonpland",4890,16043,"Sierra Nevada de Mérida, Andes, Venezuela"]
[null,"Puncak Jaya",4884,16024,"Sudirman Range, Papua, Indonesia – Highest in Indonesia"]
[null,"Pico La Concha",4870,15978,"Sierra Nevada de Mérida, Andes, Venezuela"]
[null,"Gistola",4860,15945,"Caucasus Mountains, Svaneti, Georgia"]
[null,"Shota Rustaveli Peak",4860,15945,"Caucasus Mountains, Svaneti, Georgia/North Caucasus, Russia"]
[null,"Tetnuldi",4858,15938,"Caucasus Mountains, Svaneti, Georgia"]
[null,"Mount Tyree",4852,15919,"Sentinel Range, Ellsworth Mountains, Antarctica – Second Highest in Antarctica"]
[null,"Huaynaputina",4850,15912,"Andes, Peru"]
[null,"Alam Kuh",4850,15912,"Alborz, Iran – Second highest in Iran"]
[null,"Mount Wood",4842,15886,"Saint Elias Mountains, Yukon, Canada"]
[null,"Mount Vancouver",4812,15787,"Saint Elias Mountains, Yukon, Canada"]
[null,"Sabalan",4811,15784,"Iran"]
[null,"Mont Blanc",4810,15781,"Mont Blanc massif, France/Italy – Highest in Alps"]
[null,"Corazón",4790,15715,"Andes, Ecuador"]
[null,"Pichincha",4784,15696,"Andes, Ecuador"]
[null,"Jimara",4780,15682,"Khokh Range, Caucasus Mountains, Georgia"]
[null,"Mount Churchill",4766,15636,"Saint Elias Mountains, Alaska, USA"]
[null,"Puncak Mandala",4760,15617,"Papua, Indonesia"]
[null,"Klyuchevskaya Sopka",4750,15584,"Kamchatka, Russia"]
[null,"Puncak Trikora",4750,15584,"Papua, Indonesia"]
[null,"Mont Blanc de Courmayeur",4748,15577,"Mont Blanc massif, France/Italy"]
[null,"Sunset Peak",4745,15568,"Himalaya, Kashmir Valley"]
[null,"Mount Slaggard",4742,15558,"Saint Elias Mountains, Canada"]
[null,"Pico Piedras Blancas",4740,15551,"Sierra de la Culata, Andes, Venezuela"]
[null,"Pico El Toro",4730,15518,"Andes, Venezuela"]
[null,"Tatakooti Peak",4725,15502,"Himalaya, Kashmir Valley"]
[null,"Rumiñahui",4721,15489,"Andes, Ecuador"]
[null,"Pico El Leon",4720,15486,"Andes, Venezuela"]
[null,"Ushba",4710,15453,"Caucasus Mountains, Svaneti, Georgia"]
[null,"Volcán Domuyo",4709,15449,"Andes, Argentina"]
[null,"Pico Los Nevados",4700,15420,"Andes, Venezuela"]
[null,"Pico Pan de Azucar",4680,15354,"Sierra de la Culata, Andes, Venezuela"]
[null,"Naltar Peak",4678,15348,"Pakistan"]
[null,"Mount Fairweather",4663,15299,"Fairweather Range, Alaska, USA"]
[null,"Pico Mucuñuque",4660,15289,"Andes, Venezuela"]
[null,"Pico El Buitre",4650,15256,"Andes, Venezuela"]
[null,"Sierra Negra",4640,15223,"Mexico"]
[null,"Monte Rosa",4634,15203,"Switzerland – Highest point in Switzerland"]
[null,"Nordend",4609,15121,"Pennine Alps, Switzerland-Italy"]
[null,"Mount Hubbard",4577,15016,"Saint Elias Mountains"]
[null,"Nevado de Toluca",4577,15016,"Mexico"]
[null,"Mount Meru",4566,14980,"Tanzania"]
[null,"Zumsteinspitze",4563,14970,"Pennine Alps, Switzerland-Italy"]
[null,"Dom",4545,14911,"Pennine Alps, Switzerland"]
[null,"Ras Dashen",4533,14872,"Ethiopia – Highest point in Ethiopia"]
[null,"Signalkuppe",4527,14852,"Pennine Alps, Switzerland-Italy"]
[null,"Lyskamm",4527,14852,"Pennine Alps, Switzerland-Italy"]
[null,"Mount Bear",4521,14833,"Saint Elias Mountains, Alaska, USA"]
[null,"Mount Wilhelm",4509,14793,"Papua, New Guinea"]
[null,"Mount Karisimbi",4507,14787,"Virunga Mountains, Rwanda/DRC"]
[null,"Mount Walsh",4507,14787,"Saint Elias Mountains, Canada"]
[null,"Belukha Mountain",4506,14783,"Altay Mountains, Russia"]
[null,"Weisshorn",4506,14783,"Pennine Alps, Switzerland"]
[null,"Tebulosmta",4493,14741,"Caucasus Mountains, Georgia/Chechnya, Russia"]
[null,"Täschhorn",4491,14734,"Pennine Alps, Switzerland"]
[null,"Bazarduzu Dagi",4485,14715,"Azerbaijan"]
[null,"Matterhorn",4478,14692,"Pennine Alps, Switzerland/Italy"]
[null,"Mount Rutford",4477,14688,"Sentinel Range, Ellsworth Mountains, Antarctica"]
[null,"Mont Maudit",4465,14649,"Mont Blanc massif, France/Italy"]
[null,"Babis Mta",4454,14613,"Caucasus Mountains, Georgia/Russia"]
[null,"Mount Shani",4451,14603,"Caucasus Mountains, Georgia/Russia"]
[null,"Dena",4448,14593,"Zagros Mountains Iran"]
[null,"Vladimir Putin Peak",4446,14587,"Kyrgyz Alatau, Kyrgyzstan"]
[null,"Mount Hunter",4442,14573,"Alaska Range, Alaska, USA"]
[null,"Mount Whitney",4421,14505,"Sierra Nevada, California, USA"]
[null,"Mount Alverstone",4420,14501,"Saint Elias Mountains, Alaska, USA/Yukon, Canada"]
[null,"University Peak",4411,14472,"Saint Elias Mountains, Alaska, USA"]
[null,"Aello Peak",4403,14446,"Saint Elias Mountains, Alaska, USA"]
[null,"Mount Elbert",4402,14442,"Sawatch Range, Colorado, USA"]
[null,"Mount Massive",4395,14419,"Sawatch Range, Colorado, USA"]
[null,"Mount Harvard",4395,14419,"Sawatch Range, Colorado, USA"]
[null,"Mount Rainier",4392,14409,"Cascades, Washington, USA"]
[null,"Kholeno",4387,14393,"Alborz, Iran"]
[null,"Mount Williamson",4382,14377,"Sierra Nevada, California, USA"]
[null,"Tavan Bogd Uul",4374,14350,"Bayan-Ölgii Province, Mongolia"]
[null,"Blanca Peak",4374,14350,"Rocky Mountains, Colorado, USA"]
[null,"La Plata Peak",4370,14337,"Sawatch Range, Colorado, USA"]
[null,"Mount Giluwe",4368,14331,"Papua New Guinea"]
[null,"Burchula",4364,14318,"Caucasus Mountains, Georgia"]
[null,"Uncompahgre Peak",4361,14308,"San Juan Mountains, Colorado, USA"]
[null,"Dent Blanche",4357,14295,"Pennine Alps, Switzerland"]
[null,"Crestone Peak",4357,14295,"Sangre de Cristo Range, Colorado, USA"]
[null,"Mount Lincoln",4354,14285,"Mosquito Range, Colorado, USA"]
[null,"Azad Kuh",4355,14288,"Alborz, Iran"]
[null,"Grays Peak",4350,14272,"Front Range, Colorado, USA"]
[null,"Mount Evans",4350,14272,"Front Range, Colorado, USA"]
[null,"Quandary Peak",4350,14272,"Tenmile Range, Colorado, USA"]
[null,"Lalveri",4350,14272,"Caucasus Mountains, Svaneti, Georgia"]
[null,"Mount Antero",4349,14268,"Sawatch Range, Colorado, USA"]
[null,"Torreys Peak",4349,14268,"Front Range, Colorado, USA"]
[null,"Castle Peak",4348,14265,"Elk Mountains, Colorado, USA"]
[null,"Longs Peak",4345,14255,"Front Range, Colorado, USA"]
[null,"McArthur Peak",4344,14252,"Saint Elias Mountains, Yukon"]
[null,"Mount Wilsion",4342,14245,"San Juan Mountains, Colorado, USA"]
[null,"White Mountain Peak",4342,14245,"White Mountains, California, USA"]
[null,"North Palisade",4341,14242,"Sierra Nevada, California, USA"]
[null,"Mount Shavano",4337,14229,"Sawatch Range, Colorado, USA"]
[null,"Colima",4330,14206,"Mexico"]
[null,"Crestone Needle",4327,14196,"Sangre de Cristo Range, Colorado, USA"]
[null,"Mount Belford",4327,14196,"Sawatch Range, Colorado, USA"]
[null,"Mount Princeton",4327,14196,"Sawatch Range, Colorado, USA"]
[null,"Mount Shasta",4322,14180,"California, USA"]
[null,"Mount Elgon",4321,14177,"Uganda-Kenya"]
[null,"Mount Bross",4320,14173,"Mosquito Range, Colorado, USA"]
[null,"Kit Carson Mountain",4318,14167,"Sangre de Cristo Range, Colorado, USA"]
[null,"Mount Wrangell",4317,14163,"Alaska, USA"]
[null,"Maroon Peak",4315,14157,"Elk Mountains, Colorado, USA"]
[null,"Tabeguache Peak",4315,14157,"Sawatch Range, Colorado, USA"]
[null,"El Diente Peak",4315,14157,"San Juan Mountains, Colorado, USA"]
[null,"Mount Sill",4314,14154,"Sierra Nevada, California, USA"]
[null,"Grand Combin",4313,14150,"Pennine Alps, Switzerland"]
[null,"Mount Oxford (Colorado)",4313,14150,"Sawatch Range, Colorado, USA"]
[null,"Mount Sneffels",4312,14147,"San Juan Mountains, Colorado, USA"]
[null,"Mount Democrat",4312,14147,"Mosquito Range, Colorado, USA"]
[null,"Capitol Peak",4307,14131,"Elk Mountains, Colorado, USA"]
[null,"Pikes Peak",4302,14114,"Colorado, USA"]
[null,"Snowmass Mountain",4295,14091,"Elk Mountains, Colorado, USA"]
[null,"Lenzspitze",4294,14088,"Pennine Alps, Switzerland"]
[null,"Mount Russell",4296,14094,"Sierra Nevada, California, USA"]
[null,"Mount Eolus",4292,14081,"San Juan Mountains, Colorado, USA"]
[null,"Windom Peak",4292,14081,"San Juan Mountains, Colorado, USA"]
[null,"Challenger Point",4292,14081,"Sangre de Cristo Range, Colorado, USA"]
[null,"Mount Columbia",4291,14078,"Sawatch Range, Colorado, USA"]
[null,"Mount Adishi",4290,14075,"Caucasus Mountains, Svaneti, Georgia"]
[null,"Mount Augusta",4290,14075,"Saint Elias Mountains, Alaska, USA"]
[null,"Humboldt Peak (Colorado)",4287,14065,"Sangre de Cristo Range, Colorado, USA"]
[null,"Split Mountain",4287,14065,"Sierra Nevada, California, USA"]
[null,"Mount Bierstadt",4286,14062,"Front Range, Colorado, USA"]
[null,"Diklosmta",4285,14058,"Caucasus Mountains, Tusheti, Georgia"]
[null,"Sunlight Peak",4285,14058,"San Juan Mountains, Colorado, USA"]
[null,"Missouri Mountain",4282,14049,"Sawatch Range, Colorado, USA"]
[null,"Culebra Peak",4282,14049,"Colorado, USA"]
[null,"Handies Peak",4281,14045,"San Juan Mountains, Colorado, USA"]
[null,"Ellingwood Point",4280,14042,"Sangre de Cristo Range, Colorado, USA"]
[null,"Mount Lindsey",4280,14042,"Sangre de Cristo Range, Colorado, USA"]
[null,"Little Bear Peak",4279,14039,"Sangre de Cristo Range, Colorado, USA"]
[null,"Mount Sherman",4278,14035,"Mosquito Range, Colorado, USA"]
[null,"Redcloud Peak",4277,14032,"San Juan Mountains, Colorado, USA"]
[null,"Galeras",4276,14029,"Andes, Columbia"]
[null,"Mount Langley",4275,14026,"Sierra Nevada, California, USA"]
[null,"Finsteraarhorn",4274,14022,"Bernese Alps, Switzerland"]
[null,"Pyramid Peak",4273,14019,"Elk Mountains, Colorado, USA"]
[null,"Mount Tyndall",4273,14019,"Sierra Nevada, California, USA"]
[null,"Wilson Peak",4272,14016,"San Juan Mountains, Colorado, USA"]
[null,"Mount Muir",4272,14016,"Sierra Nevada, California, USA"]
[null,"San Luis Peak",4271,14012,"San Juan Mountains, Colorado, USA"]
[null,"Wetterhorn Peak",4271,14012,"San Juan Mountains, Colorado, USA"]
[null,"Middle Palisade",4271,14012,"Sierra Nevada, California, USA"]
[null,"Huron Peak",4269,14006,"Sawatch Range, Colorado, USA"]
[null,"Mount of the Holy Cross",4269,14006,"Sawatch Range, Colorado, USA"]
[null,"Thunderbolt Peak",4268,14003,"Sierra Nevada, California, USA"]
[null,"Sunshine Peak",4268,14003,"San Juan Mountains, Colorado, USA"]
[null,"Mount Strickland",4260,13976,"Saint Elias Mountains, Yukon, Canada"]
[null,"Pigeon Peak",4259,13973,"San Juan Mountains, Colorado, USA"]
[null,"Mount Kennedy",4250,13944,"Saint Elias Mountains, Yukon, Canada"]
[null,"Pointe Bayeux",4258,13970,"Graian Alps, Mont Blanc massif, France"]
[null,"Mont Blanc du Tacul",4248,13937,"Graian Alps, Mont Blanc massif, France"]
[null,"Stecknadelhorn",4241,13914,"Pennine Alps, Switzerland"]
[null,"Avalanche Peak",4228,13871,"Saint Elias Mountains, Yukon, Canada"]
[null,"Zinalrothorn",4221,13848,"Pennine Alps, Switzerland"]
[null,"Volcán Tajumulco",4220,13845,"Guatemala"]
[null,"Hohberghorn",4219,13842,"Pennine Alps, Switzerland"]
[null,"Turret Peak",4217,13835,"Needle Mountains, Colorado, USA"]
[null,"Mount Darwin",4216,13832,"Sierra Nevada, California, USA"]
[null,"Mount Hayes",4216,13832,"Alaska, USA"]
[null,"Sacabaya",4215,13829,"Bolivia"]
[null,"Grandes Jorasses",4208,13806,"Mont Blanc massif, France/Italy"]
[null,"Gannett Peak",4208,13806,"Wind River Range, Wyoming, USA"]
[null,"Mauna Kea",4207,13802,"Hawaii, USA"]
[null,"Alphubel",4206,13799,"Pennine Alps, Switzerland"]
[null,"Mauna Kea",4205,13796,"Hawaii, USA (highest mountain base to summit)"]
[null,"Cofre de Perote",4201,13783,"Mexico"]
[null,"Zard-Kuh",4200,13780,"Zagros Mountains Iran"]
[null,"Shah Alborz",4200,13780,"Alborz, Iran"]
[null,"Rimpfischhorn",4199,13776,"Pennine Alps, Switzerland"]
[null,"Grand Teton",4199,13776,"Teton Range, Wyoming, USA"]
[null,"Mount Cook",4196,13766,"Saint Elias Mountains, Canada/USA"]
[null,"Aletschhorn",4192,13753,"Bernese Alps, Switzerland"]
[null,"Strahlhorn",4190,13747,"Pennine Alps, Switzerland"]
[null,"Fremont Peak",4189,13743,"Wind River Range, Wyoming, USA"]
[null,"Mount Warren",4182,13720,"Wind River Range, Wyoming, USA"]
[null,"Mount Sidley",4181,13717,"Antarctica"]
[null,"Dent d'Hérens",4171,13684,"Pennine Alps, Switzerland"]
[null,"Mauna Loa",4171,13684,"Hawaii, USA"]
[null,"Jbel Toubkal",4167,13671,"Atlas Mountains, Morocco"]
[null,"Mount Minto",4165,13665,"Antarctica"]
[null,"Breithorn",4165,13665,"Pennine Alps, Switzerland/Italy"]
[null,"Jungfrau",4158,13642,"Bernese Alps, Switzerland"]
[null,"Bishorn",4153,13625,"Pennine Alps, Switzerland"]
[null,"Mount Helen",4151,13619,"Wind River Range, Wyoming, USA"]
[null,"El Mela",4150,13615,"Andes, Argentina"]
[null,"Mount Quincy Adams",4150,13615,"Fairweather Range, Canada/USA"]
[null,"Doublet Peak",4145,13599,"Wind River Range, Wyoming, USA"]
[null,"Turret Peak",4145,13599,"Wind River Range, Wyoming, USA"]
[null,"Mount Parnassus (Colorado)",4137,13573,"Front Range, Rocky Mountains, Colorado, USA"]
[null,"Uludoruk (Reşko / Gelyaşin)",4137,13573,"Cilo Daglari Hakkari, Turkey"]
[null,"Mount Sacagawea",4136,13570,"Wind River Range, Wyoming, USA"]
[null,"Mount Dubois",4135,13566,"White Mountains, California, USA"]
[null,"Kings Peak",4125,13533,"Uinta Range, Utah, USA"]
[null,"Aiguille Verte",4122,13524,"Mont Blanc massif, France"]
[null,"Mount Bangeta",4121,13520,"Papua New Guinea"]
[null,"Mount Dickerson",4120,13517,"Queen Alexandra Range, Antarctica"]
[null,"Jackson Peak",4120,13517,"Wind River Range, Wyoming, USA"]
[null,"Mount Woodrow Wilson",4115,13501,"Wind River Range, Wyoming, USA"]
[null,"Aiguilles du Diable",4014,13169,"Graian Alps, Mont Blanc massif, France"]
[null,"Bastion Peak",4113,13494,"Wind River Range, Wyoming"]
[null,"Aiguille Blanche de Peuterey",4112,13491,"Mont Blanc massif, Italy"]
[null,"Mönch",4107,13474,"Bernese Alps, Switzerland"]
[null,"Mount Febbas",4105,13468,"Wind River Range, Wyoming, USA"]
[null,"Barre des Écrins",4102,13458,"Dauphiné Alps, France"]
[null,"Mount Aragats",4095,13435,"Armenia"]
[null,"Mount Cameroon",4095,13435,"Cameroon"]
[null,"Mount Kinabalu",4095,13435,"Sabah, Malaysia – Highest in Malaysia"]
[null,"Grizzly Peak D",4093,13428,"Front Range, Rocky Mountains, Colorado, USA"]
[null,"Pollux",4092,13425,"Pennine Alps, Switzerland"]
[null,"Kīlauea",4091,13422,"Hawaii, USA"]
[null,"Mount Wade",4085,13402,"Prince Olav Mountains, Antarctica"]
[null,"Mount Victoria",4072,13360,"Papua New Guinea"]
[null,"Centennial Peak",4070,13353,"Prince Olav Mountains, Antarctica"]
[null,"Gran Paradiso",4061,13323,"Graian Alps, Italy"]
[null,"Ober Gabelhorn",4053,13297,"Pennine Alps, Switzerland"]
[null,"Piz Bernina",4049,13284,"Bernina Alps, Switzerland"]
[null,"Fiescherhorn",4049,13284,"Bernese Alps, Switzerland"]
[null,"Grünhorn",4043,13264,"Bernese Alps, Switzerland"]
[null,"Lauteraarhorn",4042,13261,"Bernese Alps, Switzerland"]
[null,"Aiguille du Géant",4035,13238,"Graian Alps, Mont Blanc massif, France"]
[null,"Mount Sniktau",4034,13235,"Front Range, Rocky Mountains, Colorado, USA"]
[null,"Allalinhorn",4027,13212,"Pennine Alps, Switzerland"]
[null,"Wind River Peak",4021,13192,"Wind River Range, Wyoming, USA"]
[null,"Latsga",4019,13186,"Caucasus Mountains, Svaneti, Georgia"]
[null,"Weissmies",4017,13179,"Pennine Alps, Switzerland"]
[null,"Mount Waddington",4016,13176,"British Columbia, Canada"]
[null,"Mount Marcus Baker",4016,13176,"Chugach Range, Alaska, USA"]
[null,"Dôme de neige des Écrins",4015,13173,"Dauphiné Alps, France"]
[null,"Conejos Peak",4015,13173,"San Juan Mountains, Colorado, USA"]
[null,"Dent du Géant",4013,13166,"Mont Blanc massif, France/Italy"]
[null,"Red Slate Mountain",4013,13166,"Sierra Nevada, California, USA"]
[null,"Cloud Peak",4013,13166,"Big Horn Mountains, Wyoming, USA"]
[null,"Wheeler Peak",4012,13163,"Sangre de Cristo Mountains, New Mexico, USA"]
[null,"Lagginhorn",4010,13156,"Pennine Alps, Switzerland"]
[null,"Twilight Peak",4010,13156,"San Juan Mountains, Colorado, USA"]
[null,"Francs Peak",4009,13153,"Absaroka Range, Wyoming, USA"]
[null,"Mount Walter",4005,13140,"New Mexico, USA"]
[null,"Les Droites",4000,13123,"Mont Blanc massif, France"]
[]
[null,"3,000 metres[edit]"]
[]
[null,"Piz Zupò – 3,995 m (13,107 ft)"]
[null,"Mt. Robson – 3,954 m (12,972 ft)"]
[null,"Mt. Sahand – 3,707 m (12,162 ft)"]
[null,"Mt. Fuji – 3,776 m (12,388 ft)"]
[null,"Mountain","Metres","Feet","Location and Notes"]
[null,"Piz Zupò",3995,13107,"Bernina Range, Switzerland"]
[null,"Truchas Peak",3994,13104,"Sangre de Cristo Mountains, New Mexico"]
[null,"Fletschhorn",3993,13100,"Pennine Alps, Switzerland"]
[null,"Mount Albert Edward",3990,13091,"Papua New Guinea"]
[null,"La Meije",3987,13081,"Dauphiné Alps, France"]
[null,"Wheeler Peak",3982,13064,"Snake Range, Nevada"]
[null,"Mount Dana",3981,13061,"California"]
[null,"Acatenango",3976,13045,"Guatemala"]
[null,"Piz Roseg",3973,13035,"Bernina Range, Switzerland"]
[null,"Piz Scerscen",3971,13028,"Bernina Range, Switzerland"]
[null,"Eiger",3970,13025,"Bernese Oberland, Switzerland"]
[null,"Mount Tochal",3964,13005,"Alborz, Iran"]
[null,"Black Tooth Mountain",3964,13005,"Bighorn Mountains, Wyoming"]
[null,"Grand Cornier",3962,12999,"Pennine Alps, Switzerland"]
[null,"Mount Owen",3957,12982,"Teton Range, Wyoming"]
[null,"Ailefroide",3954,12972,"Dauphiné Alps, France"]
[null,"Mount Robson",3954,12972,"Highest point in the Canadian Rockies"]
[null,"Descabezado Grande",3953,12969,"Chile"]
[null,"Yu Shan (Mount Jade)",3952,12966,"Highest point in Taiwan"]
[null,"Mont Pelvoux",3946,12946,"Dauphiné Alps, France"]
[null,"Mount Julian",3940,12927,"Colorado, USA"]
[null,"Mount Erciyes",3916,12848,"Central Anatolia, Turkey"]
[null,"Bomber Mountain",3914,12841,"Bighorn Range, Wyoming, USA"]
[null,"Pic Sans Nom",3919,12858,"Dauphiné Alps, France"]
[null,"Jicarita Peak",3912,12835,"Sangre de Cristo Mountains, New Mexico"]
[null,"Ortler",3905,12812,"Italy South Tyrol"]
[null,"Piz Palü",3905,12812,"Bernina Range, Switzerland"]
[null,"Middle Teton",3903,12805,"Teton Range, Wyoming"]
[null,"Aiguille d'Argentière",3902,12802,"Mont Blanc massif, France/Switzerland"]
[null,"Granite Peak",3901,12799,"Montana, USA – Highest point"]
[null,"Mount Gibbs",3893,12772,"Sierra Nevada, California, USA"]
[null,"Mount Crillon",3879,12726,"Fairweather Range, Alaska, USA"]
[null,"Mont Blanc de Cheilon",3870,12697,"Pennine Alps, Switzerland"]
[null,"Aiguille du Goûter",3863,12674,"Graian Alps, Mont Blanc massif, France"]
[null,"Borah Peak",3861,12667,"Idaho, USA – Highest point"]
[null,"Grande Casse",3855,12648,"Vanoise Massif, France"]
[null,"Humphreys Peak",3852,12638,"Arizona, USA – Highest point"]
[null,"Santa Fe Baldy",3847,12621,"Sangre de Cristo Mountains, New Mexico"]
[null,"Mount Baldwin",3845,12615,"Sierra Nevada, California, USA"]
[null,"Aiguille du Midi",3842,12605,"Graian Alps, Mont Blanc Massif, France"]
[null,"Mount Moran",3842,12605,"Wyoming, USA"]
[null,"Monte Viso",3841,12602,"Italian Alps"]
[null,"Nesthorn",3822,12539,"Bernese Alps, Switzerland"]
[null,"Cerro Chirripó",3820,12533,"Highest in Costa Rica"]
[null,"Aiguille des Glaciers",3816,12520,"Mont Blanc massif, France/Italy"]
[null,"South Teton",3814,12513,"Teton Range, Wyoming"]
[null,"La Râteau",3809,12497,"Dauphiné Alps, France"]
[null,"Mount Kerinci",3800,12467,"Highest volcano in Indonesia"]
[null,"Großglockner",3798,12461,"Austria – Highest point"]
[null,"Pigne d'Arolla",3796,12454,"Pennine Alps, Switzerland"]
[null,"Mount Erebus",3794,12448,"Antarctica – Southernmost active volcano"]
[null,"Mont Pourri",3779,12398,"Vanoise Massif, France"]
[null,"Mount Fuji",3776,12388,"Japan – Highest in Japan"]
[null,"Wildspitze",3774,12382,"Austria"]
[null,"Greenhorn Mountain",3763,12346,"Wet Mountains, Colorado, USA"]
[null,"Volcán de Fuego",3763,12346,"Guatemala"]
[null,"Teewinot Mountain",3757,12326,"Teton Range, Wyoming, USA"]
[null,"Aiguille du Dru",3754,12316,"Graian Alps, France"]
[null,"Aoraki/Mount Cook",3754,12316,"New Zealand – Highest point"]
[null,"Pointe de Charbonnel",3752,12310,"Vanoise Massif, France"]
[null,"Piz Morteratsch",3751,12306,"Bernina Range, Switzerland"]
[null,"Mount Davis",3750,12303,"California, USA"]
[null,"Mount Morrison",3750,12303,"California, USA"]
[null,"Aiguille de la Grande Sassière",3747,12293,"Graian Alps, France"]
[null,"Lanín",3747,12293,"Chile/Argentina"]
[null,"Mount Columbia",3747,12293,"Canadian Rockies – Highest in Alberta"]
[null,"Mount Adams",3743,12280,"Washington, USA"]
[null,"Teepe Pillar",3739,12267,"Teton Range, Wyoming, USA"]
[null,"Weißkugel",3739,12267,"Alps, Austria/Italy"]
[null,"Minarets",3735,12254,"Sierra Nevada, California"]
[null,"Mount Huntington",3731,12241,"Alaska Range, Alaska, USA"]
[null,"Mount Rinjani",3726,12224,"Indonesia"]
[null,"Cerro del Potosí",3721,12208,"Mexico"]
[null,"Teide",3718,12198,"Canary Islands"]
[null,"Asperity Mountain",3716,12192,"Waddington Range"]
[null,"Sahand",3707,12162,"East Azerbaijan, Iran"]
[null,"Monte San Lorenzo",3706,12159,"Patagonia, Argentina-Chile"]
[null,"Wetterhorn",3701,12142,"Bernese Alps, Switzerland"]
[null,"Dent Parrachée",3697,12129,"Vanoise massif, France"]
[null,"Gunnbjørn",3694,12119,"highest in Greenland"]
[null,"North Twin Peak",3684,12087,"Canadian Rockies"]
[null,"Monte Disgrazia",3678,12067,"Bregaglia, Switzerland"]
[null,"Semeru",3676,12060,"Java, Indonesia"]
[null,"Les Bans",3669,12037,"Ecrins, France"]
[null,"Cloudveil Dome",3666,12028,"Teton Range, Wyoming, USA"]
[null,"Thor Peak",3666,12028,"Teton Range, Wyoming, USA"]
[null,"Medicine Bow Peak",3661,12011,"Wyoming, USA"]
[null,"Hyndman Peak",3660,12008,"Idaho, USA"]
[null,"Mount Clemenceau",3658,12001,"Canadian Rockies"]
[null,"Mount Frakes",3654,11988,"Crary Mountains, Antarctica"]
[null,"Grande Motte",3853,12641,"Vanoise Massif, France"]
[null,"Sierra Blanca",3652,11982,"Sacramento Mountains, New Mexico"]
[null,"Pointe de la Fournache",3639,11939,"Vanoise massif, France"]
[null,"Buck Mountain",3639,11939,"Teton Range, Wyoming"]
[null,"Mount Nebo",3636,11929,"Utah, USA"]
[null,"Mount Charleston",3632,11916,"Nevada, USA"]
[null,"Hintere Schwärze",3628,11903,"Ötztal Alps, Austria/Italy"]
[null,"Nez Perce Peak",3627,11900,"Teton Range, Wyoming, USA"]
[null,"Mount Alberta",3619,11873,"Canadian Rockies"]
[null,"Mount Assiniboine",3618,11870,"Canadian Rockies"]
[null,"Tödi",3614,11857,"Swiss Alps"]
[null,"Mount Forbes",3612,11850,"Canadian Rockies"]
[null,"Lautaro",3607,11834,"Patagonia, Chile"]
[null,"Dôme de la Sache",3601,11814,"Vanoise massif, France"]
[null,"Castle Peak",3601,11814,"Idaho, USA"]
[null,"Dôme de l'Arpont",3599,11808,"Vanoise massif, France"]
[null,"Dôme de Chasseforêt",3586,11765,"Vanoise massif, France"]
[null,"Makra Peak",3586,11765,"Pakistan"]
[null,"Sierra Velluda",3585,11762,"Chile"]
[null,"Grand Roc Noir",3582,11752,"Vanoise massif, France"]
[null,"Mount Timpanogos",3582,11752,"Utah, USA"]
[null,"Dôme des Nants",3570,11713,"Vanoise massif, France"]
[null,"Ryan Peak",3570,11713,"Idaho, USA"]
[null,"South Twin Peak",3566,11699,"Canadian Rockies"]
[null,"Olan",3564,11693,"Ecrins, France"]
[null,"Aiguille de Péclet",3561,11683,"Vanoise massif, France"]
[null,"Presanella",3558,11673,"Adamello-Presanella, Italy"]
[null,"Mount Steere",3558,11673,"Antarctica"]
[null,"Monarch Mountain",3555,11663,"Pacific Ranges, British Columbia, Canada"]
[null,"Monte Leone",3552,11654,"Lepontine Alps, Switzerland"]
[null,"Mont Turia",3550,11647,"Vanoise massif, France"]
[null,"Mount Temple",3543,11624,"Canadian Rockies"]
[null,"Disappointment Peak",3541,11617,"Teton Range, Wyoming"]
[null,"Mount Woodring",3533,11591,"Teton Range, Wyoming"]
[null,"Aiguille de Polset",3531,11585,"Vanoise Massif, France"]
[null,"Snow Dome",3520,11549,"Canadian Rockies"]
[null,"Aiguilles d'Arves",3515,11532,"Arve Massif, France"]
[null,"Mont de Gébroulaz",3511,11519,"Vanoise massif, France"]
[null,"Mount San Gorgonio",3505,11499,"California, USA"]
[null,"Mount Kitchener",3505,11499,"Canadian Rockies"]
[null,"Zuckerhütl",3505,11499,"Stubai Alps, Austria"]
[null,"Mount Wister",3502,11490,"Teton Range, Wyoming"]
[null,"Mount Saskatchewan",3500,11483,"Yukon, Canada"]
[null,"Mount Tasman",3497,11473,"Southern Alps, New Zealand"]
[null,"Dôme de Chasseforêt",3479,11414,"Vanoise massif, France"]
[null,"Mount Hungabee",3492,11457,"Canadian Rockies"]
[null,"Mount Athabasca",3491,11453,"Canadian Rockies"]
[null,"Tronador",3491,11453,"Chile/Argentina"]
[null,"Mount Saint John",3484,11430,"Teton Range, Wyoming"]
[null,"Thabana Ntlenyana",3482,11424,"Drakensberg, Africa"]
[null,"Pointes du Châtelard",3479,11414,"Vanoise massif, France"]
[null,"Mulhacén",3479,11414,"Spain"]
[null,"Mount Berlin",3478,11411,"Flood Range, Antarctica"]
[null,"Volcán Barú",3475,11401,"Chiriquí, Panama"]
[null,"Roc des Saints Pères",3470,11385,"Vanoise massif, France"]
[null,"Mount Brazeau",3470,11385,"Canadian Rockies"]
[null,"Mount Nyiragongo",3470,11385,"Virunga Mountains, DRC"]
[null,"Ruby Dome",3470,11385,"Ruby Mountains, Nevada"]
[null,"Roche de la Muzelle",3465,11368,"Dauphine Alps, France"]
[null,"Mount Victoria",3464,11365,"Canadian Rockies"]
[null,"Abajo Peak",3463,11362,"Abajo Mountains, Utah"]
[null,"Eagle Peak",3462,11358,"Absaroka Range, Wyoming, USA"]
[null,"Doane Peak",3461,11355,"Teton Range, Wyoming, USA"]
[null,"Ranger Peak",3461,11355,"Teton range, Wyoming, USA"]
[null,"Cerro de la Muerte",3451,11322,"Second highest in Costa Rica"]
[null,"Furgghorn",3451,11322,"Pennine Alps, Switzerland"]
[null,"Mount Andromeda",3450,11319,"Canadian Rockies"]
[null,"Mount Joffre",3449,11316,"Canadian Rockies"]
[null,"Hilgard Peak",3449,11316,"Madison Range, Montana, USA"]
[null,"Static Peak",3445,11302,"Teton Range, Wyoming, USA"]
[null,"Pointe de la Sana",3436,11273,"Vanoise massif, France"]
[null,"Eagles Rest Peak",3431,11257,"Teton Range, Wyoming, USA"]
[null,"Irazú Volcano",3431,11257,"Costa Rica"]
[null,"Mount Hood",3429,11250,"Cascade Range, Oregon, USA"]
[null,"Deltaform Mountain",3424,11234,"Canadian Rockies"]
[null,"Mount Lefroy",3423,11230,"Canadian Rockies"]
[null,"Pointe de l'Échelle",3422,11227,"Vanoise massif, France"]
[null,"Pointe du Bouchet",3420,11220,"Vanoise massif, France"]
[null,"Mount Fitzgerald",3418,11214,"Ruby Mountains, Nevada, USA"]
[null,"Bellecôte",3417,11211,"Vanoise massif, France"]
[null,"Crazy Peak",3417,11211,"Montana, USA"]
[null,"Emi Koussi",3415,11204,"Tibesti Mountains, Chad"]
[null,"Piz Linard",3410,11188,"Switzerland"]
[null,"Mount Woolley",3405,11171,"Canadian Rockies"]
[null,"Aneto",3404,11168,"Pyrenees, Spain"]
[null,"Fluchthorn",3399,11152,"Silvretta, Austria-Switzerland"]
[null,"Grand Bec",3398,11148,"Vanoise massif, France"]
[null,"Rockchuck Peak",3397,11145,"Teton Range, Wyoming"]
[null,"Mount Hector",3394,11135,"Canadian Rockies"]
[null,"Piz Platta",3392,11129,"Swiss Alps"]
[null,"Telescope Peak",3392,11129,"Death Valley"]
[null,"Champagne Castle",3377,11079,"Drakensberg, South Africa"]
[null,"Pic Uzu",3376,11076,"Tibesti, Libya-Chad"]
[null,"Cerro Chaltén",3375,11073,"Patagonia, Argentina-Chile"]
[null,"Mount Spurr",3374,11070,"Alaska"]
[null,"Pointe du Vallonnet",3372,11063,"Vanoise massif, France"]
[null,"Mammoth Mountain",3371,11060,"California"]
[null,"Fründenhorn",3369,11053,"Bernese Alps, Switzerland"]
[null,"Pointe Renod",3368,11050,"Vanoise massif, France"]
[null,"Traverse Peak",3368,11050,"Teton Range, Wyoming"]
[null,"Mount Edith Cavell",3363,11033,"Canadian Rockies"]
[null,"Dôme des Sonnailles",3361,11027,"Vanoise massif, France"]
[null,"Mount Agepsta",3357,11014,"Gagra Range, Abkhazia, Georgia"]
[null,"Mount Munday",3356,11010,"Pacific Ranges, B.C., Canada"]
[null,"Pointe de Claret",3355,11007,"Vanoise massif, France"]
[null,"Monte Perdido",3355,11007,"Pyrenees"]
[null,"Electric Peak",3343,10968,"Gallatin Range, Montana"]
[null,"Mount Saskatchewan",3342,10965,"Canadian Rockies"]
[null,"Cerro Fábrega",3335,10942,"Bocas Del Toro, Panama"]
[null,"Ward Mountain",3333,10935,"Nevada, USA"]
[null,"Pointe de Méan Martin",3330,10925,"Vanoise massif, France"]
[null,"Dôme de Polset",3326,10912,"Vanoise massif, France"]
[null,"Cathedral Peak",3326,10912,"California, USA"]
[null,"Raynolds Peak",3325,10909,"Teton Range, Wyoming"]
[null,"Rolling Thunder Mountain",3324,10906,"Teton Range, Wyoming"]
[null,"Mount Hampton",3323,10902,"Antarctica"]
[null,"Dôme des Pichères",3319,10889,"Vanoise massif, France"]
[null,"Grand Roc",3316,10879,"Vanoise massif, France"]
[null,"Giant's Castle",3315,10876,"Drakensberg, South Africa"]
[null,"Sunwapta Peak",3315,10876,"Canadian Rockies"]
[null,"Piz Buin",3312,10866,"Silvretta, Austria-Switzerland"]
[null,"Mount Ball",3311,10863,"Canadian Rockies"]
[null,"Piz Badile",3308,10853,"Bregaglia, Switzerland"]
[null,"Mount Chephren",3307,10850,"Canadian Rockies"]
[null,"Ağ Dağ",3306,10846,"Bozgush mountain range, East Azerbaijan, Iran"]
[null,"Mount Silberhorn",3303,10837,"Southern Alps, New Zealand"]
[null,"San Jacinto Peak",3302,10833,"California, USA"]
[null,"Didi Abuli",3301,10830,"Georgia"]
[null,"Bivouac Peak",3299,10823,"Teton Range, Wyoming"]
[null,"Mount Wilbur",3298,10820,"Fairweather Range, Alaska, USA"]
[null,"Monte Argentera",3297,10817,"Maritime Alps, Italy"]
[null,"Mount Samsari",3285,10778,"Abul-Samsari Range, Georgia"]
[null,"Roche Chevrière",3281,10764,"Vanoise massif, France"]
[null,"Habicht",3277,10751,"Stubai Alps, Austria"]
[null,"Thompson Peak",3277,10751,"Idaho, USA"]
[null,"Pointe de Thorens",3266,10715,"Vanoise massif, France"]
[null,"Mount Cramer",3266,10715,"Idaho, USA"]
[null,"Toussidé",3265,10712,"Tibesti Mountains, Chad-Libya"]
[null,"Antelao",3264,10709,"Dolomites, Italy"]
[null,"Mont Pelve",3261,10699,"Vanoise massif, France"]
[null,"Mount Stanley Baldwin",3256,10682,"Columbia Mountains, B.C., Canada"]
[null,"Sandia Crest",3255,10679,"New Mexico, USA"]
[null,"Épaule du Bouchet",3250,10663,"Vanoise massif, France"]
[null,"Mount Smythe",3246,10650,"Canadian Rockies"]
[null,"Wildstrubel",3243,10640,"Bernese Alps, Switzerland"]
[null,"Williams Peak",3242,10636,"Idaho, USA"]
[null,"Titlis",3238,10623,"Bernese Alps, Switzerland"]
[null,"Owl Peak",3235,10614,"Teton Range, Wyoming"]
[null,"Mount Mackenzie King",3234,10610,"Cariboo Mountains, B.C., Canada"]
[null,"Pointe des Buffettes",3233,10607,"Vanoise massif, France"]
[null,"Lisenser Spitze",3230,10597,"Stubai Alps, Austria"]
[null,"Mount Terror",3230,10597,"Antarctica"]
[null,"Aiguille Rouge",3227,10587,"Vanoise massif, France"]
[null,"Monte Civetta",3220,10564,"Dolomites, Italy"]
[null,"Symmetry Spire",3219,10561,"Teton Range, Wyoming"]
[null,"Glacier Peak",3213,10541,"Washington, USA"]
[null,"Pointe du Dard",3212,10538,"Vanoise massif, France"]
[null,"Mount Binalud",3211,10535,"Alborz, Iran"]
[null,"Pointe de la Réchasse",3206,10518,"Vanoise massif, France"]
[null,"Mount Jefferson",3204,10512,"Montana, USA"]
[null,"Mount Jefferson",3199,10495,"Cascade Range, Oregon, USA"]
[null,"Dreiländerspitze",3197,10489,"Silvretta, Austria-Switzerland"]
[null,"Mount Kita",3193,10476,"Akaishi Mountains, Japan"]
[null,"Mount Hotaka",3190,10466,"Hida Mountains, Japan"]
[null,"Mount Cleveland",3190,10466,"Montana, USA"]
[null,"Ainodake",3189,10463,"Akaishi Mountains, Japan"]
[null,"Lassen Peak",3189,10463,"California, USA"]
[null,"Mount Galatea",3185,10449,"Kananaskis Range, Alberta, Canada"]
[null,"Rendezvous Mountain",3185,10449,"Teton Range, Wyoming, USA"]
[null,"Mount Jackson",3184,10446,"Highest British mountain, British Antarctic Territory"]
[null,"Saviers Peak",3182,10440,"Idaho, USA"]
[null,"Mount Yari",3180,10433,"Hida Mountains, Japan"]
[null,"Parícutin",3170,10400,"Mexico"]
[null,"Mount Aylmer",3162,10374,"Canadian Rockies"]
[null,"South Sister",3157,10358,"Cascade Range, Oregon, USA"]
[null,"Stanley Peak",3155,10351,"Ball Range, Canadian Rockies"]
[null,"Jøkulkyrkja",3148,10328,"Antarctica"]
[null,"Pica d'Estats",3143,10312,"Spanish–French border, Pyrenees"]
[null,"Mount Arakawa",3141,10305,"Akaishi Mountains, Japan"]
[null,"Gray Peak",3140,10302,"Yellowstone National Park, Wyoming, USA"]
[null,"Mount Heyburn",3139,10299,"Idaho, USA"]
[null,"Mount Washburn",3122,10243,"Yellowstone National Park, Wyoming, USA"]
[null,"Mount Collie",3116,10223,"Canadian Rockies"]
[null,"Mount Siple",3110,10203,"Antarctica"]
[null,"Pirchinassi",3110,10203,"Muzaffarabad Azad Kashmir"]
[null,"Mount Redoubt",3108,10197,"Alaska, USA"]
[null,"Mount Babel",3101,10174,"Bow Range, Alberta, Canada"]
[null,"Mount Emei",3099,10167,"China"]
[null,"Pico Duarte",3098,10164,"Dominican Republic"]
[null,"Trapper Peak",3096,10157,"Montana, USA"]
[null,"Storm Mountain",3095,10154,"Canadian Rockies"]
[null,"Mount Blackmore",3094,10151,"Montana, USA"]
[null,"Mount Stimson",3091,10141,"Montana, USA"]
[null,"Mol Len",3088,10131,"Bhurma/India"]
[null,"Qurnat as Sawdā’",3088,10131,"Lebanon"]
[null,"Mount Richardson",3086,10125,"Canadian Rockies"]
[null,"Kintla Peak",3079,10102,"Livingston Range, Montana, USA"]
[null,"Mount Moulton",3078,10098,"Antarctica"]
[null,"Smoky Dome",3077,10095,"Idaho, USA"]
[null,"North Sister",3074,10085,"Cascade Range, Oregon, USA"]
[null,"Piton des Neiges",3069,10069,"Réunion, France"]
[null,"Mount San Antonio",3068,10066,"San Gabriel Mountains, California, USA"]
[null,"Mount Ontake",3067,10062,"Japan"]
[null,"Mount Jackson",3064,10052,"Lewis Range, Montana, USA"]
[null,"Middle Sister",3062,10046,"Cascade Range, Oregon, USA"]
[null,"Mount Nyamuragira",3058,10033,"Democratic Republic of the Congo"]
[null,"Crowfoot Mountain",3055,10023,"Canadian Rockies"]
[null,"Haleakala",3055,10023,"Hawaii, USA"]
[null,"Mount Chester",3054,10020,"Canadian Rockies"]
[null,"Mount Siyeh",3052,10013,"Montana, USA"]
[null,"Mount Merritt",3049,10003,"Montana, USA"]
[null,"Cerro de Coxóm",3045,9990,"Guatemala"]
[null,"Parseierspitze",3036,9961,"Austria"]
[null,"Mount Senjō",3033,9951,"Akaishi Mountains, Japan"]
[null,"Mount Aspiring/Tititea",3033,9951,"New Zealand"]
[null,"Kinnerly Peak",3031,9944,"Montana, USA"]
[null,"Mount Agung",3031,9944,"Bali, Indonesia"]
[null,"Mount McArthur",3021,9911,"Canadian Rockies"]
[null,"Mount Norikura",3026,9928,"Hida Mountains, Japan"]
[null,"Tsiteli Khati",3026,9928,"Kharuli Range, Georgia"]
[null,"Mount Tate",3015,9892,"Hida Mountains, Japan"]
[null,"Mount Tahat",3003,9852,"Algeria – Highest"]
[null,"Sapitwa",3002,9849,"Mulanje Massif, Malawi"]
[null,"The Fortress",3000,9843,"Canadian Rockies"]
[]
[null,"2,000 metres[edit]"]
[]
[null,"Miranjani – 2,980 m (9,777 ft)"]
[null,"Schilthorn – 2,970 m (9,744 ft)"]
[null,"Zugspitze – 2,962 m (9,718 ft)"]
[null,"Musala – 2,925 m (9,596 ft)"]
[null,"Mountain","Metres","Feet","Location and Notes"]
[null,"Sacajawea Peak",2999,9839,"Wallowa Mountains, Oregon, USA"]
[null,"Cascade Mountain",2998,9836,"Vermillion Range, Canadian Rockies"]
[null,"Copahue",2997,9833,"Andes, Argentina/Chile"]
[null,"Mount Girouard",2985,9793,"Fairholme Range, Canadian Rockies"]
[null,"Pico da Neblina",2994,9823,"Brazil – Highest"]
[null,"Mount Whyte",2983,9787,"Bow Range, Canadian Rockies"]
[null,"Miranjani",2980,9777,"Pakistan"]
[null,"Forellen Peak",2979,9774,"Teton Range, Wyoming, USA"]
[null,"Mount Andrus",2978,9770,"Ames Range, Antarctica"]
[null,"Mount Niblock",2976,9764,"Bow Range, Canadian Rockies"]
[null,"Keele Peak",2972,9751,"Mackenzie Mountains, Yukon, Canada"]
[null,"Mount Odin",2970,9744,"Monashee Mountains, B.C. Canada"]
[null,"Schilthorn",2970,9744,"Bernese Alps, Switzerland"]
[null,"Mount Tallac",2968,9738,"Sierra Nevada, California, USA"]
[null,"Mount Inglismaldie",2964,9724,"Fairholme Range, Canadian Rockies"]
[null,"Mount Ramelau",2963,9721,"Highest in East Timor"]
[null,"Zugspitze",2962,9718,"Germany – Highest"]
[null,"Little Alberta",2956,9698,"Sir Winston Churchill Range, Canadian Rockies"]
[null,"Iron Mountain",2955,9695,"Soldier Mountains, Idaho, USA"]
[null,"Apo",2954,9692,"Philippines – Highest"]
[null,"Fossil Mountain",2946,9665,"Banff NP, Canada"]
[null,"Coma Pedrosa",2942,9652,"Pyrenees, Andorra – Highest"]
[null,"Going to the Sun Mountain",2939,9642,"Lewis Range, Montana, USA"]
[null,"Pilot Mountain",2935,9629,"Massive Range, Canadian Rockies"]
[null,"Urirotstock",2928,9606,"Switzerland"]
[null,"Musala",2925,9596,"Bulgaria – Highest"]
[null,"Mount Pulag",2922,9587,"Philippines"]
[null,"Mount Olympus",2917,9570,"Thessaly/Macedonia, Greece – Highest"]
[null,"Mount Gould",2912,9554,"Montana, USA"]
[null,"Mount Blakiston",2910,9547,"Flathead Range, Canadian Rockies"]
[null,"Mount Sas dla Crusc",2907,9537,"Dolomites, Italy"]
[null,"Chutine Peak",2903,9524,"Coast Range, British Columbia"]
[null,"Rising Wolf Mountain",2900,9514,"Lewis Range, Montana, USA"]
[null,"Bonanza Peak",2899,9511,"Cascade Range, Washington, USA"]
[null,"Pic de Sanfonts",2894,9495,"Pyrenees, Andorra"]
[null,"Collarada",2886,9469,"Pyrenees, Spain"]
[null,"Boardman Peak",2882,9455,"Soldier Mountains, Idaho, USA"]
[null,"Lembert Dome",2880,9449,"California, USA"]
[null,"Mount Stuart",2869,9413,"Cascades, Washington, USA"]
[null,"Mount Silverthrone",2865,9400,"British Columbia, Canada"]
[null,"Triglav",2864,9396,"Slovenia – Highest"]
[null,"Mount Saint Nicholas",2858,9377,"Montana, USA"]
[null,"Mount Wilbur",2841,9321,"Montana, USA"]
[null,"Mount Fernow",2819,9249,"Washington, USA"]
[null,"Mount Hermon",2814,9232,"Syria, Lebanon - a subpeak on its southern slopes is the high point of Golan Heights"]
[null,"Mount Cory",2802,9193,"Alberta, Canada"]
[null,"Mount Thielsen",2799,9183,"Cascades, USA"]
[null,"Copper Mountain",2795,9170,"Alberta, Canada"]
[null,"Hayes Volcano",2788,9147,"Alaska, USA"]
[null,"Mount Edziza",2787,9144,"British Columbia, Canada"]
[null,"Canigou",2784,9134,"Pyrenees, France"]
[null,"Mount Longonot",2780,9121,"RIftvalley, Kenya"]
[null,"Buckner Mountain",2778,9114,"Washington, USA"]
[null,"Mount Longonot",2776,9108,"Great Rift Valley, Kenya"]
[null,"Seven Fingered Jack",2774,9101,"Washington, USA"]
[null,"Mount Nirvana",2773,9098,"Northwest Territories, Canada"]
[null,"Chief Mountain",2768,9081,"Montana, USA"]
[null,"Lincoln Peak",2768,9081,"Washington, USA"]
[null,"Castle Mountain",2766,9075,"Canadian Rockies"]
[null,"Pyramid Mountain",2766,9075,"Canadian Rockies"]
[null,"Mount Korab",2764,9068,"Republic of Macedonia & Albania – Highest"]
[null,"Mount Sir James MacBrien",2759,9052,"Canada"]
[null,"Mount Olympus",2751,9026,"Utah, USA"]
[null,"Mawson Peak",2745,9006,"Highest in Australia"]
[null,"Mount Baekdu",2744,9003,"North Korea/China Highest in North Korea"]
[null,"Fairview Mountain",2744,9003,"Bow Range, Canadian Rockies"]
[null,"Škrlatica",2740,8990,"Julian Alps, Slovenia"]
[null,"Heavens Peak",2739,8986,"Montana, USA"]
[null,"Mount Spickard",2737,8980,"North Cascades"]
[null,"Mount Melbourne",2732,8963,"Antarctica"]
[null,"Cerro El Pital",2730,8957,"El Salvador – Highest"]
[null,"Mount Redoubt",2730,8957,"Washington, USA"]
[null,"Mount Morning",2723,8934,"Antarctica"]
[null,"Serles",2718,8917,"Stubai Alps, Austria"]
[null,"Watzmann",2713,8901,"Bavarian Alps, Germany"]
[null,"Boston Peak",2711,8894,"Washington, USA"]
[null,"Grotto Mountain",2706,8878,"Canadian Rockies"]
[null,"Mount Haku",2702,8865,"Ryōhaku Mountains, Japan"]
[null,"Eldorado Peak",2701,8862,"Washington, USA"]
[null,"Anaimudi",2695,8842,"Kerala, India – #1 in Western Ghats, India"]
[null,"Maja Jezerce",2694,8839,"#1 in Dinaric Alps, Albania"]
[null,"Half Dome",2693,8835,"Sierra Nevada, California, USA"]
[null,"Mount Louis",2682,8799,"Alberta, Canada"]
[null,"Mount Discovery",2681,8796,"Antarctica"]
[null,"Pic de la Selle",2680,8793,"Haiti"]
[null,"Mount Garibaldi",2678,8786,"British Columbia, Canada"]
[null,"Guadalupe Peak",2667.3,8751,"Guadalupe Mountains, Texas – Highest in Texas"]
[null,"Großer Krottenkopf",2656,8714,"Allgäu Alps, Tyrol, Austria"]
[null,"Pic del Port Vell",2655,8711,"Pyrenees, Andorra"]
[null,"Gerlachov Peak",2655,8711,"High Tatras, Slovakia"]
[null,"Mount Michelson",2652,8701,"Chugach Mountains, Alaska, USA"]
[null,"Mount St. Piran",2649,8691,"Bow Range, Alberta, Canada"]
[null,"Mount Meager",2645,8678,"British Columbia, Canada"]
[null,"Mount Trus Madi",2642,8668,"Trus Madi Range, Sabah, Malaysia – #2 in Malaysia"]
[null,"Doddabetta",2637,8652,"Tamil Nadu, India"]
[null,"Piton de la Fournaise",2631,8632,"Réunion"]
[null,"Mount Crean",2630,8629,"Victoria Land"]
[null,"Cardinal Peak",2618,8589,"Washington, USA"]
[null,"Barbeau Peak",2616,8583,"Nunavut, Canada – Highest in Nunavut"]
[null,"Pelister Peak",2601,8533,"Republic of Macedonia"]
[null,"Pico Almanzor",2592,8504,"Spain"]
[null,"Mount Tavkvetili",2583,8474,"Georgia"]
[null,"Argonaut Peak",2576,8451,"Washington, USA"]
[null,"Doi Inthanon",2565,8415,"Thailand – Highest in Thailand"]
[null,"Cooke's Peak/Cook's Peak",2563,8409,"New Mexico,USA"]
[null,"Pic dels Aspres",2562,8406,"Pyrenees, Andorra"]
[null,"Aguja Saint Exupery",2558,8392,"Argentina"]
[null,"Mount St. Helens",2550,8366,"Washington, USA"]
[null,"Big Hatchet Peak",2547,8356,"New Mexico, USA"]
[null,"Moldoveanu Peak",2544,8346,"Romania"]
[null,"Negoiu Peak",2535,8317,"Romania"]
[null,"Vistea Mare",2527,8291,"Romania"]
[null,"Pidurutalagala",2524,8281,"Sri Lanka"]
[null,"Mount Norquay",2522,8274,"Canadian Rockies"]
[null,"Hualalai",2521,8271,"Hawaii, USA"]
[null,"Parangu Mare",2519,8264,"Romania"]
[null,"Mount Taranaki/Egmont",2518,8261,"New Zealand"]
[null,"Garfield Peak",2512,8241,"Wyoming, USA"]
[null,"Mount Veniaminof",2507,8225,"Alaska, USA"]
[null,"Omu Peak",2505,8219,"Romania"]
[null,"Rysy",2503,8212,"Poland/Slovakia"]
[null,"Mount Tymfi",2497,8192,"Pindus, Greece"]
[null,"Špik",2472,8110,"Julian Alps, Slovenia"]
[null,"Luna Peak",2470,8104,"British Columbia, Canada"]
[null,"Galdhøpiggen",2469,8100,"Norway – Highest"]
[null,"Glittertind",2464,8084,"Norway"]
[null,"El Capitan",2464,8084,"Texas, USA"]
[null,"Shimbiris",2464,8084,"Somalia"]
[null,"Sulphur Mountain",2451,8041,"Canadian Rockies"]
[null,"Sunset Crater",2451,8041,"Arizona, USA"]
[null,"Faraya Mzaar",2444,8018,"Keserwan, Lebanon"]
[null,"Triple Divide Peak",2444,8018,"Montana, USA"]
[null,"Monte Binga",2436,7992,"Manica, Mozambique"]
[null,"Mount Olympus",2432,7979,"Washington, USA"]
[null,"Peñalara",2430,7972,"Spain"]
[null,"Mount Daniel",2426,7959,"Washington, USA"]
[null,"Mount Murud",2423,7949,"Kelabit Highlands, Sarawak, Malaysia – Highest mountain in Sarawak"]
[null,"Mocho",2422,7946,"Los Ríos Region, Chile"]
[null,"Choshuenco",2415,7923,"Los Ríos Region, Chile"]
[null,"Ha Ling Peak",2408,7900,"Canadian Rockies, Alberta"]
[null,"Store Skagastølstind",2405,7890,"Norway"]
[null,"Le Tabor",2389,7838,"Dauphine Alps, France"]
[null,"Kirigalpottha",2388,7835,"Sri Lanka"]
[null,"Mount Cayley",2385,7825,"British Columbia, Canada"]
[null,"Mount Galwey",2377,7799,"Canadian Rockies"]
[null,"Botev Peak",2376,7795,"Bulgaria"]
[null,"Mount Mulu",2376,7795,"Gunung Mulu National Park, Sarawak, Malaysia"]
[null,"Mount Deception",2374,7789,"Washington, USA"]
[null,"Mount Karthala",2361,7746,"Comoros, Indian Ocean"]
[null,"Totapala Kanda",2357,7733,"Sri Lanka"]
[null,"Signal Mountain",2353,7720,"Wyoming, USA"]
[null,"Mount Pico",2351,7713,"Azores, Portugal"]
[null,"Mount Blum",2340,7677,"North Cascades"]
[null,"Mount Prophet",2330,7644,"North Cascades"]
[null,"Mount Griggs",2317,7602,"Alaska, USA"]
[null,"Lalla Khedidja",2308,7572,"Djurdjura Mountains, Algeria"]
[null,"Lavender Peak",2306,7566,"British Columbia, Canada"]
[null,"Pietrosul Rodnei Peak",2303,7556,"Rodnei Mountains, Romanian Carpathian Mountains, Romania"]
[null,"Mount Sir Allan MacNab",2297,7536,"Premier Range, British Columbia, Canada"]
[null,"Murree",2291,7516,"Rawalpindi, Pakistan"]
[null,"Druesberg",2282,7487,"Alps, Switzerland"]
[null,"Ineu Peak",2279,7477,"Rodnei Mountains, Romanian Carpathian Mountains, Romania"]
[null,"Bikku Bitti",2267,7438,"Libya – Second Highest in country"]
[null,"Sri Pada Mountain",2243,7359,"Sri Lanka"]
[null,"Mount John Laurie",2240,7349,"Canadian Rockies, Alberta"]
[null,"Red Butte",2232,7323,"Arizona, USA"]
[null,"Čvrsnica",2228,7310,"Herzegovina, BiH"]
[null,"Mount Kosciuszko",2228,7310,"Snowy Mountains, New South Wales, Australia – Highest on mainland"]
[null,"Mount Chiginagak",2221,7287,"Alaska, USA"]
[null,"Mount Townsend",2209,7247,"Snowy Mountains, New South Wales, Australia – Second-highest on mainland"]
[null,"Harney Peak",2207,7241,"South Dakota, USA – Highest in state"]
[null,"Golden Hinde",2198,7211,"#1 on Vancouver Island, British Columbia, Canada"]
[null,"Mount Twynam",2196,7205,"Snowy Mountains, New South Wales, Australia – Third-highest on mainland"]
[null,"Elkhorn Mountain",2195,7201,"Vancouver Island, British Columbia, Canada"]
[null,"Mount Baldy",2192,7192,"Alberta, Canada"]
[null,"Shiprock",2188,7178,"New Mexico, USA"]
[null,"Mount Tahan",2187,7175,"Tahan Range, Pahang, Malaysia – Highest in Peninsular Malaysia"]
[null,"Mount Korbu",2183,7162,"Titiwangsa Mountains, Perak, Malaysia"]
[null,"Doi Chiang Dao",2175,7136,"Thailand"]
[null,"Galunggung",2168,7113,"Java"]
[null,"Carruthers Peak",2145,7037,"Snowy Mountains, New South Wales, Australia"]
[null,"Crna Glava",2139,7018,"Bjelasica, Crna Gora"]
[null,"Mount Colonel Foster",2135,7005,"Vancouver Island, British Columbia, Canada"]
[null,"Roche à Perdrix",2135,7005,"Fiddle Range, Canadian Rockies"]
[null,"Kodaikanal",2133,6998,"Tamilnadu, India"]
[null,"Mount Pilatus",2132,6995,"Switzerland"]
[null,"Strmenica",2122,6962,"Bjelasica, Crna Gora"]
[null,"Phu Soi Dao",2120,6955,"Thailand/Laos"]
[null,"Eagle Peak",2119,6952,"Alaska, USA"]
[null,"Zekova Glava",2117,6946,"Bjelasica, Crna Gora"]
[null,"Öræfajökull",2110,6923,"Iceland"]
[null,"Mogotón",2107,6913,"Nicaragua – Highest in Nicaragua"]
[null,"Kebnekaise",2106,6909,"Sweden"]
[null,"Rambler Peak",2092,6864,"Vancouver Island, British Columbia, Canada"]
[null,"Mount McBride",2083,6834,"Vancouver Island, British Columbia, Canada"]
[null,"Phou Khe",2079,6821,"Thailand/Laos"]
[null,"Schneeberg",2076,6811,"Northern Limestone Alps, Austria"]
[null,"Mount Tate",2068,6785,"Snowy Mountains, New South Wales, Australia"]
[null,"Kings Peak",2065,6775,"Vancouver Island, British Columbia, Canada"]
[null,"Hoverla",2061,6762,"Ukraine – Highest"]
[null,"Mount Katmai",2047,6716,"Alaska, USA"]
[null,"Mount Celeste",2041,6696,"Vancouver Island, British Columbia, Canada"]
[null,"Mount Mitchell",2037,6683,"Yancey County, North Carolina, USA"]
[null,"Namunukula",2035,6677,"Sri Lanka"]
[null,"Mount Batu Brinchang",2032,6667,"Cameron Highlands, Pahang/Perak, Malaysia"]
[null,"Doi Mae Tho",2031,6663,"Thailand"]
[null,"Clingmans Dome",2025,6644,"Great Smoky Mountains, Tennessee, USA"]
[null,"Polar Bear Peak",2016,6614,"Chugach Mountains, Alaska, USA"]
[null,"Mount Asgard",2015,6611,"Baffin Mountains, Nunavut, Canada"]
[]
[null,"1,000 metres[edit]"]
[]
[null,"Mount Tongariro – 1,978 m (6,490 ft)"]
[null,"Trident Volcano – 1,864 m (6,115 ft)"]
[null,"Loser – 1,838 m (6,030 ft)"]
[null,"Snæfellsjökull – 1,446 m (4,744 ft)"]
[null,"Ben Nevis – 1,344 m (4,409 ft)"]
[null,"Uummannaq – 1,070 m (3,510 ft)"]
[null,"Mountain","Metres","Feet","Location and Notes"]
[null,"Serra da Estrela",1993,6539,"Portugal"]
[null,"Mount Bogong",1986,6516,"Australia – Highest in Victoria"]
[null,"Mount Ishizuchi",1982,6503,"Japan – Tallest in Western Japan"]
[null,"Doi Phu Kha",1980,6496,"Luang Prabang Range, Thailand"]
[null,"Mount Tongariro",1978,6490,"New Zealand"]
[null,"Iceberg Peak",1977,6486,"Vancouver Island, British Columbia, Canada"]
[null,"Pico Turquino",1975,6480,"Cuba – Highest point"]
[null,"El Piveto Mountain",1969,6460,"Vancouver Island, British Columbia, Canada"]
[null,"Qiajivik Mountain",1963,6440,"Baffin Island, Nunavut, Canada"]
[null,"Farcau Peak",1956,6417,"Romania"]
[null,"Ciucas Peak",1954,6411,"Romania"]
[null,"Mount Olympus",1952,6404,"Cyprus"]
[null,"Hallasan",1950,6398,"CheJudo, South Korea/ Highest Mountain in South Korea"]
[null,"Jabal Bil Ays",1934,6345,"Oman"]
[null,"Mullayanagiri",1930,6332,"Chikmagalur, Karnataka, India"]
[null,"Mount Kirigamine",1925,6316,"Japan"]
[null,"Mount Washington",1917,6289,"Presidential Range, White Mtns., Appalachian Mountains, USA – Highest in American Northeast"]
[null,"Mount Jiri",1915,6283,"South Korea"]
[null,"Mont Ventoux",1909,6263,"France"]
[null,"Ocolasu Mare",1907,6257,"Romania"]
[null,"Mount Toaca",1900,6234,"Romania"]
[null,"Vesper Peak",1896,6220,"Washington, USA"]
[null,"Baba Budangiri",1895,6217,"Chikmagalur, Karnataka, India"]
[null,"Kudremukh",1894,6214,"Chikmagalur, Karnataka, India"]
[null,"Orjen",1894,6214,"Montenegro, Bosnia and Herzegovina"]
[null,"Mount George V",1883,6178,"Vancouver Island, British Columbia, Canada"]
[null,"Rugged Mountain",1875,6152,"Vancouver Island, British Columbia, Canada"]
[null,"Straja",1868,6129,"Romania"]
[null,"Trident Volcano",1864,6115,"Alaska, USA"]
[null,"Mount Martin",1863,6112,"Alaska, USA"]
[null,"Knuckles",1862,6109,"Sri Lanka"]
[null,"Budacu",1859,6099,"Romania"]
[null,"Giumalau",1856,6089,"Romania"]
[null,"Cucurbata Mare",1849,6066,"Romania"]
[null,"Crown Mountain",1846,6056,"Vancouver Island, British Columbia, Canada"]
[null,"Tibles",1839,6033,"Romania"]
[null,"Loser",1838,6030,"Austria"]
[null,"Vladeasa",1836,6024,"Romania"]
[null,"Cerro La Campana",1828,5997,"Olmue, Chile"]
[null,"Muntele Mare",1826,5991,"Romania"]
[null,"Cerro de la Silla",1820,5971,"Mexico"]
[null,"Biligiriranga Hills",1800,5906,"Chamarajanagar, Karnataka, India"]
[null,"Rigi",1797,5896,"Swiss Alps"]
[null,"Hășmașu Mare",1792,5879,"Romania"]
[null,"Pietrosu Peak",1791,5876,"Romania"]
[null,"Goru",1784,5853,"Romania"]
[null,"Lacaut",1777,5830,"Romania"]
[null,"Saca Peak",1776,5827,"Romania"]
[null,"Penteleu",1772,5814,"Romania"]
[null,"Mount Api",1750,5741,"Gunung Mulu National Park, Sarawak, Malaysia"]
[null,"Tadiandamol",1748,5735,"Kodagu, Karnataka, India"]
[null,"Mount Rogers",1746,5728,"Virginia, USA – Highest point in state"]
[null,"Doi Phi Pan Nam",1745,5725,"Luang Prabang Range, Thailand"]
[null,"Mount Wilson",1742,5715,"California, USA"]
[null,"Daisen",1729,5673,"Japan"]
[null,"The Horn (Mount Buffalo)",1723,5653,"Victoria, Australia"]
[null,"Mount Batur",1717,5633,"Bali, Indonesia"]
[null,"Kumara Parvata",1712,5617,"Dakshina Kannada, Karnataka, India"]
[null,"Pushpagiri",1712,5617,"Pushpagiri Wildlife Sanctuary, Karnataka, India"]
[null,"Mount Lowe",1707,5600,"San Gabriel Mountains, California, USA"]
[null,"Boulder Peak",1707,5600,"Olympic Mountains, Washington, USA"]
[null,"Doi Luang",1694,5558,"Phi Pan Nam Range, Thailand"]
[null,"Mitre Peak",1692,5551,"New Zealand"]
[null,"Mount Caubvik",1652,5420,"Torngat Mountains, Canada"]
[null,"Rarau",1650,5413,"Romania"]
[null,"Peak 5390",1643,5390,"Alaska, USA"]
[null,"Mount Marcy",1629,5344,"New York, USA"]
[null,"Brahmagiri",1608,5276,"Kodagu, Karnataka, India"]
[null,"Mount Katahdin",1606,5269,"Maine, USA"]
[null,"Sněžka",1602,5256,"Krkonoše, Czech Republic – #1 in Czech republic"]
[null,"Sirumalai",1600,5249,"Tamilnadu India"]
[null,"Mount Washington (British Columbia)",1590,5217,"Vancouver Island, British Columbia, Canada"]
[null,"Mount Benarat",1585,5200,"Gunung Mulu National Park, Sarawak, Malaysia"]
[null,"Wai'ale'ale",1569,5148,"Kauai, Hawaii, USA"]
[null,"Mount Baw Baw",1567,5141,"Australia"]
[null,"Cirque Mountain",1567,5141,"Labrador, Canada"]
[null,"Superstition Mountain",1542,5059,"Arizona, USA"]
[null,"Jabel Yibir",1527,5010,"United Arab Emirates"]
[null,"Madikeri",1525,5003,"Kodagu, Karnataka, India"]
[null,"Mount Popa",1518,4980,"Myanmar"]
[null,"Askja",1516,4974,"Iceland"]
[null,"Kamakau",1512,4961,"Molokai, Hawaii, USA"]
[null,"Javaleon",1494,4902,"Spain"]
[null,"Mount Nuang",1491,4892,"Titiwangsa Mountains, Malaysia"]
[null,"Hekla",1491,4892,"Iceland"]
[null,"Mount Pinatubo",1486,4875,"Luzon, Philippines"]
[null,"Spruce Knob",1482,4862,"West Virginia, USA"]
[null,"Agriolefkes",1471,4826,"Pelion, Greece"]
[null,"Mount Seymour",1455,4774,"British Columbia, Canada"]
[null,"Himavad Gopalaswamy Betta",1450,4757,"Chamarajanagar, Karnataka, India"]
[null,"Snæfellsjökull",1446,4744,"Iceland"]
[null,"Gutai Peak",1443,4734,"Romania"]
[null,"Cypress Mountain",1432,4698,"British Columbia, Canada"]
[null,"Yelagiri",1410,4626,"Tamilnadu, India"]
[null,"Ben Nevis",1344,4409,"Scotland – Highest in the United Kingdom"]
[null,"Kodachadri",1343,4406,"Shimoga, Karnataka, India"]
[null,"Mount Aniakchak",1341,4400,"Alaska, USA"]
[null,"Cerro de Punta",1338,4390,"Jayuya, Puerto Rico – Highest in Puerto Rico"]
[null,"Mount Bassie",1311,4301,"Alaska, USA"]
[null,"Ben Macdhui",1309,4295,"Scotland"]
[null,"Mount Kanaga",1307,4288,"Alaska, USA"]
[null,"Sinhagad",1303,4275,"Maharashtra, India"]
[null,"Rajabasa",1281,4203,"Sumatra, Indonesia"]
[null,"Mount Vesuvius",1281,4203,"Italy"]
[null,"Mount Ophir",1276,4186,"Titiwangsa Mountains, Johor, Malaysia"]
[null,"Mount Wellington",1271,4170,"Tasmania/Australia"]
[null,"Mount Si",1270,4167,"Washington\\, USA"]
[null,"Detunata",1258,4127,"Romania"]
[null,"Mount Donna Buang",1250,4101,"Victoria, Australia"]
[null,"Camel's Hump",1244,4081,"Vermont, USA"]
[null,"Cannon Mountain",1240,4068,"New Hampshire, USA"]
[null,"Grouse Mountain",1231,4039,"British Columbia, Canada"]
[null,"Kaʻala",1220,4003,"Oahu, Hawaii, USA"]
[null,"Mount Jerai",1217,3993,"Titiwangsa Mountains, Kedah, Malaysia"]
[null,"Mount Meron",1208,3963,"Galilee, Israel – Highest in Israel (inside the '67 borders)"]
[null,"Doi Lan",1174,3852,"Phi Pan Nam Range, Thailand"]
[null,"Mount Diablo",1173,3848,"California, USA"]
[null,"Bidean nam Bian",1150,3773,"Scotland"]
[null,"Monte Musinè",1150,3773,"Piedmont, Italy"]
[null,"Brocken",1141,3743,"Saxony-Anhalt, Germany – Highest mountain in the Harz; highest in Saxony-Anhalt"]
[null,"Victoria Peak",1120,3675,"Belize – 2nd highest mountain in Belize"]
[null,"Snowdon",1085,3560,"Gwynedd, Wales – Highest"]
[null,"Flattop Mountain",1070,3510,"Alaska, USA"]
[null,"Uummannaq",1070,3510,"Greenland"]
[null,"White Butte",1069,3507,"North Dakota, USA – Highest in state"]
[null,"Liathach",1055,3461,"Torridon, Scotland"]
[null,"Corrán Tuathail",1038,3406,"County Kerry, Ireland – Highest mountain in Ireland"]
[null,"Mount Ramon",1037,3402,"Negev, Israel"]
[null,"Buachaille Etive Mor",1022,3353,"Glen Etive, Scotland"]
[null,"Kékes",1014,3327,"Hungary – Highest mountain in Hungary"]
[null,"Mount Belumut",1010,3314,"Johor, Malaysia"]
[null,"Old Rag Mountain",1001,3284,"Virginia, USA"]
[]
[null,"Under 1,000 metres[edit]"]
[]
[null,"Mount Santubong – 810 m (2,657 ft)"]
[null,"Mt. Boucherie – 758 m (2,487 ft)"]
[null,"Qalorujoorneq – 676 m (2,218 ft)"]
[null,"Mountain","Metres","Feet","Range","Location and Notes"]
[null,"Magura Priei",996,3268,"Romania"]
[null,"Sgurr Dearg",986,3235,"Cuillin  ","Scotland"]
[null,"Mount Sizer",980,3215,"Diablo Range  ","USA (California)"]
[null,"Mount Valin",980,3215,"Saguenay Lac St-Jean  ","Canada (Québec)"]
[null,"Hyangnosan",979,3212,"  ","Gyeongnam Province, South Korea"]
[null,"Scafell Pike",978,3209,"Southern Fells  ","England (Cumbria) – Highest in England"]
[null,"Mount Edgecumbe",976,3202,"   ","USA (Alaska)"]
[null,"North Mountain (Catskills)",969,3179,"Catskill Escarpment  ","USA (New York)"]
[null,"Tai Mo Shan",957,3140,"  ","Hong Kong – Highest in Hong Kong"]
[null,"Helvellyn",950,3117,"Eastern Fells  ","England (Cumbria)"]
[null,"El Cerro del Aripo",940,3084,"Northern Range  ","Trinidad and Tobago – Highest point"]
[null,"El Tucuche",936,3071,"Northern Range  ","Trinidad and Tobago"]
[null,"Lantau Peak",934,3064,"  ","Hong Kong"]
[null,"Kaimondake volcano",924,3031,"  ","Kagoshima, Japan"]
[null,"Pantokrator",906,2972,"  ","Greece (Corfu)"]
[null,"Mount Gerizim",881,2890,"  ","West Bank"]
[null,"Sunset Peak",869,2851,"  ","Hong Kong"]
[null,"Slaíbh Domhnaírt",856,2808,"Mourne mountains  ","County Down,Northern Ireland"]
[null,"Muntele Cetatuia",850,2789,"Romania"]
[null,"Hoemunsan",837,2746,"  ","North Jeolla Province, South Korea"]
[null,"Drocea",836,2743,"Romania"]
[null,"Mount Carleton",817,2680,"Appalachian Mountains  ","Canada (New Brunswick)"]
[null,"Mount Santubong",810,2657,"  ","Malaysia (Sarawak)"]
[null,"Gros Morne",807,2648,"  ","Canada (Newfoundland)"]
[null,"Clisham",799,2621,"  ","Harris,Western Isles,Scotland"]
[null,"Mount Tamalpais",792,2598,"California Coast Ranges  ","USA (California)"]
[null,"Gyemyeongsan",774,2539,"  ","North Chungcheong Province, South Korea"]
[null,"Mount Boucherie",758,2487,"  ","Canada (British Columbia)"]
[null,"Gaseopsan",710,2329,"  ","North Chungcheong Province, South Korea"]
[null,"Pu‘u ‘Ō‘ō",698,2290,"  ","USA (Hawaii)"]
[null,"Signal de Botrange",694,2277,"High Fens  ","Belgium (Liège) – Highest in Belgium"]
[null,"Ishpatina Ridge",690,2264,"  ","Canada (Ontario)"]
[null,"Galgisan",685,2247,"  ","Gyeonggi Province, and Gangwon Province, South Korea"]
[null,"Delphi",681,2234,"  ","Greece (Skopelos)"]
[null,"Qalorujoorneq",676,2218,"  ","Greenland"]
[null,"Maple Mountain",642,2106,"  ","Canada (Ontario)"]
[null,"Masaya",635,2083,"  ","Nicaragua"]
[null,"High Willhays",621,2037,"  ","England (Dartmoor)"]
[null,"Munsusan (Ulsan)",600,1969,"  ","Ulsan, South Korea"]
[null,"Mount Takao",599,1965,"  ","Tokyo, Japan"]
[null,"Sikjangsan",596,1955,"  ","Daejeon, South Korea"]
[null,"Gwanggyosan",582,1909,"  ","Gyeonggi Province, South Korea"]
[null,"Mount Pond",576,1890,"  ","South Shetland Islands"]
[null,"Monte Conero",572,1877,"  ","Italy (Ancona)"]
[null,"Gyeryongsan (South Gyeongsang Province)",566,1857,"  ","South Gyeongsang Province, South Korea"]
[null,"Namamsan",543,1781,"  ","Ulsan, South Korea"]
[null,"Great Mell Fell",537,1762,"Eastern Fells  ","England (Cumbria)"]
[null,"Geomdansan (Seongnam)",534.70000000000005,1754,"  ","Gyeonggi Province, South Korea"]
[null,"Yeonhwasan",532,1745,"  ","Ulsan, South Korea"]
[null,"Heukseongsan",519,1703,"  ","North Chungcheong Province, South Korea"]
[null,"Little Si",480,1575,"Cascade Range  ","Washington, USA"]
[null,"Tutuiatu Peak",467,1532,"Romania"]
[null,"Pu'u Moaulanui",452,1483,"  ","Kahoolawe, Hawaii"]
[null,"Blue Mountain",452,1483,"  ","Ontario, Canada"]
[null,"Muryongsan (Ulsan)",452,1483,"  ","Ulsan, South Korea"]
[null,"Dongdaesan (Ulsan)",447,1467,"  ","Ulsan, South Korea"]
[null,"Storm King Mountain",408,1339,"Hudson Highlands  ","USA (New York)"]
[null,"Diamond Hill",400,1312,"Connemara National Park  ","Ireland"]
[null,"Gyeyangsan",395,1296,"  ","Incheon, South Korea"]
[null,"Loughrigg Fell",335,1099,"Central Fells  ","England (Cumbria)"]
[null,"Mount Kinka (Gifu)",329,1079,"  ","Gifu, Japan"]
[null,"Vaalserberg",321,1053,"  ","Netherlands (Limburg)"]
[null,"Suur Munamägi",318,1043,"  ","Haanja, Estonia"]
[null,"Aukštojas",293.83999999999997,964,"  ","Medininkai, Lithuania"]
[null,"Kruopinė",293.64999999999998,963,"  ","Vilnius, Lithuania"]
[null,"Juozapinė",292.7,960,"  ","Vilnius, Lithuania"]
[null,"Hwajangsan",285,935,"  ","Ulsan, South Korea"]
[null,"Jerimoth Hill",247,810,"  ","Rhode Island, USA"]
[null,"Diamond Head",232,761,"  ","USA (Hawaii)"]
[null,"Yeomposan",203,666,"  ","Ulsan, South Korea"]
[null,"Hamwolsan",200,656,"  ","Ulsan, South Korea"]
[null,"Britton Hill",105,344,"  ","Florida, USA – The lowest high point of any US state"]
[null,"Mount Tenpō",5,16,"  ","Osaka, Japan"]
[]
[null,"See also[edit]"]
[]
[null,"Portal icon","Mountains portal"]
[]
[null,"List of volcanoes by elevation"]
[]
[]
[null,"This list is incomplete; you can help by expanding it."]
[]
[null,"f"]
[]
[null,"Retrieved from \"http://en.wikipedia.org/w/index.php?title=List_of_mountains_by_elevation&oldid=637967921\""]
[null,"Categories:"]
[]
[null,"Mountaineering"]
[null,"Physical geography"]
[null,"Lists of mountains by elevation"]
[null,"Mountains by height"]
[]
[null,"Hidden categories:"]
[]
[null,"Incomplete lists from August 2008"]
[]
[null,"Navigation menu"]
[]
[null,"Personal tools"]
[]
[null,"Create account"]
[null,"Log in"]
[]
[null,"Namespaces"]
[]
[null,"Article"]
[null,"Talk"]
[]
[null,"Variants"]
[]
[null,"Views"]
[]
[null,"Read"]
[null,"Edit"]
[null,"View history"]
[]
[null,"More"]
[]
[null,"Search"]
[]
[null,"Navigation"]
[]
[null,"Main page"]
[null,"Contents"]
[null,"Featured content"]
[null,"Current events"]
[null,"Random article"]
[null,"Donate to Wikipedia"]
[null,"Wikimedia Shop"]
[]
[null,"Interaction"]
[]
[null,"Help"]
[null,"About Wikipedia"]
[null,"Community portal"]
[null,"Recent changes"]
[null,"Contact page"]
[]
[null,"Tools"]
[]
[null,"What links here"]
[null,"Related changes"]
[null,"Upload file"]
[null,"Special pages"]
[null,"Permanent link"]
[null,"Page information"]
[null,"Wikidata item"]
[null,"Cite this page"]
[]
[null,"Print/export"]
[]
[null,"Create a book"]
[null,"Download as PDF"]
[null,"Printable version"]
[]
[null,"Languages"]
[]
[null,"Edit links"]
[]
[null,"This page was last modified on 13 December 2014 at 22:55."]
[]
[null,"Text is available under the Creative Commons Attribution-ShareAlike License; additional terms may apply. By using this site, you agree to the Terms of Use and Privacy Policy. Wikipedia® is a registered trademark of the Wikimedia Foundation, Inc., a non-profit organization."]
[]
[null,"Privacy policy"]
[null,"About Wikipedia"]
[null,"Disclaimers"]
[null,"Contact Wikipedia"]
[null,"Developers"]
[null,"Mobile view"]
[]
[null,"Wikimedia Foundation"]
[null,"Powered by MediaWiki"]

{"sheet":"MountainList","index":1,"n_rows":1231,"n_cols":6,"rows_kept":1231,"cut":false,"hidden":false,"merged":[]}
["FROM:","Mark Biegert"]
["SUBJECT:","Cleaned Up List of Mountains From Wikipedia"]
["DATE:","2013-12-17"]
[]
["I have taken all the mountains from the RawWikipediaList tab and putting them into a single list."]
[]
[null,"Mountain","Metres","Feet","Range","Location and Notes"]
[null,"Everest",8848,29029,"Himalayas  ","Nepal/China (Tibet)"]
[null,"K2",8611,28251,"Karakoram  ","China/Pakistan (Gilgit–Baltistan) – The \"Savage Mountain\"."]
[null,"Kangchenjunga",8586,28169,"Himalayas  ","Nepal/India – Considered to be highest until 1849."]
[null,"Lhotse",8516,27940,"Himalayas  ","Nepal/China (Tibet) – Climbers ascend Lhotse Face in climbing Everest"]
[null,"Makalu",8462,27762,"Himalayas  ","Nepal/China (Tibet)"]
[null,"Cho Oyu",8201,26906,"Himalayas  ","Nepal/China (Tibet) – Considered \"easiest\" eight-thousander"]
[null,"Dhaulagiri",8167,26795,"Himalayas  ","Nepal – Presumed world's highest from 1808-1838"]
[null,"Manaslu",8156,26759,"Himalayas  ","Nepal"]
[null,"Nanga Parbat",8125,26657,"Himalayas  ","Pakistan"]
[null,"Annapurna",8091,26545,"Himalayas  ","Nepal – First eight-thousander to be climbed (1950)"]
[null,"Gasherbrum I",8068,26470,"Karakoram  ","China/Pakistan – Originally named K5"]
[null,"Broad Peak",8047,26401,"Karakoram  ","China/Pakistan – Originally named K3"]
[null,"Gasherbrum II",8035,26362,"Karakoram  ","China/Pakistan – Originally named K4"]
[null,"Shishapangma",8012,26286,"Himalayas  ","China (Tibet)"]
[null,"Gyachung Kang",7952,26089,"Himalayas  ","Nepal (Khumbu)/China (Tibet)"]
[null,"Gasherbrum III",7946,26070,"Karakoram  ","China/Pakistan"]
[null,"Annapurna II",7937,26040,"Himalayas  ","Nepal"]
[null,"Gasherbrum IV",7932,26024,"Karakoram  ","China/Pakistan"]
[null,"Himalchuli",7893,25896,"Himalayas  ","Manaslu, Nepal"]
[null,"Distaghil Sar",7885,25869,"Karakoram  ","Pakistan"]
[null,"Ngadi Chuli",7871,25823,"Himalayas  ","Manaslu, Nepal"]
[null,"Nuptse",7861,25791,"Himalayas  ","Everest Massif, Nepal"]
[null,"Khunyang Chhish",7852,25761,"Karakoram  ","Pakistan"]
[null,"Masherbrum",7821,25659,"Karakoram  ","Pakistan – Originally named K1"]
[null,"Nanda Devi",7816,25643,"Himalayas  ","India (Uttarakand) – #2 in India"]
[null,"Chomo Lonzo",7804,25604,"Himalayas  ","Makalu Massiff, Nepal/China (Tibet)"]
[null,"Batura Sar",7795,25574,"Karakoram  ","Pakistan"]
[null,"Kanjut Sar",7790,25558,"Karakoram  ","Pakistan"]
[null,"Rakaposhi",7788,25551,"Karakoram  ","Pakistan"]
[null,"Namcha Barwa",7782,25531,"Himalayas  ","China (Tibet)"]
[null,"Batura II",7762,25466,"Karakoram  ","Pakistan"]
[null,"Kamet",7756,25446,"Himalayas  ","India (Uttarakand)"]
[null,"Saltoro Kangri",7742,25400,"Karakoram  ","Kashmir, Pakistan/India"]
[null,"Batura III",7729,25358,"Karakoram  ","Pakistan"]
[null,"Kongur Tagh",7719,25325,"Kunlun Mountains  ","China – Possibly 7649? metres"]
[null,"Jannu",7710,25295,"Himalayas  ","Kangchenjunga, Nepal"]
[null,"Molamenqing",7710,25295,"Himalayas  ","Shishapangma group, China (Tibet)"]
[null,"Gurla Mandhata",7694,25243,"Himalayas (Nalakankar)  ","China (Tibet)"]
[null,"Tirich Mir",7690,25230,"Hindu Kush  ","Pakistan – #1 in Hindu Kush"]
[null,"Saser Kangri",7672,25171,"Karakoram  ","India"]
[null,"Chogolisa",7665,25148,"Karakoram  ","Pakistan"]
[null,"Shispare",7611,24970,"Karakoram  ","Pakistan"]
[null,"Changtse",7583,24879,"Himalayas  ","Everest Massif, China (Tibet)"]
[null,"Trivor",7577,24859,"Karakoram  ","Pakistan"]
[null,"Gangkhar Puensum",7570,24836,"Himalayas  ","Bhutan/China (Tibet)"]
[null,"Gongga Shan",7556,24790,"Daxue Shan  ","Sichuan, China"]
[null,"Annapurna III",7555,24787,"Himalayas  ","Nepal"]
[null,"Kula Kangri",7554,24783,"Himalayas  ","China (Tibet) (possibly also Bhutan)"]
[null,"Chogolisa II",7554,24783,"Karakoram  ","Pakistan"]
[null,"Muztagh Ata",7546,24757,"Kongur Tagh  ","China (Xinjiang)"]
[null,"Skyang Kangri",7545,24754,"Karakoram  ","Pakistan/China"]
[null,"Yukshin Gardan Sar",7530,24705,"Karakoram  ","Pakistan"]
[null,"Annapurna IV",7525,24688,"Himalayas  ","Nepal"]
[null,"Mamostong Kangri",7516,24659,"Karakoram  ","Kashmir, India"]
[null,"Ismoil Somoni Peak",7495,24590,"Pamir Mountains  ","Tajikistan"]
[null,"Noshaq",7492,24580,"Hindu Kush  ","Afghanistan – #1 in Afghanistan"]
[null,"Pumari Chhish",7492,24580,"Karakoram  ","Pakistan"]
[null,"Passu Sar",7476,24528,"Karakoram  ","Pakistan"]
[null,"Malubiting",7458,24469,"Karakoram  ","Pakistan"]
[null,"Gangapurna",7455,24459,"Annapurna Himalaya  ","Nepal"]
[null,"Jengish Chokusu",7439,24406,"Tian Shan  ","China/Kyrgyzstan – #1 in Tian Shan"]
[null,"K12",7428,24370,"Karakoram  ","Pakistan"]
[null,"Istor-o-Nal",7403,24288,"Hindu Kush  ","Pakistan"]
[null,"Ghent Kangri",7401,24281,"Karakoram  ","Pakistan"]
[null,"Haramosh Peak",7397,24268,"Karakoram  ","Pakistan"]
[null,"Kabru",7394,24259,"Himalayas  ","Kanchenjunga, India/Nepal"]
[null,"Ultar",7388,24239,"Karakoram  ","Pakistan"]
[null,"Rimo I",7385,24229,"Karakoram  ","India"]
[null,"Sherpi Kangri",7380,24213,"Karakoram  ","India"]
[null,"Labuche Kang",7367,24170,"Himalayas  ","near Cho Oyu, Nepal/China (Tibet)"]
[null,"Kirat Chuli",7365,24163,"Himalayas  ","Nepal/India border"]
[null,"Skil Brum",7360,24147,"Karakoram  ","Pakistan – May also be given as 7,410 m"]
[null,"Gimmigela Chuli",7350,24114,"Himalayas  ","Nepal/India border"]
[null,"Bojohagur Duanasir",7329,24045,"Karakoram  ","Pakistan"]
[null,"Chamlang",7319,24012,"Himalayas  ","Khumbu, Nepal"]
[null,"Jomolhari / Chomolhari",7314,23996,"Himalayas  ","Bhutan/China (Tibet)"]
[null,"Baltoro Kangri",7312,23990,"Karakoram  ","Pakistan"]
[null,"Siguang Ri",7308,23976,"Himalayas  ","China (Tibet)"]
[null,"The Crown",7295,23934,"Karakoram  ","China (Xinjiang)"]
[null,"Gyala Peri",7294,23930,"Himalayas  ","China (Tibet)"]
[null,"Porong Ri",7292,23924,"Himalayas  ","China (Tibet)"]
[null,"Baintha Brakk",7285,23901,"Karakoram  ","Pakistan"]
[null,"Yutmaru Sar",7283,23894,"Karakoram  ","Pakistan"]
[null,"K6",7282,23891,"Karakoram  ","Pakistan – Also known as Baltistan Peak"]
[null,"Kangpenqing",7281,23888,"Himalayas  ","China (Tibet)"]
[null,"Mana Peak",7272,23858,"Himalayas  ","India (Uttarakand) – SSE of Kamet"]
[null,"Muztagh Tower",7273,23862,"Karakoram  ","Pakistan"]
[null,"Diran",7257,23809,"Karakoram  ","Pakistan"]
[null,"Apsarasas Kangri",7245,23770,"Karakoram  ","China/Pakistan"]
[null,"Langtang Lirung",7227,23711,"Himalayas  ","Nepal"]
[null,"Khartaphu",7213,23665,"Himalayas  ","China (Tibet)"]
[null,"Tongshanjiabu",7207,23645,"Himalayas  ","Bhutan/China"]
[null,"Langtang Ri",7205,23638,"Himalayas  ","Nepal/China (Tibet)"]
[null,"Kangphu Kang",7204,23635,"Himalayas  ","Bhutan/China"]
[null,"Annapurna South",7219,23684,"Himalayas  ","Nepal"]
[null,"Melungtse",7181,23560,"Rolwaling Himalayas  ","China (Tibet)"]
[null,"Liushi Shan",7167,23514,"Kunlun  ","China – #1 in Kunlun"]
[null,"Baruntse",7162,23497,"Himalayas  ","Khumbu, Nepal"]
[null,"Pumori",7161,23494,"Himalayas  ","Khumbu, Nepal"]
[null,"Nemjung",7140,23425,"Himalayas  ","Nepal"]
[null,"Udren Zom",7140,23425,"Hindu Kush  ","Pakistan"]
[null,"Nun Kun",7135,23409,"Karakoram  ","India"]
[null,"Tilicho Peak",7134,23406,"Himalayas  ","Annapurna Himal, Nepal"]
[null,"Gauri Sankar",7134,23406,"Rolwaling Himalayas  ","Nepal/China (Tibet)"]
[null,"Lenin Peak",7134,23406,"Pamir Mountains  ","Tajikistan-Kyrgyzstan – #2 in Pamirs"]
[null,"Api",7132,23399,"Himalayas  ","Nepal"]
[null,"Pauhunri",7128,23386,"Himalayas  ","India/China (Tibet)"]
[null,"Korzhenevskaya",7105,23310,"Pamir Mountains  ","Tajikistan – #3 in Pamirs"]
[null,"Lunpo Gangri",7095,23278,"Himalayas (Gangdise)  ","China (Tibet)"]
[null,"Dunagiri",7066,23182,"Himalayas  ","India (Uttarakand)"]
[null,"Kangto",7060,23163,"Himalayas  ","India/China (Tibet)"]
[null,"Nyegyi Kansang",7047,23120,"Himalayas  ","India/China (Tibet)"]
[null,"Kezhen Peak",7038,23091,"Karakoram  ","China (Xinjiang)"]
[null,"Shah Dhar",7038,23091,"Hindu Kush  ","Afghanistan/Pakistan"]
[null,"Spantik",7027,23054,"Karakoram  ","Pakistan"]
[null,"Khan Tengri",7010,22999,"Tian Shan  ","Kyrgyzstan-Kazakhstan – #2 in Tian Shan"]
[null,"Machapuchare",6993,22943,"Annapurna Himalaya, Nepal – Officially unclimbed (attempts not allowed)"]
[null,"Kang Guru",6981,22904,"Manaslu Himalaya, Nepal – 2005 avalanche kills 18"]
[null,"Avicenna Peak",6974,22881,"Pamir Mountains, Tajikistan – #3 in Pamirs"]
[null,"Ulugh Muztagh",6973,22877,"Kunlun Mountains, Tibet – Often misquoted as 7,723 m"]
[null,"Aconcagua",6962,22841,"Andes, Argentina – Highest in both the Western and Southern Hemispheres"]
[null,"Lunkho e Dosare",6901,22641,"Hindu Kush, Afghanistan-Pakistan"]
[null,"Ojos del Salado",6891,22608,"Andes, Argentina-Chile – Highest volcano on Earth"]
[null,"Siniolchu",6888,22598,"Kangchenjunga Himalaya, India"]
[null,"Nanda Kot",6861,22510,"Kumaon Himalayas, India"]
[null,"Angel Sar",6858,22500,"Karakoram, Pakistan"]
[null,"Chongra Peak",6830,22408,"Nanga Parbat Himalaya, Pakistan"]
[null,"Ama Dablam",6812,22349,"Himalayas, Nepal (Khumbu)"]
[null,"Monte Pissis",6795,22293,"Andes, Argentina – Third highest in Western Hemisphere"]
[null,"Biarchedi",6781,22247,"Karakoram, Pakistan"]
[null,"Huascarán Sur",6768,22205,"Andes, Peru – Highest"]
[null,"Nevado Tres Cruces",6749,22142,"Andes, Argentina/Chile"]
[null,"Kawagarbo",6740,22113,"Himalayas, China (Yunnan/Tibet)"]
[null,"Llullaillaco",6739,22110,"Andes, Argentina/Chile"]
[null,"Cho Polu",6735,22096,"Himalayas, Nepal (Khumbu)"]
[null,"Pandim",6691,21952,"Himalayas, India (Sikkim)"]
[null,"Num Ri",6677,21906,"Himalayas, Nepal (Khumbu)"]
[null,"Gul Lasht Zom",6657,21841,"Hindu Kush, Pakistan"]
[null,"Huascarán Norte",6655,21834,"Andes, Peru"]
[null,"Khumbutse",6640,21785,"Himalayas, Nepal (Khumbu)/China (Tibet) – First peak west of Everest"]
[null,"Kailash",6638,21778,"Transhimalaya, western Tibet – Officially unclimbed (attempts not allowed)"]
[null,"Yerupajá",6635,21768,"Andes, Peru"]
[null,"Thamserku",6623,21729,"Himalayas, Nepal (Khumbu)"]
[null,"Incahuasi",6621,21722,"Andes, Argentina/Chile"]
[null,"Manirang",6597,21644,"Himalayas, India (Himachal Pradesh)"]
[null,"Nilkantha",6596,21640,"Himalayas, India (Uttarakhand)"]
[null,"Phuparash Peak",6574,21568,"Karakoram, Pakistan"]
[null,"Sickle Moon Peak",6574,21568,"Himalayas, Kashmir, India"]
[null,"Buni Zom",6551,21493,"Hindu Kush, Pakistan"]
[null,"Nevado Sajama",6542,21463,"Andes, Bolivia – Highest"]
[null,"Singu Chuli",6501,21329,"Annapurna Himalayas, Nepal"]
[null,"Taboche",6501,21329,"Himalayas, Nepal (Khumbu)"]
[null,"Cerro El Muerto",6488,21286,"Andes, Argentina/Chile"]
[null,"Mera Peak",6476,21247,"Himalayas, Nepal (Khumbu)"]
[null,"Illimani",6462,21201,"Andes, Bolivia"]
[null,"Hiunchuli",6441,21132,"Annapurna Himalaya, Nepal"]
[null,"Cholatse",6440,21129,"Himalayas, Nepal (Khumbu)"]
[null,"Ancohuma",6427,21086,"Andes, Bolivia"]
[null,"Coropuna",6425,21079,"Andes, Peru"]
[null,"Antofalla",6409,21027,"Andes, Argentina"]
[null,"Huandoy",6395,20981,"Andes, Peru"]
[null,"Illampu",6368,20892,"Andes, Bolivia"]
[null,"Kusum Kangguru",6367,20889,"Himalayas, Nepal (Khumbu)"]
[null,"Kinnaur Kailash",6349,20830,"Himalayas, Kinnaur, India"]
[null,"Parinaquta",6348,20827,"Andes, Bolivia/Chile"]
[null,"Siula Grande",6344,20814,"Andes, Peru"]
[null,"Bamba Dhura",6334,20781,"Uttarakhand Himalayas, India"]
[null,"Ampato",6288,20630,"Andes, Peru"]
[null,"Amne Machin",6282,20610,"Kunlun Mountains, China (Qinghai)"]
[null,"Pomerape",6282,20610,"Andes, Bolivia/Chile"]
[null,"Salcantay",6271,20574,"Andes, Peru"]
[null,"Chimborazo",6267,20561,"Ecuador – Furthest point from Earth's center"]
[null,"McKinley",6168,20236,"Alaska Range, United States (Alaska) – Highest in North America"]
[null,"Kongde Ri",6187,20299,"Himalayas, Nepal (Khumbu)"]
[null,"Aucanquilcha",6176,20262,"Andes, Chile"]
[null,"Imja Tse",6160,20210,"Himalayas, Nepal (Khumbu)"]
[null,"Stok Kangri",6137,20135,"Stok Range, Himalayas, India"]
[null,"Pisang Peak",6091,19984,"Annapurna Himalaya, Nepal"]
[null,"Huayna Potosí",6088,19974,"Andes, Bolivia"]
[null,"Aracar",6082,19954,"Andes, Argentina"]
[null,"Chachakumani",6074,19928,"Andes, Bolivia"]
[null,"Chachani",6057,19872,"Andes, Peru"]
[null,"Acotango",6052,19856,"Andes, Bolivia/Chile"]
[null,"Socompa",6051,19852,"Andes, Argentina/Chile"]
[null,"Acamarachi",6046,19836,"Andes, Chile"]
[null,"Mitre Peak",6010,19718,"Karakoram, Pakistan"]
[null,"Wallqa Wallqa",6025,19767,"Andes, Peru"]
[null,"Uturunku",6020,19751,"Andes, Bolivia"]
[null,"Logan",5959,19551,"Saint Elias Mountains  ","Yukon, Canada – Highest in Canada"]
[null,"Alpamayo",5947,19511,"Andes  ","Peru"]
[null,"Cerro Lípez",5929,19452,"Andes  ","Bolivia"]
[null,"Licancabur",5920,19423,"Andes  ","Bolivia/Chile"]
[null,"Cotopaxi",5897,19347,"Andes  ","Ecuador – Second highest in Ecuador"]
[null,"Kilimanjaro",5895,19341,"  ","Tanzania – Highest in Africa"]
[null,"Hkakabo Razi",5881,19295,"Himalayas  ","Myanmar – Highest in Southeast Asia"]
[null,"El Misti",5822,19101,"Andes  ","Peru"]
[null,"Cayambe",5790,18996,"Andes  ","Ecuador – Third highest in Ecuador"]
[null,"Pico Cristóbal Colón",5776,18950,"Sierra Nevada de Santa Marta  ","Colombia – Highest coastal mountain"]
[null,"Antisana",5753,18875,"Andes  ","Ecuador"]
[null,"Nevado Pisco",5752,18871,"Andes  ","Peru"]
[null,"Nevado Anallajsi",5750,18865,"Andes  ","Bolivia"]
[null,"Pokalde",5745,18848,"Khumbu Himalayas  ","Nepal – 7 km SW of Everest"]
[null,"Ubinas",5672,18609,"Andes  ","Peru – Active volcano (2006)"]
[null,"Elbrus",5642,18510,"Caucasus Mountains  ","North Caucasus, Russia – Highest in Caucasus"]
[null,"Mehrbani Peak",5639,18501,"Karakoram  ","Pakistan"]
[null,"Pico de Orizaba",5636,18491,"Trans-Mexican Volcanic Belt  ","Mexico – Highest in Mexico"]
[null,"Damavand",5610,18406,"Alborz  ","Iran – Highest in Iran and ME, highest volcano in Asia"]
[null,"Nevado Mismi",5597,18363,"Andes  ","Peru – Glacial source of the Amazon River"]
[null,"Jade Dragon Snow Mountain",5596,18360,"Hengduan Mountains  ","Yunnan, China"]
[null,"Lascar Volcano",5592,18346,"Andes  ","Chile"]
[null,"Kala Patthar",5545,18192,"Khumbu Himalayas  ","Nepal – Popular trekking peak"]
[null,"Saint Elias",5489,18009,"Saint Elias Mountains  ","Yukon, Canada/Alaska, USA – Second highest in both countries"]
[null,"Concord Peak",5469,17943,"Pamir Mountains  ","Afghanistan–Tajikistan"]
[null,"Machoi Peak",5458,17907,"Himalaya  ","Kashmir"]
[null,"El Plomo",5450,17881,"Andes  ","Chile"]
[null,"Bogda Feng",5445,17864,"Tien Shan  ","Xinjiang, China"]
[null,"Popocatépetl",5426,17802,"Trans-Mexican Volcanic Belt  ","Mexico – Second highest in Mexico"]
[null,"Kolahoi Peak",5425,17799,"Himalaya  ","Highest in Kashmir Valley"]
[null,"Chacaltaya",5421,17785,"Andes  ","Bolivia"]
[null,"Haba Xueshan",5396,17703,"Himalaya  ","Yunnan, China"]
[null,"Nevado del Ruiz",5389,17680,"Andes  ","Colombia – 23,000 people died in 1985 eruption"]
[null,"El Altar",5320,17454,"Andes  ","Ecuador"]
[null,"Foraker",5304,17402,"Alaska Range  ","Alaska, USA"]
[null,"Haramukh",5300,17388,"Himalaya  ","Kashmir valley"]
[null,"Maipo",5264,17270,"Andes  ","Argentina/Chile"]
[null,"Illiniza",5248,17218,"Andes  ","Ecuador"]
[null,"Sirbal Peak",5236,17178,"Himalaya  ","Kashmir Valley, India"]
[null,"Sangay",5230,17159,"Andes  ","Ecuador"]
[null,"Iztaccíhuatl",5230,17159,"Trans-Mexican Volcanic Belt  ","Mexico – Third highest in Mexico"]
[null,"Lucania",5226,17146,"Saint Elias Mountains  ","Yukon, Canada – Third highest in Canada"]
[null,"Dykh-Tau",5205,17077,"Caucasus Mountains  ","North Caucasus, Russia – Second highest in the Caucasus"]
[null,"Shkhara",5201,17064,"Caucasus Mountains  ","Georgia – Highest in Georgia"]
[null,"Kenya",5199,17057,"  ","Kenya – Highest in Kenya"]
[null,"Malika Parbat",5190,17028,"Himalaya  ","Kaghan Valley, Pakistan|Highest in Kaghan Valley of Pakistan"]
[null,"Amarnath Peak",5186,17014,"Himalaya  ","Kashmir Valley, India"]
[null,"King Peak",5173,16972,"Saint Elias Mountains  ","Yukon, Canada – Fourth highest in Canada"]
[null,"Boris Yeltsin Peak",5168,16955,"Teskey Ala-Too  ","Kyrgyzstan"]
[null,"Koshtan-Tau",5150,16896,"Caucasus Mountains  ","North Caucasus, Russia"]
[null,"Ararat",5137,16854,"  ","Turkey – Highest in Turkey"]
[null,"Stanley",5109,16762,"Ruwenzori Mountains  ","Congo/Uganda – Third highest in Africa"]
[null,"Steele",5073,16644,"Saint Elias Mountains  ","Yukon, Canada – Fifth highest in Canada"]
[null,"Janga",5051,16572,"Caucasus Mountains  ","Georgia / North Caucasus, Russia – Second highest in Georgia"]
[null,"Kazbek",5047,16558,"Caucasus Mountains  ","Georgia – Third highest in the country"]
[null,"Tungurahua",5023,16480,"Andes  ","Ecuador – Active volcano"]
[null,"Carihuairazo",5018,16463,"Andes  ","Ecuador"]
[null,"Bona",5005,16421,"Saint Elias Mountains  ","Alaska, USA – Also given as 5,030 m or 5,045m"]
[null,"Blackburn",4996,16391,"Wrangell Mtns., Alaska, USA (also given 5036 m)"]
[null,"Pico Bolívar",4981,16342,"Sierra Nevada de Mérida, Andes, Venezuela – Highest in Venezuela"]
[null,"Pik Talgar",4979,16335,"Tian Shan, Kazakhstan – Highest in northern Tian Shan"]
[null,"Sanford",4949,16237,"Wrangell Mtns., Alaska, USA"]
[null,"Pico Humboldt",4940,16207,"Sierra Nevada de Mérida, Andes, Venezuela"]
[null,"Vinson Massif",4892,16050,"Sentinel Range, Ellsworth Mountains, Antarctica – Highest in Antarctica"]
[null,"Pico Bonpland",4890,16043,"Sierra Nevada de Mérida, Andes, Venezuela"]
[null,"Puncak Jaya",4884,16024,"Sudirman Range, Papua, Indonesia – Highest in Indonesia"]
[null,"Pico La Concha",4870,15978,"Sierra Nevada de Mérida, Andes, Venezuela"]
[null,"Gistola",4860,15945,"Caucasus Mountains, Svaneti, Georgia"]
[null,"Shota Rustaveli Peak",4860,15945,"Caucasus Mountains, Svaneti, Georgia/North Caucasus, Russia"]
[null,"Tetnuldi",4858,15938,"Caucasus Mountains, Svaneti, Georgia"]
[null,"Tyree",4852,15919,"Sentinel Range, Ellsworth Mountains, Antarctica – Second Highest in Antarctica"]
[null,"Huaynaputina",4850,15912,"Andes, Peru"]
[null,"Alam Kuh",4850,15912,"Alborz, Iran – Second highest in Iran"]
[null,"Wood",4842,15886,"Saint Elias Mountains, Yukon, Canada"]
[null,"Vancouver",4812,15787,"Saint Elias Mountains, Yukon, Canada"]
[null,"Sabalan",4811,15784,"Iran"]
[null,"Mont Blanc",4810,15781,"Mont Blanc massif, France/Italy – Highest in Alps"]
[null,"Corazón",4790,15715,"Andes, Ecuador"]
[null,"Pichincha",4784,15696,"Andes, Ecuador"]
[null,"Jimara",4780,15682,"Khokh Range, Caucasus Mountains, Georgia"]
[null,"Churchill",4766,15636,"Saint Elias Mountains, Alaska, USA"]
[null,"Puncak Mandala",4760,15617,"Papua, Indonesia"]
[null,"Klyuchevskaya Sopka",4750,15584,"Kamchatka, Russia"]
[null,"Puncak Trikora",4750,15584,"Papua, Indonesia"]
[null,"Mont Blanc de Courmayeur",4748,15577,"Mont Blanc massif, France/Italy"]
[null,"Sunset Peak",4745,15568,"Himalaya, Kashmir Valley"]
[null,"Slaggard",4742,15558,"Saint Elias Mountains, Canada"]
[null,"Pico Piedras Blancas",4740,15551,"Sierra de la Culata, Andes, Venezuela"]
[null,"Pico El Toro",4730,15518,"Andes, Venezuela"]
[null,"Tatakooti Peak",4725,15502,"Himalaya, Kashmir Valley"]
[null,"Rumiñahui",4721,15489,"Andes, Ecuador"]
[null,"Pico El Leon",4720,15486,"Andes, Venezuela"]
[null,"Ushba",4710,15453,"Caucasus Mountains, Svaneti, Georgia"]
[null,"Volcán Domuyo",4709,15449,"Andes, Argentina"]
[null,"Pico Los Nevados",4700,15420,"Andes, Venezuela"]
[null,"Pico Pan de Azucar",4680,15354,"Sierra de la Culata, Andes, Venezuela"]
[null,"Naltar Peak",4678,15348,"Pakistan"]
[null,"Fairweather",4663,15299,"Fairweather Range, Alaska, USA"]
[null,"Pico Mucuñuque",4660,15289,"Andes, Venezuela"]
[null,"Pico El Buitre",4650,15256,"Andes, Venezuela"]
[null,"Sierra Negra",4640,15223,"Mexico"]
[null,"Monte Rosa",4634,15203,"Switzerland – Highest point in Switzerland"]
[null,"Nordend",4609,15121,"Pennine Alps, Switzerland-Italy"]
[null,"Hubbard",4577,15016,"Saint Elias Mountains"]
[null,"Nevado de Toluca",4577,15016,"Mexico"]
[null,"Meru",4566,14980,"Tanzania"]
[null,"Zumsteinspitze",4563,14970,"Pennine Alps, Switzerland-Italy"]
[null,"Dom",4545,14911,"Pennine Alps, Switzerland"]
[null,"Ras Dashen",4533,14872,"Ethiopia – Highest point in Ethiopia"]
[null,"Signalkuppe",4527,14852,"Pennine Alps, Switzerland-Italy"]
[null,"Lyskamm",4527,14852,"Pennine Alps, Switzerland-Italy"]
[null,"Bear",4521,14833,"Saint Elias Mountains, Alaska, USA"]
[null,"Wilhelm",4509,14793,"Papua, New Guinea"]
[null,"Karisimbi",4507,14787,"Virunga Mountains, Rwanda/DRC"]
[null,"Walsh",4507,14787,"Saint Elias Mountains, Canada"]
[null,"Belukha Mountain",4506,14783,"Altay Mountains, Russia"]
[null,"Weisshorn",4506,14783,"Pennine Alps, Switzerland"]
[null,"Tebulosmta",4493,14741,"Caucasus Mountains, Georgia/Chechnya, Russia"]
[null,"Täschhorn",4491,14734,"Pennine Alps, Switzerland"]
[null,"Bazarduzu Dagi",4485,14715,"Azerbaijan"]
[null,"Matterhorn",4478,14692,"Pennine Alps, Switzerland/Italy"]
[null,"Rutford",4477,14688,"Sentinel Range, Ellsworth Mountains, Antarctica"]
[null,"Mont Maudit",4465,14649,"Mont Blanc massif, France/Italy"]
[null,"Babis Mta",4454,14613,"Caucasus Mountains, Georgia/Russia"]
[null,"Shani",4451,14603,"Caucasus Mountains, Georgia/Russia"]
[null,"Dena",4448,14593,"Zagros Mountains Iran"]
[null,"Vladimir Putin Peak",4446,14587,"Kyrgyz Alatau, Kyrgyzstan"]
[null,"Hunter",4442,14573,"Alaska Range, Alaska, USA"]
[null,"Whitney",4421,14505,"Sierra Nevada, California, USA"]
[null,"Alverstone",4420,14501,"Saint Elias Mountains, Alaska, USA/Yukon, Canada"]
[null,"University Peak",4411,14472,"Saint Elias Mountains, Alaska, USA"]
[null,"Aello Peak",4403,14446,"Saint Elias Mountains, Alaska, USA"]
[null,"Elbert",4402,14442,"Sawatch Range, Colorado, USA"]
[null,"Massive",4395,14419,"Sawatch Range, Colorado, USA"]
[null,"Harvard",4395,14419,"Sawatch Range, Colorado, USA"]
[null,"Rainier",4392,14409,"Cascades, Washington, USA"]
[null,"Kholeno",4387,14393,"Alborz, Iran"]
[null,"Williamson",4382,14377,"Sierra Nevada, California, USA"]
[null,"Tavan Bogd Uul",4374,14350,"Bayan-Ölgii Province, Mongolia"]
[null,"Blanca Peak",4374,14350,"Rocky Mountains, Colorado, USA"]
[null,"La Plata Peak",4370,14337,"Sawatch Range, Colorado, USA"]
[null,"Giluwe",4368,14331,"Papua New Guinea"]
[null,"Burchula",4364,14318,"Caucasus Mountains, Georgia"]
[null,"Uncompahgre Peak",4361,14308,"San Juan Mountains, Colorado, USA"]
[null,"Dent Blanche",4357,14295,"Pennine Alps, Switzerland"]
[null,"Crestone Peak",4357,14295,"Sangre de Cristo Range, Colorado, USA"]
[null,"Lincoln",4354,14285,"Mosquito Range, Colorado, USA"]
[null,"Azad Kuh",4355,14288,"Alborz, Iran"]
[null,"Grays Peak",4350,14272,"Front Range, Colorado, USA"]
[null,"Evans",4350,14272,"Front Range, Colorado, USA"]
[null,"Quandary Peak",4350,14272,"Tenmile Range, Colorado, USA"]
[null,"Lalveri",4350,14272,"Caucasus Mountains, Svaneti, Georgia"]
[null,"Antero",4349,14268,"Sawatch Range, Colorado, USA"]
[null,"Torreys Peak",4349,14268,"Front Range, Colorado, USA"]
[null,"Castle Peak",4348,14265,"Elk Mountains, Colorado, USA"]
[null,"Longs Peak",4345,14255,"Front Range, Colorado, USA"]
[null,"McArthur Peak",4344,14252,"Saint Elias Mountains, Yukon"]
[null,"Wilsion",4342,14245,"San Juan Mountains, Colorado, USA"]
[null,"White Mountain Peak",4342,14245,"White Mountains, California, USA"]
[null,"North Palisade",4341,14242,"Sierra Nevada, California, USA"]
[null,"Shavano",4337,14229,"Sawatch Range, Colorado, USA"]
[null,"Colima",4330,14206,"Mexico"]
[null,"Crestone Needle",4327,14196,"Sangre de Cristo Range, Colorado, USA"]
[null,"Belford",4327,14196,"Sawatch Range, Colorado, USA"]
[null,"Princeton",4327,14196,"Sawatch Range, Colorado, USA"]
[null,"Shasta",4322,14180,"California, USA"]
[null,"Elgon",4321,14177,"Uganda-Kenya"]
[null,"Bross",4320,14173,"Mosquito Range, Colorado, USA"]
[null,"Kit Carson Mountain",4318,14167,"Sangre de Cristo Range, Colorado, USA"]
[null,"Wrangell",4317,14163,"Alaska, USA"]
[null,"Maroon Peak",4315,14157,"Elk Mountains, Colorado, USA"]
[null,"Tabeguache Peak",4315,14157,"Sawatch Range, Colorado, USA"]
[null,"El Diente Peak",4315,14157,"San Juan Mountains, Colorado, USA"]
[null,"Sill",4314,14154,"Sierra Nevada, California, USA"]
[null,"Grand Combin",4313,14150,"Pennine Alps, Switzerland"]
[null,"Oxford (Colorado)",4313,14150,"Sawatch Range, Colorado, USA"]
[null,"Sneffels",4312,14147,"San Juan Mountains, Colorado, USA"]
[null,"Democrat",4312,14147,"Mosquito Range, Colorado, USA"]
[null,"Capitol Peak",4307,14131,"Elk Mountains, Colorado, USA"]
[null,"Pikes Peak",4302,14114,"Colorado, USA"]
[null,"Snowmass Mountain",4295,14091,"Elk Mountains, Colorado, USA"]
[null,"Lenzspitze",4294,14088,"Pennine Alps, Switzerland"]
[null,"Russell",4296,14094,"Sierra Nevada, California, USA"]
[null,"Eolus",4292,14081,"San Juan Mountains, Colorado, USA"]
[null,"Windom Peak",4292,14081,"San Juan Mountains, Colorado, USA"]
[null,"Challenger Point",4292,14081,"Sangre de Cristo Range, Colorado, USA"]
[null,"Columbia",4291,14078,"Sawatch Range, Colorado, USA"]
[null,"Adishi",4290,14075,"Caucasus Mountains, Svaneti, Georgia"]
[null,"Augusta",4290,14075,"Saint Elias Mountains, Alaska, USA"]
[null,"Humboldt Peak (Colorado)",4287,14065,"Sangre de Cristo Range, Colorado, USA"]
[null,"Split Mountain",4287,14065,"Sierra Nevada, California, USA"]
[null,"Bierstadt",4286,14062,"Front Range, Colorado, USA"]
[null,"Diklosmta",4285,14058,"Caucasus Mountains, Tusheti, Georgia"]
[null,"Sunlight Peak",4285,14058,"San Juan Mountains, Colorado, USA"]
[null,"Missouri Mountain",4282,14049,"Sawatch Range, Colorado, USA"]
[null,"Culebra Peak",4282,14049,"Colorado, USA"]
[null,"Handies Peak",4281,14045,"San Juan Mountains, Colorado, USA"]
[null,"Ellingwood Point",4280,14042,"Sangre de Cristo Range, Colorado, USA"]
[null,"Lindsey",4280,14042,"Sangre de Cristo Range, Colorado, USA"]
[null,"Little Bear Peak",4279,14039,"Sangre de Cristo Range, Colorado, USA"]
[null,"Sherman",4278,14035,"Mosquito Range, Colorado, USA"]
[null,"Redcloud Peak",4277,14032,"San Juan Mountains, Colorado, USA"]
[null,"Galeras",4276,14029,"Andes, Columbia"]
[null,"Langley",4275,14026,"Sierra Nevada, California, USA"]
[null,"Finsteraarhorn",4274,14022,"Bernese Alps, Switzerland"]
[null,"Pyramid Peak",4273,14019,"Elk Mountains, Colorado, USA"]
[null,"Tyndall",4273,14019,"Sierra Nevada, California, USA"]
[null,"Wilson Peak",4272,14016,"San Juan Mountains, Colorado, USA"]
[null,"Muir",4272,14016,"Sierra Nevada, California, USA"]
[null,"San Luis Peak",4271,14012,"San Juan Mountains, Colorado, USA"]
[null,"Wetterhorn Peak",4271,14012,"San Juan Mountains, Colorado, USA"]
[null,"Middle Palisade",4271,14012,"Sierra Nevada, California, USA"]
[null,"Huron Peak",4269,14006,"Sawatch Range, Colorado, USA"]
[null,"of the Holy Cross",4269,14006,"Sawatch Range, Colorado, USA"]
[null,"Thunderbolt Peak",4268,14003,"Sierra Nevada, California, USA"]
[null,"Sunshine Peak",4268,14003,"San Juan Mountains, Colorado, USA"]
[null,"Strickland",4260,13976,"Saint Elias Mountains, Yukon, Canada"]
[null,"Pigeon Peak",4259,13973,"San Juan Mountains, Colorado, USA"]
[null,"Kennedy",4250,13944,"Saint Elias Mountains, Yukon, Canada"]
[null,"Pointe Bayeux",4258,13970,"Graian Alps, Mont Blanc massif, France"]
[null,"Mont Blanc du Tacul",4248,13937,"Graian Alps, Mont Blanc massif, France"]
[null,"Stecknadelhorn",4241,13914,"Pennine Alps, Switzerland"]
[null,"Avalanche Peak",4228,13871,"Saint Elias Mountains, Yukon, Canada"]
[null,"Zinalrothorn",4221,13848,"Pennine Alps, Switzerland"]
[null,"Volcán Tajumulco",4220,13845,"Guatemala"]
[null,"Hohberghorn",4219,13842,"Pennine Alps, Switzerland"]
[null,"Turret Peak",4217,13835,"Needle Mountains, Colorado, USA"]
[null,"Darwin",4216,13832,"Sierra Nevada, California, USA"]
[null,"Hayes",4216,13832,"Alaska, USA"]
[null,"Sacabaya",4215,13829,"Bolivia"]
[null,"Grandes Jorasses",4208,13806,"Mont Blanc massif, France/Italy"]
[null,"Gannett Peak",4208,13806,"Wind River Range, Wyoming, USA"]
[null,"Mauna Kea",4207,13802,"Hawaii, USA"]
[null,"Alphubel",4206,13799,"Pennine Alps, Switzerland"]
[null,"Mauna Kea",4205,13796,"Hawaii, USA (highest mountain base to summit)"]
[null,"Cofre de Perote",4201,13783,"Mexico"]
[null,"Zard-Kuh",4200,13780,"Zagros Mountains Iran"]
[null,"Shah Alborz",4200,13780,"Alborz, Iran"]
[null,"Rimpfischhorn",4199,13776,"Pennine Alps, Switzerland"]
[null,"Grand Teton",4199,13776,"Teton Range, Wyoming, USA"]
[null,"Cook",4196,13766,"Saint Elias Mountains, Canada/USA"]
[null,"Aletschhorn",4192,13753,"Bernese Alps, Switzerland"]
[null,"Strahlhorn",4190,13747,"Pennine Alps, Switzerland"]
[null,"Fremont Peak",4189,13743,"Wind River Range, Wyoming, USA"]
[null,"Warren",4182,13720,"Wind River Range, Wyoming, USA"]
[null,"Sidley",4181,13717,"Antarctica"]
[null,"Dent d'Hérens",4171,13684,"Pennine Alps, Switzerland"]
[null,"Mauna Loa",4171,13684,"Hawaii, USA"]
[null,"Jbel Toubkal",4167,13671,"Atlas Mountains, Morocco"]
[null,"Minto",4165,13665,"Antarctica"]
[null,"Breithorn",4165,13665,"Pennine Alps, Switzerland/Italy"]
[null,"Jungfrau",4158,13642,"Bernese Alps, Switzerland"]
[null,"Bishorn",4153,13625,"Pennine Alps, Switzerland"]
[null,"Helen",4151,13619,"Wind River Range, Wyoming, USA"]
[null,"El Mela",4150,13615,"Andes, Argentina"]
[null,"Quincy Adams",4150,13615,"Fairweather Range, Canada/USA"]
[null,"Doublet Peak",4145,13599,"Wind River Range, Wyoming, USA"]
[null,"Turret Peak",4145,13599,"Wind River Range, Wyoming, USA"]
[null,"Parnassus (Colorado)",4137,13573,"Front Range, Rocky Mountains, Colorado, USA"]
[null,"Uludoruk (Reşko / Gelyaşin)",4137,13573,"Cilo Daglari Hakkari, Turkey"]
[null,"Sacagawea",4136,13570,"Wind River Range, Wyoming, USA"]
[null,"Dubois",4135,13566,"White Mountains, California, USA"]
[null,"Kings Peak",4125,13533,"Uinta Range, Utah, USA"]
[null,"Aiguille Verte",4122,13524,"Mont Blanc massif, France"]
[null,"Bangeta",4121,13520,"Papua New Guinea"]
[null,"Dickerson",4120,13517,"Queen Alexandra Range, Antarctica"]
[null,"Jackson Peak",4120,13517,"Wind River Range, Wyoming, USA"]
[null,"Woodrow Wilson",4115,13501,"Wind River Range, Wyoming, USA"]
[null,"Aiguilles du Diable",4014,13169,"Graian Alps, Mont Blanc massif, France"]
[null,"Bastion Peak",4113,13494,"Wind River Range, Wyoming"]
[null,"Aiguille Blanche de Peuterey",4112,13491,"Mont Blanc massif, Italy"]
[null,"Mönch",4107,13474,"Bernese Alps, Switzerland"]
[null,"Febbas",4105,13468,"Wind River Range, Wyoming, USA"]
[null,"Barre des Écrins",4102,13458,"Dauphiné Alps, France"]
[null,"Aragats",4095,13435,"Armenia"]
[null,"Cameroon",4095,13435,"Cameroon"]
[null,"Kinabalu",4095,13435,"Sabah, Malaysia – Highest in Malaysia"]
[null,"Grizzly Peak D",4093,13428,"Front Range, Rocky Mountains, Colorado, USA"]
[null,"Pollux",4092,13425,"Pennine Alps, Switzerland"]
[null,"Kīlauea",4091,13422,"Hawaii, USA"]
[null,"Wade",4085,13402,"Prince Olav Mountains, Antarctica"]
[null,"Victoria",4072,13360,"Papua New Guinea"]
[null,"Centennial Peak",4070,13353,"Prince Olav Mountains, Antarctica"]
[null,"Gran Paradiso",4061,13323,"Graian Alps, Italy"]
[null,"Ober Gabelhorn",4053,13297,"Pennine Alps, Switzerland"]
[null,"Piz Bernina",4049,13284,"Bernina Alps, Switzerland"]
[null,"Fiescherhorn",4049,13284,"Bernese Alps, Switzerland"]
[null,"Grünhorn",4043,13264,"Bernese Alps, Switzerland"]
[null,"Lauteraarhorn",4042,13261,"Bernese Alps, Switzerland"]
[null,"Aiguille du Géant",4035,13238,"Graian Alps, Mont Blanc massif, France"]
[null,"Sniktau",4034,13235,"Front Range, Rocky Mountains, Colorado, USA"]
[null,"Allalinhorn",4027,13212,"Pennine Alps, Switzerland"]
[null,"Wind River Peak",4021,13192,"Wind River Range, Wyoming, USA"]
[null,"Latsga",4019,13186,"Caucasus Mountains, Svaneti, Georgia"]
[null,"Weissmies",4017,13179,"Pennine Alps, Switzerland"]
[null,"Waddington",4016,13176,"British Columbia, Canada"]
[null,"Marcus Baker",4016,13176,"Chugach Range, Alaska, USA"]
[null,"Dôme de neige des Écrins",4015,13173,"Dauphiné Alps, France"]
[null,"Conejos Peak",4015,13173,"San Juan Mountains, Colorado, USA"]
[null,"Dent du Géant",4013,13166,"Mont Blanc massif, France/Italy"]
[null,"Red Slate Mountain",4013,13166,"Sierra Nevada, California, USA"]
[null,"Cloud Peak",4013,13166,"Big Horn Mountains, Wyoming, USA"]
[null,"Wheeler Peak",4012,13163,"Sangre de Cristo Mountains, New Mexico, USA"]
[null,"Lagginhorn",4010,13156,"Pennine Alps, Switzerland"]
[null,"Twilight Peak",4010,13156,"San Juan Mountains, Colorado, USA"]
[null,"Francs Peak",4009,13153,"Absaroka Range, Wyoming, USA"]
[null,"Walter",4005,13140,"New Mexico, USA"]
[null,"Les Droites",4000,13123,"Mont Blanc massif, France"]
[null,"Piz Zupò",3995,13107,"Bernina Range, Switzerland"]
[null,"Truchas Peak",3994,13104,"Sangre de Cristo Mountains, New Mexico"]
[null,"Fletschhorn",3993,13100,"Pennine Alps, Switzerland"]
[null,"Albert Edward",3990,13091,"Papua New Guinea"]
[null,"La Meije",3987,13081,"Dauphiné Alps, France"]
[null,"Wheeler Peak",3982,13064,"Snake Range, Nevada"]
[null,"Dana",3981,13061,"California"]
[null,"Acatenango",3976,13045,"Guatemala"]
[null,"Piz Roseg",3973,13035,"Bernina Range, Switzerland"]
[null,"Piz Scerscen",3971,13028,"Bernina Range, Switzerland"]
[null,"Eiger",3970,13025,"Bernese Oberland, Switzerland"]
[null,"Tochal",3964,13005,"Alborz, Iran"]
[null,"Black Tooth Mountain",3964,13005,"Bighorn Mountains, Wyoming"]
[null,"Grand Cornier",3962,12999,"Pennine Alps, Switzerland"]
[null,"Owen",3957,12982,"Teton Range, Wyoming"]
[null,"Ailefroide",3954,12972,"Dauphiné Alps, France"]
[null,"Robson",3954,12972,"Highest point in the Canadian Rockies"]
[null,"Descabezado Grande",3953,12969,"Chile"]
[null,"Yu Shan (Jade)",3952,12966,"Highest point in Taiwan"]
[null,"Mont Pelvoux",3946,12946,"Dauphiné Alps, France"]
[null,"Julian",3940,12927,"Colorado, USA"]
[null,"Erciyes",3916,12848,"Central Anatolia, Turkey"]
[null,"Bomber Mountain",3914,12841,"Bighorn Range, Wyoming, USA"]
[null,"Pic Sans Nom",3919,12858,"Dauphiné Alps, France"]
[null,"Jicarita Peak",3912,12835,"Sangre de Cristo Mountains, New Mexico"]
[null,"Ortler",3905,12812,"Italy South Tyrol"]
[null,"Piz Palü",3905,12812,"Bernina Range, Switzerland"]
[null,"Middle Teton",3903,12805,"Teton Range, Wyoming"]
[null,"Aiguille d'Argentière",3902,12802,"Mont Blanc massif, France/Switzerland"]
[null,"Granite Peak",3901,12799,"Montana, USA – Highest point"]
[null,"Gibbs",3893,12772,"Sierra Nevada, California, USA"]
[null,"Crillon",3879,12726,"Fairweather Range, Alaska, USA"]
[null,"Mont Blanc de Cheilon",3870,12697,"Pennine Alps, Switzerland"]
[null,"Aiguille du Goûter",3863,12674,"Graian Alps, Mont Blanc massif, France"]
[null,"Borah Peak",3861,12667,"Idaho, USA – Highest point"]
[null,"Grande Casse",3855,12648,"Vanoise Massif, France"]
[null,"Humphreys Peak",3852,12638,"Arizona, USA – Highest point"]
[null,"Santa Fe Baldy",3847,12621,"Sangre de Cristo Mountains, New Mexico"]
[null,"Baldwin",3845,12615,"Sierra Nevada, California, USA"]
[null,"Aiguille du Midi",3842,12605,"Graian Alps, Mont Blanc Massif, France"]
[null,"Moran",3842,12605,"Wyoming, USA"]
[null,"Monte Viso",3841,12602,"Italian Alps"]
[null,"Nesthorn",3822,12539,"Bernese Alps, Switzerland"]
[null,"Cerro Chirripó",3820,12533,"Highest in Costa Rica"]
[null,"Aiguille des Glaciers",3816,12520,"Mont Blanc massif, France/Italy"]
[null,"South Teton",3814,12513,"Teton Range, Wyoming"]
[null,"La Râteau",3809,12497,"Dauphiné Alps, France"]
[null,"Kerinci",3800,12467,"Highest volcano in Indonesia"]
[null,"Großglockner",3798,12461,"Austria – Highest point"]
[null,"Pigne d'Arolla",3796,12454,"Pennine Alps, Switzerland"]
[null,"Erebus",3794,12448,"Antarctica – Southernmost active volcano"]
[null,"Mont Pourri",3779,12398,"Vanoise Massif, France"]
[null,"Fuji",3776,12388,"Japan – Highest in Japan"]
[null,"Wildspitze",3774,12382,"Austria"]
[null,"Greenhorn Mountain",3763,12346,"Wet Mountains, Colorado, USA"]
[null,"Volcán de Fuego",3763,12346,"Guatemala"]
[null,"Teewinot Mountain",3757,12326,"Teton Range, Wyoming, USA"]
[null,"Aiguille du Dru",3754,12316,"Graian Alps, France"]
[null,"Aoraki/Cook",3754,12316,"New Zealand – Highest point"]
[null,"Pointe de Charbonnel",3752,12310,"Vanoise Massif, France"]
[null,"Piz Morteratsch",3751,12306,"Bernina Range, Switzerland"]
[null,"Davis",3750,12303,"California, USA"]
[null,"Morrison",3750,12303,"California, USA"]
[null,"Aiguille de la Grande Sassière",3747,12293,"Graian Alps, France"]
[null,"Lanín",3747,12293,"Chile/Argentina"]
[null,"Columbia",3747,12293,"Canadian Rockies – Highest in Alberta"]
[null,"Adams",3743,12280,"Washington, USA"]
[null,"Teepe Pillar",3739,12267,"Teton Range, Wyoming, USA"]
[null,"Weißkugel",3739,12267,"Alps, Austria/Italy"]
[null,"Minarets",3735,12254,"Sierra Nevada, California"]
[null,"Huntington",3731,12241,"Alaska Range, Alaska, USA"]
[null,"Rinjani",3726,12224,"Indonesia"]
[null,"Cerro del Potosí",3721,12208,"Mexico"]
[null,"Teide",3718,12198,"Canary Islands"]
[null,"Asperity Mountain",3716,12192,"Waddington Range"]
[null,"Sahand",3707,12162,"East Azerbaijan, Iran"]
[null,"Monte San Lorenzo",3706,12159,"Patagonia, Argentina-Chile"]
[null,"Wetterhorn",3701,12142,"Bernese Alps, Switzerland"]
[null,"Dent Parrachée",3697,12129,"Vanoise massif, France"]
[null,"Gunnbjørn",3694,12119,"highest in Greenland"]
[null,"North Twin Peak",3684,12087,"Canadian Rockies"]
[null,"Monte Disgrazia",3678,12067,"Bregaglia, Switzerland"]
[null,"Semeru",3676,12060,"Java, Indonesia"]
[null,"Les Bans",3669,12037,"Ecrins, France"]
[null,"Cloudveil Dome",3666,12028,"Teton Range, Wyoming, USA"]
[null,"Thor Peak",3666,12028,"Teton Range, Wyoming, USA"]
[null,"Medicine Bow Peak",3661,12011,"Wyoming, USA"]
[null,"Hyndman Peak",3660,12008,"Idaho, USA"]
[null,"Clemenceau",3658,12001,"Canadian Rockies"]
[null,"Frakes",3654,11988,"Crary Mountains, Antarctica"]
[null,"Grande Motte",3853,12641,"Vanoise Massif, France"]
[null,"Sierra Blanca",3652,11982,"Sacramento Mountains, New Mexico"]
[null,"Pointe de la Fournache",3639,11939,"Vanoise massif, France"]
[null,"Buck Mountain",3639,11939,"Teton Range, Wyoming"]
[null,"Nebo",3636,11929,"Utah, USA"]
[null,"Charleston",3632,11916,"Nevada, USA"]
[null,"Hintere Schwärze",3628,11903,"Ötztal Alps, Austria/Italy"]
[null,"Nez Perce Peak",3627,11900,"Teton Range, Wyoming, USA"]
[null,"Alberta",3619,11873,"Canadian Rockies"]
[null,"Assiniboine",3618,11870,"Canadian Rockies"]
[null,"Tödi",3614,11857,"Swiss Alps"]
[null,"Forbes",3612,11850,"Canadian Rockies"]
[null,"Lautaro",3607,11834,"Patagonia, Chile"]
[null,"Dôme de la Sache",3601,11814,"Vanoise massif, France"]
[null,"Castle Peak",3601,11814,"Idaho, USA"]
[null,"Dôme de l'Arpont",3599,11808,"Vanoise massif, France"]
[null,"Dôme de Chasseforêt",3586,11765,"Vanoise massif, France"]
[null,"Makra Peak",3586,11765,"Pakistan"]
[null,"Sierra Velluda",3585,11762,"Chile"]
[null,"Grand Roc Noir",3582,11752,"Vanoise massif, France"]
[null,"Timpanogos",3582,11752,"Utah, USA"]
[null,"Dôme des Nants",3570,11713,"Vanoise massif, France"]
[null,"Ryan Peak",3570,11713,"Idaho, USA"]
[null,"South Twin Peak",3566,11699,"Canadian Rockies"]
[null,"Olan",3564,11693,"Ecrins, France"]
[null,"Aiguille de Péclet",3561,11683,"Vanoise massif, France"]
[null,"Presanella",3558,11673,"Adamello-Presanella, Italy"]
[null,"Steere",3558,11673,"Antarctica"]
[null,"Monarch Mountain",3555,11663,"Pacific Ranges, British Columbia, Canada"]
[null,"Monte Leone",3552,11654,"Lepontine Alps, Switzerland"]
[null,"Mont Turia",3550,11647,"Vanoise massif, France"]
[null,"Temple",3543,11624,"Canadian Rockies"]
[null,"Disappointment Peak",3541,11617,"Teton Range, Wyoming"]
[null,"Woodring",3533,11591,"Teton Range, Wyoming"]
[null,"Aiguille de Polset",3531,11585,"Vanoise Massif, France"]
[null,"Snow Dome",3520,11549,"Canadian Rockies"]
[null,"Aiguilles d'Arves",3515,11532,"Arve Massif, France"]
[null,"Mont de Gébroulaz",3511,11519,"Vanoise massif, France"]
[null,"San Gorgonio",3505,11499,"California, USA"]
[null,"Kitchener",3505,11499,"Canadian Rockies"]
[null,"Zuckerhütl",3505,11499,"Stubai Alps, Austria"]
[null,"Wister",3502,11490,"Teton Range, Wyoming"]
[null,"Saskatchewan",3500,11483,"Yukon, Canada"]
[null,"Tasman",3497,11473,"Southern Alps, New Zealand"]
[null,"Dôme de Chasseforêt",3479,11414,"Vanoise massif, France"]
[null,"Hungabee",3492,11457,"Canadian Rockies"]
[null,"Athabasca",3491,11453,"Canadian Rockies"]
[null,"Tronador",3491,11453,"Chile/Argentina"]
[null,"Saint John",3484,11430,"Teton Range, Wyoming"]
[null,"Thabana Ntlenyana",3482,11424,"Drakensberg, Africa"]
[null,"Pointes du Châtelard",3479,11414,"Vanoise massif, France"]
[null,"Mulhacén",3479,11414,"Spain"]
[null,"Berlin",3478,11411,"Flood Range, Antarctica"]
[null,"Volcán Barú",3475,11401,"Chiriquí, Panama"]
[null,"Roc des Saints Pères",3470,11385,"Vanoise massif, France"]
[null,"Brazeau",3470,11385,"Canadian Rockies"]
[null,"Nyiragongo",3470,11385,"Virunga Mountains, DRC"]
[null,"Ruby Dome",3470,11385,"Ruby Mountains, Nevada"]
[null,"Roche de la Muzelle",3465,11368,"Dauphine Alps, France"]
[null,"Victoria",3464,11365,"Canadian Rockies"]
[null,"Abajo Peak",3463,11362,"Abajo Mountains, Utah"]
[null,"Eagle Peak",3462,11358,"Absaroka Range, Wyoming, USA"]
[null,"Doane Peak",3461,11355,"Teton Range, Wyoming, USA"]
[null,"Ranger Peak",3461,11355,"Teton range, Wyoming, USA"]
[null,"Cerro de la Muerte",3451,11322,"Second highest in Costa Rica"]
[null,"Furgghorn",3451,11322,"Pennine Alps, Switzerland"]
[null,"Andromeda",3450,11319,"Canadian Rockies"]
[null,"Joffre",3449,11316,"Canadian Rockies"]
[null,"Hilgard Peak",3449,11316,"Madison Range, Montana, USA"]
[null,"Static Peak",3445,11302,"Teton Range, Wyoming, USA"]
[null,"Pointe de la Sana",3436,11273,"Vanoise massif, France"]
[null,"Eagles Rest Peak",3431,11257,"Teton Range, Wyoming, USA"]
[null,"Irazú Volcano",3431,11257,"Costa Rica"]
[null,"Hood",3429,11250,"Cascade Range, Oregon, USA"]
[null,"Deltaform Mountain",3424,11234,"Canadian Rockies"]
[null,"Lefroy",3423,11230,"Canadian Rockies"]
[null,"Pointe de l'Échelle",3422,11227,"Vanoise massif, France"]
[null,"Pointe du Bouchet",3420,11220,"Vanoise massif, France"]
[null,"Fitzgerald",3418,11214,"Ruby Mountains, Nevada, USA"]
[null,"Bellecôte",3417,11211,"Vanoise massif, France"]
[null,"Crazy Peak",3417,11211,"Montana, USA"]
[null,"Emi Koussi",3415,11204,"Tibesti Mountains, Chad"]
[null,"Piz Linard",3410,11188,"Switzerland"]
[null,"Woolley",3405,11171,"Canadian Rockies"]
[null,"Aneto",3404,11168,"Pyrenees, Spain"]
[null,"Fluchthorn",3399,11152,"Silvretta, Austria-Switzerland"]
[null,"Grand Bec",3398,11148,"Vanoise massif, France"]
[null,"Rockchuck Peak",3397,11145,"Teton Range, Wyoming"]
[null,"Hector",3394,11135,"Canadian Rockies"]
[null,"Piz Platta",3392,11129,"Swiss Alps"]
[null,"Telescope Peak",3392,11129,"Death Valley"]
[null,"Champagne Castle",3377,11079,"Drakensberg, South Africa"]
[null,"Pic Uzu",3376,11076,"Tibesti, Libya-Chad"]
[null,"Cerro Chaltén",3375,11073,"Patagonia, Argentina-Chile"]
[null,"Spurr",3374,11070,"Alaska"]
[null,"Pointe du Vallonnet",3372,11063,"Vanoise massif, France"]
[null,"Mammoth Mountain",3371,11060,"California"]
[null,"Fründenhorn",3369,11053,"Bernese Alps, Switzerland"]
[null,"Pointe Renod",3368,11050,"Vanoise massif, France"]
[null,"Traverse Peak",3368,11050,"Teton Range, Wyoming"]
[null,"Edith Cavell",3363,11033,"Canadian Rockies"]
[null,"Dôme des Sonnailles",3361,11027,"Vanoise massif, France"]
[null,"Agepsta",3357,11014,"Gagra Range, Abkhazia, Georgia"]
[null,"Munday",3356,11010,"Pacific Ranges, B.C., Canada"]
[null,"Pointe de Claret",3355,11007,"Vanoise massif, France"]
[null,"Monte Perdido",3355,11007,"Pyrenees"]
[null,"Electric Peak",3343,10968,"Gallatin Range, Montana"]
[null,"Saskatchewan",3342,10965,"Canadian Rockies"]
[null,"Cerro Fábrega",3335,10942,"Bocas Del Toro, Panama"]
[null,"Ward Mountain",3333,10935,"Nevada, USA"]
[null,"Pointe de Méan Martin",3330,10925,"Vanoise massif, France"]
[null,"Dôme de Polset",3326,10912,"Vanoise massif, France"]
[null,"Cathedral Peak",3326,10912,"California, USA"]
[null,"Raynolds Peak",3325,10909,"Teton Range, Wyoming"]
[null,"Rolling Thunder Mountain",3324,10906,"Teton Range, Wyoming"]
[null,"Hampton",3323,10902,"Antarctica"]
[null,"Dôme des Pichères",3319,10889,"Vanoise massif, France"]
[null,"Grand Roc",3316,10879,"Vanoise massif, France"]
[null,"Giant's Castle",3315,10876,"Drakensberg, South Africa"]
[null,"Sunwapta Peak",3315,10876,"Canadian Rockies"]
[null,"Piz Buin",3312,10866,"Silvretta, Austria-Switzerland"]
[null,"Ball",3311,10863,"Canadian Rockies"]
[null,"Piz Badile",3308,10853,"Bregaglia, Switzerland"]
[null,"Chephren",3307,10850,"Canadian Rockies"]
[null,"Ağ Dağ",3306,10846,"Bozgush mountain range, East Azerbaijan, Iran"]
[null,"Silberhorn",3303,10837,"Southern Alps, New Zealand"]
[null,"San Jacinto Peak",3302,10833,"California, USA"]
[null,"Didi Abuli",3301,10830,"Georgia"]
[null,"Bivouac Peak",3299,10823,"Teton Range, Wyoming"]
[null,"Wilbur",3298,10820,"Fairweather Range, Alaska, USA"]
[null,"Monte Argentera",3297,10817,"Maritime Alps, Italy"]
[null,"Samsari",3285,10778,"Abul-Samsari Range, Georgia"]
[null,"Roche Chevrière",3281,10764,"Vanoise massif, France"]
[null,"Habicht",3277,10751,"Stubai Alps, Austria"]
[null,"Thompson Peak",3277,10751,"Idaho, USA"]
[null,"Pointe de Thorens",3266,10715,"Vanoise massif, France"]
[null,"Cramer",3266,10715,"Idaho, USA"]
[null,"Toussidé",3265,10712,"Tibesti Mountains, Chad-Libya"]
[null,"Antelao",3264,10709,"Dolomites, Italy"]
[null,"Mont Pelve",3261,10699,"Vanoise massif, France"]
[null,"Stanley Baldwin",3256,10682,"Columbia Mountains, B.C., Canada"]
[null,"Sandia Crest",3255,10679,"New Mexico, USA"]
[null,"Épaule du Bouchet",3250,10663,"Vanoise massif, France"]
[null,"Smythe",3246,10650,"Canadian Rockies"]
[null,"Wildstrubel",3243,10640,"Bernese Alps, Switzerland"]
[null,"Williams Peak",3242,10636,"Idaho, USA"]
[null,"Titlis",3238,10623,"Bernese Alps, Switzerland"]
[null,"Owl Peak",3235,10614,"Teton Range, Wyoming"]
[null,"Mackenzie King",3234,10610,"Cariboo Mountains, B.C., Canada"]
[null,"Pointe des Buffettes",3233,10607,"Vanoise massif, France"]
[null,"Lisenser Spitze",3230,10597,"Stubai Alps, Austria"]
[null,"Terror",3230,10597,"Antarctica"]
[null,"Aiguille Rouge",3227,10587,"Vanoise massif, France"]
[null,"Monte Civetta",3220,10564,"Dolomites, Italy"]
[null,"Symmetry Spire",3219,10561,"Teton Range, Wyoming"]
[null,"Glacier Peak",3213,10541,"Washington, USA"]
[null,"Pointe du Dard",3212,10538,"Vanoise massif, France"]
[null,"Binalud",3211,10535,"Alborz, Iran"]
[null,"Pointe de la Réchasse",3206,10518,"Vanoise massif, France"]
[null,"Jefferson",3204,10512,"Montana, USA"]
[null,"Jefferson",3199,10495,"Cascade Range, Oregon, USA"]
[null,"Dreiländerspitze",3197,10489,"Silvretta, Austria-Switzerland"]
[null,"Kita",3193,10476,"Akaishi Mountains, Japan"]
[null,"Hotaka",3190,10466,"Hida Mountains, Japan"]
[null,"Cleveland",3190,10466,"Montana, USA"]
[null,"Ainodake",3189,10463,"Akaishi Mountains, Japan"]
[null,"Lassen Peak",3189,10463,"California, USA"]
[null,"Galatea",3185,10449,"Kananaskis Range, Alberta, Canada"]
[null,"Rendezvous Mountain",3185,10449,"Teton Range, Wyoming, USA"]
[null,"Jackson",3184,10446,"Highest British mountain, British Antarctic Territory"]
[null,"Saviers Peak",3182,10440,"Idaho, USA"]
[null,"Yari",3180,10433,"Hida Mountains, Japan"]
[null,"Parícutin",3170,10400,"Mexico"]
[null,"Aylmer",3162,10374,"Canadian Rockies"]
[null,"South Sister",3157,10358,"Cascade Range, Oregon, USA"]
[null,"Stanley Peak",3155,10351,"Ball Range, Canadian Rockies"]
[null,"Jøkulkyrkja",3148,10328,"Antarctica"]
[null,"Pica d'Estats",3143,10312,"Spanish–French border, Pyrenees"]
[null,"Arakawa",3141,10305,"Akaishi Mountains, Japan"]
[null,"Gray Peak",3140,10302,"Yellowstone National Park, Wyoming, USA"]
[null,"Heyburn",3139,10299,"Idaho, USA"]
[null,"Washburn",3122,10243,"Yellowstone National Park, Wyoming, USA"]
[null,"Collie",3116,10223,"Canadian Rockies"]
[null,"Siple",3110,10203,"Antarctica"]
[null,"Pirchinassi",3110,10203,"Muzaffarabad Azad Kashmir"]
[null,"Redoubt",3108,10197,"Alaska, USA"]
[null,"Babel",3101,10174,"Bow Range, Alberta, Canada"]
[null,"Emei",3099,10167,"China"]
[null,"Pico Duarte",3098,10164,"Dominican Republic"]
[null,"Trapper Peak",3096,10157,"Montana, USA"]
[null,"Storm Mountain",3095,10154,"Canadian Rockies"]
[null,"Blackmore",3094,10151,"Montana, USA"]
[null,"Stimson",3091,10141,"Montana, USA"]
[null,"Mol Len",3088,10131,"Bhurma/India"]
[null,"Qurnat as Sawdā’",3088,10131,"Lebanon"]
[null,"Richardson",3086,10125,"Canadian Rockies"]
[null,"Kintla Peak",3079,10102,"Livingston Range, Montana, USA"]
[null,"Moulton",3078,10098,"Antarctica"]
[null,"Smoky Dome",3077,10095,"Idaho, USA"]
[null,"North Sister",3074,10085,"Cascade Range, Oregon, USA"]
[null,"Piton des Neiges",3069,10069,"Réunion, France"]
[null,"San Antonio",3068,10066,"San Gabriel Mountains, California, USA"]
[null,"Ontake",3067,10062,"Japan"]
[null,"Jackson",3064,10052,"Lewis Range, Montana, USA"]
[null,"Middle Sister",3062,10046,"Cascade Range, Oregon, USA"]
[null,"Nyamuragira",3058,10033,"Democratic Republic of the Congo"]
[null,"Crowfoot Mountain",3055,10023,"Canadian Rockies"]
[null,"Haleakala",3055,10023,"Hawaii, USA"]
[null,"Chester",3054,10020,"Canadian Rockies"]
[null,"Siyeh",3052,10013,"Montana, USA"]
[null,"Merritt",3049,10003,"Montana, USA"]
[null,"Cerro de Coxóm",3045,9990,"Guatemala"]
[null,"Parseierspitze",3036,9961,"Austria"]
[null,"Senjō",3033,9951,"Akaishi Mountains, Japan"]
[null,"Aspiring/Tititea",3033,9951,"New Zealand"]
[null,"Kinnerly Peak",3031,9944,"Montana, USA"]
[null,"Agung",3031,9944,"Bali, Indonesia"]
[null,"McArthur",3021,9911,"Canadian Rockies"]
[null,"Norikura",3026,9928,"Hida Mountains, Japan"]
[null,"Tsiteli Khati",3026,9928,"Kharuli Range, Georgia"]
[null,"Tate",3015,9892,"Hida Mountains, Japan"]
[null,"Tahat",3003,9852,"Algeria – Highest"]
[null,"Sapitwa",3002,9849,"Mulanje Massif, Malawi"]
[null,"The Fortress",3000,9843,"Canadian Rockies"]
[null,"Sacajawea Peak",2999,9839,"Wallowa Mountains, Oregon, USA"]
[null,"Cascade Mountain",2998,9836,"Vermillion Range, Canadian Rockies"]
[null,"Copahue",2997,9833,"Andes, Argentina/Chile"]
[null,"Girouard",2985,9793,"Fairholme Range, Canadian Rockies"]
[null,"Pico da Neblina",2994,9823,"Brazil – Highest"]
[null,"Whyte",2983,9787,"Bow Range, Canadian Rockies"]
[null,"Miranjani",2980,9777,"Pakistan"]
[null,"Forellen Peak",2979,9774,"Teton Range, Wyoming, USA"]
[null,"Andrus",2978,9770,"Ames Range, Antarctica"]
[null,"Niblock",2976,9764,"Bow Range, Canadian Rockies"]
[null,"Keele Peak",2972,9751,"Mackenzie Mountains, Yukon, Canada"]
[null,"Odin",2970,9744,"Monashee Mountains, B.C. Canada"]
[null,"Schilthorn",2970,9744,"Bernese Alps, Switzerland"]
[null,"Tallac",2968,9738,"Sierra Nevada, California, USA"]
[null,"Inglismaldie",2964,9724,"Fairholme Range, Canadian Rockies"]
[null,"Ramelau",2963,9721,"Highest in East Timor"]
[null,"Zugspitze",2962,9718,"Germany – Highest"]
[null,"Little Alberta",2956,9698,"Sir Winston Churchill Range, Canadian Rockies"]
[null,"Iron Mountain",2955,9695,"Soldier Mountains, Idaho, USA"]
[null,"Apo",2954,9692,"Philippines – Highest"]
[null,"Fossil Mountain",2946,9665,"Banff NP, Canada"]
[null,"Coma Pedrosa",2942,9652,"Pyrenees, Andorra – Highest"]
[null,"Going to the Sun Mountain",2939,9642,"Lewis Range, Montana, USA"]
[null,"Pilot Mountain",2935,9629,"Massive Range, Canadian Rockies"]
[null,"Urirotstock",2928,9606,"Switzerland"]
[null,"Musala",2925,9596,"Bulgaria – Highest"]
[null,"Pulag",2922,9587,"Philippines"]
[null,"Olympus",2917,9570,"Thessaly/Macedonia, Greece – Highest"]
[null,"Gould",2912,9554,"Montana, USA"]
[null,"Blakiston",2910,9547,"Flathead Range, Canadian Rockies"]
[null,"Sas dla Crusc",2907,9537,"Dolomites, Italy"]
[null,"Chutine Peak",2903,9524,"Coast Range, British Columbia"]
[null,"Rising Wolf Mountain",2900,9514,"Lewis Range, Montana, USA"]
[null,"Bonanza Peak",2899,9511,"Cascade Range, Washington, USA"]
[null,"Pic de Sanfonts",2894,9495,"Pyrenees, Andorra"]
[null,"Collarada",2886,9469,"Pyrenees, Spain"]
[null,"Boardman Peak",2882,9455,"Soldier Mountains, Idaho, USA"]
[null,"Lembert Dome",2880,9449,"California, USA"]
[null,"Stuart",2869,9413,"Cascades, Washington, USA"]
[null,"Silverthrone",2865,9400,"British Columbia, Canada"]
[null,"Triglav",2864,9396,"Slovenia – Highest"]
[null,"Saint Nicholas",2858,9377,"Montana, USA"]
[null,"Wilbur",2841,9321,"Montana, USA"]
[null,"Fernow",2819,9249,"Washington, USA"]
[null,"Hermon",2814,9232,"Syria, Lebanon - a subpeak on its southern slopes is the high point of Golan Heights"]
[null,"Cory",2802,9193,"Alberta, Canada"]
[null,"Thielsen",2799,9183,"Cascades, USA"]
[null,"Copper Mountain",2795,9170,"Alberta, Canada"]
[null,"Hayes Volcano",2788,9147,"Alaska, USA"]
[null,"Edziza",2787,9144,"British Columbia, Canada"]
[null,"Canigou",2784,9134,"Pyrenees, France"]
[null,"Longonot",2780,9121,"RIftvalley, Kenya"]
[null,"Buckner Mountain",2778,9114,"Washington, USA"]
[null,"Longonot",2776,9108,"Great Rift Valley, Kenya"]
[null,"Seven Fingered Jack",2774,9101,"Washington, USA"]
[null,"Nirvana",2773,9098,"Northwest Territories, Canada"]
[null,"Chief Mountain",2768,9081,"Montana, USA"]
[null,"Lincoln Peak",2768,9081,"Washington, USA"]
[null,"Castle Mountain",2766,9075,"Canadian Rockies"]
[null,"Pyramid Mountain",2766,9075,"Canadian Rockies"]
[null,"Korab",2764,9068,"Republic of Macedonia & Albania – Highest"]
[null,"Sir James MacBrien",2759,9052,"Canada"]
[null,"Olympus",2751,9026,"Utah, USA"]
[null,"Mawson Peak",2745,9006,"Highest in Australia"]
[null,"Baekdu",2744,9003,"North Korea/China Highest in North Korea"]
[null,"Fairview Mountain",2744,9003,"Bow Range, Canadian Rockies"]
[null,"Škrlatica",2740,8990,"Julian Alps, Slovenia"]
[null,"Heavens Peak",2739,8986,"Montana, USA"]
[null,"Spickard",2737,8980,"North Cascades"]
[null,"Melbourne",2732,8963,"Antarctica"]
[null,"Cerro El Pital",2730,8957,"El Salvador – Highest"]
[null,"Redoubt",2730,8957,"Washington, USA"]
[null,"Morning",2723,8934,"Antarctica"]
[null,"Serles",2718,8917,"Stubai Alps, Austria"]
[null,"Watzmann",2713,8901,"Bavarian Alps, Germany"]
[null,"Boston Peak",2711,8894,"Washington, USA"]
[null,"Grotto Mountain",2706,8878,"Canadian Rockies"]
[null,"Haku",2702,8865,"Ryōhaku Mountains, Japan"]
[null,"Eldorado Peak",2701,8862,"Washington, USA"]
[null,"Anaimudi",2695,8842,"Kerala, India – #1 in Western Ghats, India"]
[null,"Maja Jezerce",2694,8839,"#1 in Dinaric Alps, Albania"]
[null,"Half Dome",2693,8835,"Sierra Nevada, California, USA"]
[null,"Louis",2682,8799,"Alberta, Canada"]
[null,"Discovery",2681,8796,"Antarctica"]
[null,"Pic de la Selle",2680,8793,"Haiti"]
[null,"Garibaldi",2678,8786,"British Columbia, Canada"]
[null,"Guadalupe Peak",2667.3,8751,"Guadalupe Mountains, Texas – Highest in Texas"]
[null,"Großer Krottenkopf",2656,8714,"Allgäu Alps, Tyrol, Austria"]
[null,"Pic del Port Vell",2655,8711,"Pyrenees, Andorra"]
[null,"Gerlachov Peak",2655,8711,"High Tatras, Slovakia"]
[null,"Michelson",2652,8701,"Chugach Mountains, Alaska, USA"]
[null,"St. Piran",2649,8691,"Bow Range, Alberta, Canada"]
[null,"Meager",2645,8678,"British Columbia, Canada"]
[null,"Trus Madi",2642,8668,"Trus Madi Range, Sabah, Malaysia – #2 in Malaysia"]
[null,"Doddabetta",2637,8652,"Tamil Nadu, India"]
[null,"Piton de la Fournaise",2631,8632,"Réunion"]
[null,"Crean",2630,8629,"Victoria Land"]
[null,"Cardinal Peak",2618,8589,"Washington, USA"]
[null,"Barbeau Peak",2616,8583,"Nunavut, Canada – Highest in Nunavut"]
[null,"Pelister Peak",2601,8533,"Republic of Macedonia"]
[null,"Pico Almanzor",2592,8504,"Spain"]
[null,"Tavkvetili",2583,8474,"Georgia"]
[null,"Argonaut Peak",2576,8451,"Washington, USA"]
[null,"Doi Inthanon",2565,8415,"Thailand – Highest in Thailand"]
[null,"Cooke's Peak/Cook's Peak",2563,8409,"New Mexico,USA"]
[null,"Pic dels Aspres",2562,8406,"Pyrenees, Andorra"]
[null,"Aguja Saint Exupery",2558,8392,"Argentina"]
[null,"St. Helens",2550,8366,"Washington, USA"]
[null,"Big Hatchet Peak",2547,8356,"New Mexico, USA"]
[null,"Moldoveanu Peak",2544,8346,"Romania"]
[null,"Negoiu Peak",2535,8317,"Romania"]
[null,"Vistea Mare",2527,8291,"Romania"]
[null,"Pidurutalagala",2524,8281,"Sri Lanka"]
[null,"Norquay",2522,8274,"Canadian Rockies"]
[null,"Hualalai",2521,8271,"Hawaii, USA"]
[null,"Parangu Mare",2519,8264,"Romania"]
[null,"Taranaki",2518,8261,"New Zealand"]
[null,"Garfield Peak",2512,8241,"Wyoming, USA"]
[null,"Veniaminof",2507,8225,"Alaska, USA"]
[null,"Omu Peak",2505,8219,"Romania"]
[null,"Rysy",2503,8212,"Poland/Slovakia"]
[null,"Tymfi",2497,8192,"Pindus, Greece"]
[null,"Špik",2472,8110,"Julian Alps, Slovenia"]
[null,"Luna Peak",2470,8104,"British Columbia, Canada"]
[null,"Galdhøpiggen",2469,8100,"Norway – Highest"]
[null,"Glittertind",2464,8084,"Norway"]
[null,"El Capitan",2464,8084,"Texas, USA"]
[null,"Shimbiris",2464,8084,"Somalia"]
[null,"Sulphur Mountain",2451,8041,"Canadian Rockies"]
[null,"Sunset Crater",2451,8041,"Arizona, USA"]
[null,"Faraya Mzaar",2444,8018,"Keserwan, Lebanon"]
[null,"Triple Divide Peak",2444,8018,"Montana, USA"]
[null,"Monte Binga",2436,7992,"Manica, Mozambique"]
[null,"Olympus",2432,7979,"Washington, USA"]
[null,"Peñalara",2430,7972,"Spain"]
[null,"Daniel",2426,7959,"Washington, USA"]
[null,"Murud",2423,7949,"Kelabit Highlands, Sarawak, Malaysia – Highest mountain in Sarawak"]
[null,"Mocho",2422,7946,"Los Ríos Region, Chile"]
[null,"Choshuenco",2415,7923,"Los Ríos Region, Chile"]
[null,"Ha Ling Peak",2408,7900,"Canadian Rockies, Alberta"]
[null,"Store Skagastølstind",2405,7890,"Norway"]
[null,"Le Tabor",2389,7838,"Dauphine Alps, France"]
[null,"Kirigalpottha",2388,7835,"Sri Lanka"]
[null,"Cayley",2385,7825,"British Columbia, Canada"]
[null,"Galwey",2377,7799,"Canadian Rockies"]
[null,"Botev Peak",2376,7795,"Bulgaria"]
[null,"Mulu",2376,7795,"Gunung Mulu National Park, Sarawak, Malaysia"]
[null,"Deception",2374,7789,"Washington, USA"]
[null,"Karthala",2361,7746,"Comoros, Indian Ocean"]
[null,"Totapala Kanda",2357,7733,"Sri Lanka"]
[null,"Signal Mountain",2353,7720,"Wyoming, USA"]
[null,"Pico",2351,7713,"Azores, Portugal"]
[null,"Blum",2340,7677,"North Cascades"]
[null,"Prophet",2330,7644,"North Cascades"]
[null,"Griggs",2317,7602,"Alaska, USA"]
[null,"Lalla Khedidja",2308,7572,"Djurdjura Mountains, Algeria"]
[null,"Lavender Peak",2306,7566,"British Columbia, Canada"]
[null,"Pietrosul Rodnei Peak",2303,7556,"Rodnei Mountains, Romanian Carpathian Mountains, Romania"]
[null,"Sir Allan MacNab",2297,7536,"Premier Range, British Columbia, Canada"]
[null,"Murree",2291,7516,"Rawalpindi, Pakistan"]
[null,"Druesberg",2282,7487,"Alps, Switzerland"]
[null,"Ineu Peak",2279,7477,"Rodnei Mountains, Romanian Carpathian Mountains, Romania"]
[null,"Bikku Bitti",2267,7438,"Libya – Second Highest in country"]
[null,"Sri Pada Mountain",2243,7359,"Sri Lanka"]
[null,"John Laurie",2240,7349,"Canadian Rockies, Alberta"]
[null,"Red Butte",2232,7323,"Arizona, USA"]
[null,"Čvrsnica",2228,7310,"Herzegovina, BiH"]
[null,"Kosciuszko",2228,7310,"Snowy Mountains, New South Wales, Australia – Highest on mainland"]
[null,"Chiginagak",2221,7287,"Alaska, USA"]
[null,"Townsend",2209,7247,"Snowy Mountains, New South Wales, Australia – Second-highest on mainland"]
[null,"Harney Peak",2207,7241,"South Dakota, USA – Highest in state"]
[null,"Golden Hinde",2198,7211,"#1 on Vancouver Island, British Columbia, Canada"]
[null,"Twynam",2196,7205,"Snowy Mountains, New South Wales, Australia – Third-highest on mainland"]
[null,"Elkhorn Mountain",2195,7201,"Vancouver Island, British Columbia, Canada"]
[null,"Baldy",2192,7192,"Alberta, Canada"]
[null,"Shiprock",2188,7178,"New Mexico, USA"]
[null,"Tahan",2187,7175,"Tahan Range, Pahang, Malaysia – Highest in Peninsular Malaysia"]
[null,"Korbu",2183,7162,"Titiwangsa Mountains, Perak, Malaysia"]
[null,"Doi Chiang Dao",2175,7136,"Thailand"]
[null,"Galunggung",2168,7113,"Java"]
[null,"Carruthers Peak",2145,7037,"Snowy Mountains, New South Wales, Australia"]
[null,"Crna Glava",2139,7018,"Bjelasica, Crna Gora"]
[null,"Colonel Foster",2135,7005,"Vancouver Island, British Columbia, Canada"]
[null,"Roche à Perdrix",2135,7005,"Fiddle Range, Canadian Rockies"]
[null,"Kodaikanal",2133,6998,"Tamilnadu, India"]
[null,"Pilatus",2132,6995,"Switzerland"]
[null,"Strmenica",2122,6962,"Bjelasica, Crna Gora"]
[null,"Phu Soi Dao",2120,6955,"Thailand/Laos"]
[null,"Eagle Peak",2119,6952,"Alaska, USA"]
[null,"Zekova Glava",2117,6946,"Bjelasica, Crna Gora"]
[null,"Öræfajökull",2110,6923,"Iceland"]
[null,"Mogotón",2107,6913,"Nicaragua – Highest in Nicaragua"]
[null,"Kebnekaise",2106,6909,"Sweden"]
[null,"Rambler Peak",2092,6864,"Vancouver Island, British Columbia, Canada"]
[null,"McBride",2083,6834,"Vancouver Island, British Columbia, Canada"]
[null,"Phou Khe",2079,6821,"Thailand/Laos"]
[null,"Schneeberg",2076,6811,"Northern Limestone Alps, Austria"]
[null,"Tate",2068,6785,"Snowy Mountains, New South Wales, Australia"]
[null,"Kings Peak",2065,6775,"Vancouver Island, British Columbia, Canada"]
[null,"Hoverla",2061,6762,"Ukraine – Highest"]
[null,"Katmai",2047,6716,"Alaska, USA"]
[null,"Celeste",2041,6696,"Vancouver Island, British Columbia, Canada"]
[null,"Mitchell",2037,6683,"Yancey County, North Carolina, USA"]
[null,"Namunukula",2035,6677,"Sri Lanka"]
[null,"Batu Brinchang",2032,6667,"Cameron Highlands, Pahang/Perak, Malaysia"]
[null,"Doi Mae Tho",2031,6663,"Thailand"]
[null,"Clingmans Dome",2025,6644,"Great Smoky Mountains, Tennessee, USA"]
[null,"Polar Bear Peak",2016,6614,"Chugach Mountains, Alaska, USA"]
[null,"Asgard",2015,6611,"Baffin Mountains, Nunavut, Canada"]
[null,"Serra da Estrela",1993,6539,"Portugal"]
[null,"Bogong",1986,6516,"Australia – Highest in Victoria"]
[null,"Ishizuchi",1982,6503,"Japan – Tallest in Western Japan"]
[null,"Doi Phu Kha",1980,6496,"Luang Prabang Range, Thailand"]
[null,"Tongariro",1978,6490,"New Zealand"]
[null,"Iceberg Peak",1977,6486,"Vancouver Island, British Columbia, Canada"]
[null,"Pico Turquino",1975,6480,"Cuba – Highest point"]
[null,"El Piveto Mountain",1969,6460,"Vancouver Island, British Columbia, Canada"]
[null,"Qiajivik Mountain",1963,6440,"Baffin Island, Nunavut, Canada"]
[null,"Farcau Peak",1956,6417,"Romania"]
[null,"Ciucas Peak",1954,6411,"Romania"]
[null,"Olympus",1952,6404,"Cyprus"]
[null,"Hallasan",1950,6398,"CheJudo, South Korea/ Highest Mountain in South Korea"]
[null,"Jabal Bil Ays",1934,6345,"Oman"]
[null,"Mullayanagiri",1930,6332,"Chikmagalur, Karnataka, India"]
[null,"Kirigamine",1925,6316,"Japan"]
[null,"Washington",1917,6289,"Presidential Range, White Mtns., Appalachian Mountains, USA – Highest in American Northeast"]
[null,"Jiri",1915,6283,"South Korea"]
[null,"Mont Ventoux",1909,6263,"France"]
[null,"Ocolasu Mare",1907,6257,"Romania"]
[null,"Toaca",1900,6234,"Romania"]
[null,"Vesper Peak",1896,6220,"Washington, USA"]
[null,"Baba Budangiri",1895,6217,"Chikmagalur, Karnataka, India"]
[null,"Kudremukh",1894,6214,"Chikmagalur, Karnataka, India"]
[null,"Orjen",1894,6214,"Montenegro, Bosnia and Herzegovina"]
[null,"George V",1883,6178,"Vancouver Island, British Columbia, Canada"]
[null,"Rugged Mountain",1875,6152,"Vancouver Island, British Columbia, Canada"]
[null,"Straja",1868,6129,"Romania"]
[null,"Trident Volcano",1864,6115,"Alaska, USA"]
[null,"Martin",1863,6112,"Alaska, USA"]
[null,"Knuckles",1862,6109,"Sri Lanka"]
[null,"Budacu",1859,6099,"Romania"]
[null,"Giumalau",1856,6089,"Romania"]
[null,"Cucurbata Mare",1849,6066,"Romania"]
[null,"Crown Mountain",1846,6056,"Vancouver Island, British Columbia, Canada"]
[null,"Tibles",1839,6033,"Romania"]
[null,"Loser",1838,6030,"Austria"]
[null,"Vladeasa",1836,6024,"Romania"]
[null,"Cerro La Campana",1828,5997,"Olmue, Chile"]
[null,"Muntele Mare",1826,5991,"Romania"]
[null,"Cerro de la Silla",1820,5971,"Mexico"]
[null,"Biligiriranga Hills",1800,5906,"Chamarajanagar, Karnataka, India"]
[null,"Rigi",1797,5896,"Swiss Alps"]
[null,"Hășmașu Mare",1792,5879,"Romania"]
[null,"Pietrosu Peak",1791,5876,"Romania"]
[null,"Goru",1784,5853,"Romania"]
[null,"Lacaut",1777,5830,"Romania"]
[null,"Saca Peak",1776,5827,"Romania"]
[null,"Penteleu",1772,5814,"Romania"]
[null,"Api",1750,5741,"Gunung Mulu National Park, Sarawak, Malaysia"]
[null,"Tadiandamol",1748,5735,"Kodagu, Karnataka, India"]
[null,"Rogers",1746,5728,"Virginia, USA – Highest point in state"]
[null,"Doi Phi Pan Nam",1745,5725,"Luang Prabang Range, Thailand"]
[null,"Wilson",1742,5715,"California, USA"]
[null,"Daisen",1729,5673,"Japan"]
[null,"The Horn (Buffalo)",1723,5653,"Victoria, Australia"]
[null,"Batur",1717,5633,"Bali, Indonesia"]
[null,"Kumara Parvata",1712,5617,"Dakshina Kannada, Karnataka, India"]
[null,"Pushpagiri",1712,5617,"Pushpagiri Wildlife Sanctuary, Karnataka, India"]
[null,"Lowe",1707,5600,"San Gabriel Mountains, California, USA"]
[null,"Boulder Peak",1707,5600,"Olympic Mountains, Washington, USA"]
[null,"Doi Luang",1694,5558,"Phi Pan Nam Range, Thailand"]
[null,"Mitre Peak",1692,5551,"New Zealand"]
[null,"Caubvik",1652,5420,"Torngat Mountains, Canada"]
[null,"Rarau",1650,5413,"Romania"]
[null,"Peak 5390",1643,5390,"Alaska, USA"]
[null,"Marcy",1629,5344,"New York, USA"]
[null,"Brahmagiri",1608,5276,"Kodagu, Karnataka, India"]
[null,"Katahdin",1606,5269,"Maine, USA"]
[null,"Sněžka",1602,5256,"Krkonoše, Czech Republic – #1 in Czech republic"]
[null,"Sirumalai",1600,5249,"Tamilnadu India"]
[null,"Washington (British Columbia)",1590,5217,"Vancouver Island, British Columbia, Canada"]
[null,"Benarat",1585,5200,"Gunung Mulu National Park, Sarawak, Malaysia"]
[null,"Wai'ale'ale",1569,5148,"Kauai, Hawaii, USA"]
[null,"Baw Baw",1567,5141,"Australia"]
[null,"Cirque Mountain",1567,5141,"Labrador, Canada"]
[null,"Superstition Mountain",1542,5059,"Arizona, USA"]
[null,"Jabel Yibir",1527,5010,"United Arab Emirates"]
[null,"Madikeri",1525,5003,"Kodagu, Karnataka, India"]
[null,"Popa",1518,4980,"Myanmar"]
[null,"Askja",1516,4974,"Iceland"]
[null,"Kamakau",1512,4961,"Molokai, Hawaii, USA"]
[null,"Javaleon",1494,4902,"Spain"]
[null,"Nuang",1491,4892,"Titiwangsa Mountains, Malaysia"]
[null,"Hekla",1491,4892,"Iceland"]
[null,"Pinatubo",1486,4875,"Luzon, Philippines"]
[null,"Spruce Knob",1482,4862,"West Virginia, USA"]
[null,"Agriolefkes",1471,4826,"Pelion, Greece"]
[null,"Seymour",1455,4774,"British Columbia, Canada"]
[null,"Himavad Gopalaswamy Betta",1450,4757,"Chamarajanagar, Karnataka, India"]
[null,"Snæfellsjökull",1446,4744,"Iceland"]
[null,"Gutai Peak",1443,4734,"Romania"]
[null,"Cypress Mountain",1432,4698,"British Columbia, Canada"]
[null,"Yelagiri",1410,4626,"Tamilnadu, India"]
[null,"Ben Nevis",1344,4409,"Scotland – Highest in the United Kingdom"]
[null,"Kodachadri",1343,4406,"Shimoga, Karnataka, India"]
[null,"Aniakchak",1341,4400,"Alaska, USA"]
[null,"Cerro de Punta",1338,4390,"Jayuya, Puerto Rico – Highest in Puerto Rico"]
[null,"Bassie",1311,4301,"Alaska, USA"]
[null,"Ben Macdhui",1309,4295,"Scotland"]
[null,"Kanaga",1307,4288,"Alaska, USA"]
[null,"Sinhagad",1303,4275,"Maharashtra, India"]
[null,"Rajabasa",1281,4203,"Sumatra, Indonesia"]
[null,"Vesuvius",1281,4203,"Italy"]
[null,"Ophir",1276,4186,"Titiwangsa Mountains, Johor, Malaysia"]
[null,"Wellington",1271,4170,"Tasmania/Australia"]
[null,"Si",1270,4167,"Washington\\, USA"]
[null,"Detunata",1258,4127,"Romania"]
[null,"Donna Buang",1250,4101,"Victoria, Australia"]
[null,"Camel's Hump",1244,4081,"Vermont, USA"]
[null,"Cannon Mountain",1240,4068,"New Hampshire, USA"]
[null,"Grouse Mountain",1231,4039,"British Columbia, Canada"]
[null,"Kaʻala",1220,4003,"Oahu, Hawaii, USA"]
[null,"Jerai",1217,3993,"Titiwangsa Mountains, Kedah, Malaysia"]
[null,"Meron",1208,3963,"Galilee, Israel – Highest in Israel (inside the '67 borders)"]
[null,"Doi Lan",1174,3852,"Phi Pan Nam Range, Thailand"]
[null,"Diablo",1173,3848,"California, USA"]
[null,"Bidean nam Bian",1150,3773,"Scotland"]
[null,"Monte Musinè",1150,3773,"Piedmont, Italy"]
[null,"Brocken",1141,3743,"Saxony-Anhalt, Germany – Highest mountain in the Harz; highest in Saxony-Anhalt"]
[null,"Victoria Peak",1120,3675,"Belize – 2nd highest mountain in Belize"]
[null,"Snowdon",1085,3560,"Gwynedd, Wales – Highest"]
[null,"Flattop Mountain",1070,3510,"Alaska, USA"]
[null,"Uummannaq",1070,3510,"Greenland"]
[null,"White Butte",1069,3507,"North Dakota, USA – Highest in state"]
[null,"Liathach",1055,3461,"Torridon, Scotland"]
[null,"Corrán Tuathail",1038,3406,"County Kerry, Ireland – Highest mountain in Ireland"]
[null,"Ramon",1037,3402,"Negev, Israel"]
[null,"Buachaille Etive Mor",1022,3353,"Glen Etive, Scotland"]
[null,"Kékes",1014,3327,"Hungary – Highest mountain in Hungary"]
[null,"Belumut",1010,3314,"Johor, Malaysia"]
[null,"Old Rag Mountain",1001,3284,"Virginia, USA"]
[null,"Magura Priei",996,3268,"Romania"]
[null,"Sgurr Dearg",986,3235,"Cuillin  ","Scotland"]
[null,"Sizer",980,3215,"Diablo Range  ","USA (California)"]
[null,"Valin",980,3215,"Saguenay Lac St-Jean  ","Canada (Québec)"]
[null,"Hyangnosan",979,3212,"  ","Gyeongnam Province, South Korea"]
[null,"Scafell Pike",978,3209,"Southern Fells  ","England (Cumbria) – Highest in England"]
[null,"Edgecumbe",976,3202,"   ","USA (Alaska)"]
[null,"North Mountain (Catskills)",969,3179,"Catskill Escarpment  ","USA (New York)"]
[null,"Tai Mo Shan",957,3140,"  ","Hong Kong – Highest in Hong Kong"]
[null,"Helvellyn",950,3117,"Eastern Fells  ","England (Cumbria)"]
[null,"El Cerro del Aripo",940,3084,"Northern Range  ","Trinidad and Tobago – Highest point"]
[null,"El Tucuche",936,3071,"Northern Range  ","Trinidad and Tobago"]
[null,"Lantau Peak",934,3064,"  ","Hong Kong"]
[null,"Kaimondake volcano",924,3031,"  ","Kagoshima, Japan"]
[null,"Pantokrator",906,2972,"  ","Greece (Corfu)"]
[null,"Gerizim",881,2890,"  ","West Bank"]
[null,"Sunset Peak",869,2851,"  ","Hong Kong"]
[null,"Slaíbh Domhnaírt",856,2808,"Mourne mountains  ","County Down,Northern Ireland"]
[null,"Muntele Cetatuia",850,2789,"Romania"]
[null,"Hoemunsan",837,2746,"  ","North Jeolla Province, South Korea"]
[null,"Drocea",836,2743,"Romania"]
[null,"Carleton",817,2680,"Appalachian Mountains  ","Canada (New Brunswick)"]
[null,"Santubong",810,2657,"  ","Malaysia (Sarawak)"]
[null,"Gros Morne",807,2648,"  ","Canada (Newfoundland)"]
[null,"Clisham",799,2621,"  ","Harris,Western Isles,Scotland"]
[null,"Tamalpais",792,2598,"California Coast Ranges  ","USA (California)"]
[null,"Gyemyeongsan",774,2539,"  ","North Chungcheong Province, South Korea"]
[null,"Boucherie",758,2487,"  ","Canada (British Columbia)"]
[null,"Gaseopsan",710,2329,"  ","North Chungcheong Province, South Korea"]
[null,"Pu‘u ‘Ō‘ō",698,2290,"  ","USA (Hawaii)"]
[null,"Signal de Botrange",694,2277,"High Fens  ","Belgium (Liège) – Highest in Belgium"]
[null,"Ishpatina Ridge",690,2264,"  ","Canada (Ontario)"]
[null,"Galgisan",685,2247,"  ","Gyeonggi Province, and Gangwon Province, South Korea"]
[null,"Delphi",681,2234,"  ","Greece (Skopelos)"]
[null,"Qalorujoorneq",676,2218,"  ","Greenland"]
[null,"Maple Mountain",642,2106,"  ","Canada (Ontario)"]
[null,"Masaya",635,2083,"  ","Nicaragua"]
[null,"High Willhays",621,2037,"  ","England (Dartmoor)"]
[null,"Munsusan (Ulsan)",600,1969,"  ","Ulsan, South Korea"]
[null,"Takao",599,1965,"  ","Tokyo, Japan"]
[null,"Sikjangsan",596,1955,"  ","Daejeon, South Korea"]
[null,"Gwanggyosan",582,1909,"  ","Gyeonggi Province, South Korea"]
[null,"Pond",576,1890,"  ","South Shetland Islands"]
[null,"Monte Conero",572,1877,"  ","Italy (Ancona)"]
[null,"Gyeryongsan (South Gyeongsang Province)",566,1857,"  ","South Gyeongsang Province, South Korea"]
[null,"Namamsan",543,1781,"  ","Ulsan, South Korea"]
[null,"Great Mell Fell",537,1762,"Eastern Fells  ","England (Cumbria)"]
[null,"Geomdansan (Seongnam)",534.70000000000005,1754,"  ","Gyeonggi Province, South Korea"]
[null,"Yeonhwasan",532,1745,"  ","Ulsan, South Korea"]
[null,"Heukseongsan",519,1703,"  ","North Chungcheong Province, South Korea"]
[null,"Little Si",480,1575,"Cascade Range  ","Washington, USA"]
[null,"Tutuiatu Peak",467,1532,"Romania"]
[null,"Pu'u Moaulanui",452,1483,"  ","Kahoolawe, Hawaii"]
[null,"Blue Mountain",452,1483,"  ","Ontario, Canada"]
[null,"Muryongsan (Ulsan)",452,1483,"  ","Ulsan, South Korea"]
[null,"Dongdaesan (Ulsan)",447,1467,"  ","Ulsan, South Korea"]
[null,"Storm King Mountain",408,1339,"Hudson Highlands  ","USA (New York)"]
[null,"Diamond Hill",400,1312,"Connemara National Park  ","Ireland"]
[null,"Gyeyangsan",395,1296,"  ","Incheon, South Korea"]
[null,"Loughrigg Fell",335,1099,"Central Fells  ","England (Cumbria)"]
[null,"Kinka (Gifu)",329,1079,"  ","Gifu, Japan"]
[null,"Vaalserberg",321,1053,"  ","Netherlands (Limburg)"]
[null,"Suur Munamägi",318,1043,"  ","Haanja, Estonia"]
[null,"Aukštojas",293.83999999999997,964,"  ","Medininkai, Lithuania"]
[null,"Kruopinė",293.64999999999998,963,"  ","Vilnius, Lithuania"]
[null,"Juozapinė",292.7,960,"  ","Vilnius, Lithuania"]
[null,"Hwajangsan",285,935,"  ","Ulsan, South Korea"]
[null,"Jerimoth Hill",247,810,"  ","Rhode Island, USA"]
[null,"Diamond Head",232,761,"  ","USA (Hawaii)"]
[null,"Yeomposan",203,666,"  ","Ulsan, South Korea"]
[null,"Hamwolsan",200,656,"  ","Ulsan, South Korea"]
[null,"Britton Hill",105,344,"  ","Florida, USA – The lowest high point of any US state"]
[null,"Tenpō",5,16,"  ","Osaka, Japan"]

{"sheet":"Trial","index":2,"n_rows":221,"n_cols":9,"rows_kept":221,"cut":false,"hidden":false,"merged":[]}
["FROM:","Mark Biegert"]
["SUBJECT:","Data Gathering for Mountains"]
["DATE:","2014-12-17"]
[]
["User Name","ziggle","Input your user name in shaded box"]
[]
["Here is my list of mountains over 5500 meters. Input your user name and press update. The table will fill in with strings of lat|long data."]
[]
[null,null,"Blank Entries Filled in Manually",null,null,"For the Geoid calculation, I need a 360° angle."]
[null,null,null,null,null,null,"Geoid is computed using a separate program that require lat and long."]
["Rank","Mountain","Geonames","Latitude","Longitude","Long360","Geoid","Metres","Feet"]
[1,"Mount Everest","27.9881|86.9253",27.988099999999999,86.925299999999993,{"$f":"IF(E12<0,E12+360,E12)","v":86.925299999999993},-28.73,8848,{"$f":"CONVERT(_Data[[#This Row],[Metres]],\"m\",\"ft\")","v":29028.871391076114}]
[2,"K2","35.8813|76.5135",35.881399999999999,76.513499999999993,76.513499999999993,-22.37,8611,{"$f":"CONVERT(_Data[[#This Row],[Metres]],\"m\",\"ft\")","v":28251.312335958006}]
[3,"Kangchenjunga","27.703|88.1474",27.702999999999999,88.147400000000005,88.147400000000005,-30.37,8586,{"$f":"CONVERT(_Data[[#This Row],[Metres]],\"m\",\"ft\")","v":28169.291338582676}]
[4,"Lhotse","27.9667|86.9333",27.966699999999999,86.933300000000003,86.933300000000003,-28.94,8516,{"$f":"CONVERT(_Data[[#This Row],[Metres]],\"m\",\"ft\")","v":27939.63254593176}]
[5,"Makalu","27.8895|87.0895",27.889500000000002,87.089500000000001,{"$f":"IF(E16<0,E16+360,E16)","v":87.089500000000001},-30.28,8462,{"$f":"CONVERT(_Data[[#This Row],[Metres]],\"m\",\"ft\")","v":27762.467191601048}]
[6,"Cho Oyu","28.094|86.661",28.094000000000001,86.661000000000001,{"$f":"IF(E17<0,E17+360,E17)","v":86.661000000000001},-27.34,8201,{"$f":"CONVERT(_Data[[#This Row],[Metres]],\"m\",\"ft\")","v":26906.167979002625}]
[7,"Dhaulagiri","28.6965|83.493",28.6965,83.492999999999995,83.492999999999995,-39.520000000000003,8167,{"$f":"CONVERT(_Data[[#This Row],[Metres]],\"m\",\"ft\")","v":26794.619422572177}]
[8,"Manaslu","28.5494|84.5619",28.549399999999999,84.561899999999994,84.561899999999994,-35.06,8156,{"$f":"CONVERT(_Data[[#This Row],[Metres]],\"m\",\"ft\")","v":26758.530183727034}]
[9,"Nanga Parbat","35.2375|74.5892",35.237499999999997,74.589200000000005,74.589200000000005,-30.1,8125,{"$f":"CONVERT(_Data[[#This Row],[Metres]],\"m\",\"ft\")","v":26656.824146981628}]
[10,"Annapurna","28.5961|83.8203",28.5961,83.820300000000003,83.820300000000003,-38.78,8091,{"$f":"CONVERT(_Data[[#This Row],[Metres]],\"m\",\"ft\")","v":26545.27559055118}]
[11,"Gasherbrum I","35.7208|76.7097",35.720799999999997,76.709699999999998,76.709699999999998,-21.85,8068,{"$f":"CONVERT(_Data[[#This Row],[Metres]],\"m\",\"ft\")","v":26469.81627296588}]
[12,"Broad Peak","35.8106|76.5681",35.810600000000001,76.568100000000001,76.568100000000001,-22.26,8047,{"$f":"CONVERT(_Data[[#This Row],[Metres]],\"m\",\"ft\")","v":26400.918635170605}]
[13,"Gasherbrum II","35.7586|76.6528",35.758600000000001,76.652799999999999,76.652799999999999,-21.99,8035,{"$f":"CONVERT(_Data[[#This Row],[Metres]],\"m\",\"ft\")","v":26361.548556430447}]
[14,"Shishapangma","28.3545|85.776",28.354500000000002,85.775999999999996,85.775999999999996,-28.05,8012,{"$f":"CONVERT(_Data[[#This Row],[Metres]],\"m\",\"ft\")","v":26286.089238845143}]
[15,"Gyachung Kang","28.098|86.7422",28.097999999999999,86.742199999999997,86.742199999999997,-27.4,7952,{"$f":"CONVERT(_Data[[#This Row],[Metres]],\"m\",\"ft\")","v":26089.238845144358}]
[16,"Gasherbrum III","35.7333|76.6333",35.7333,76.633300000000006,76.633300000000006,-22.14,7946,{"$f":"CONVERT(_Data[[#This Row],[Metres]],\"m\",\"ft\")","v":26069.553805774278}]
[17,"Annapurna II",null,28.539000000000001,84.137,84.137,-37.659999999999997,7937,{"$f":"CONVERT(_Data[[#This Row],[Metres]],\"m\",\"ft\")","v":26040.026246719161}]
[18,"Gasherbrum IV","35.7667|76.6167",35.7667,76.616699999999994,76.616699999999994,-22.13,7932,{"$f":"CONVERT(_Data[[#This Row],[Metres]],\"m\",\"ft\")","v":26023.622047244095}]
[19,"Himalchuli","28.4355|84.6322",28.435500000000001,84.632199999999997,84.632199999999997,-37.43,7893,{"$f":"CONVERT(_Data[[#This Row],[Metres]],\"m\",\"ft\")","v":25895.669291338581}]
[20,"Distaghil Sar","36.3258|75.1883",36.325800000000001,75.188299999999998,75.188299999999998,-29.44,7885,{"$f":"CONVERT(_Data[[#This Row],[Metres]],\"m\",\"ft\")","v":25869.422572178479}]
[21,"Ngadi Chuli","28.5033|84.5675",28.503299999999999,84.567499999999995,84.567499999999995,-36.14,7871,{"$f":"CONVERT(_Data[[#This Row],[Metres]],\"m\",\"ft\")","v":25823.490813648295}]
[22,"Nuptse","27.9664|86.89",27.9664,86.89,86.89,-28.78,7861,{"$f":"CONVERT(_Data[[#This Row],[Metres]],\"m\",\"ft\")","v":25790.682414698163}]
[23,"Khunyang Chhish","36.2052|75.2077",36.205199999999998,75.207700000000003,75.207700000000003,-29.15,7852,{"$f":"CONVERT(_Data[[#This Row],[Metres]],\"m\",\"ft\")","v":25761.154855643046}]
[24,"Masherbrum","35.6428|76.3047",35.642800000000001,76.304699999999997,76.304699999999997,-24.32,7821,{"$f":"CONVERT(_Data[[#This Row],[Metres]],\"m\",\"ft\")","v":25659.448818897639}]
[25,"Nanda Devi","30.4186|79.8497",30.3767,79.970799999999997,79.970799999999997,-22.77,7816,{"$f":"CONVERT(_Data[[#This Row],[Metres]],\"m\",\"ft\")","v":25643.044619422573}]
[26,"Chomo Lonzo","27.93|87.108",27.93,87.108000000000004,87.108000000000004,-29.95,7804,{"$f":"CONVERT(_Data[[#This Row],[Metres]],\"m\",\"ft\")","v":25603.674540682416}]
[27,"Batura Sar","36.51|74.5269",36.51,74.526899999999998,74.526899999999998,-33.14,7795,{"$f":"CONVERT(_Data[[#This Row],[Metres]],\"m\",\"ft\")","v":25574.146981627298}]
[28,"Kanjut Sar","36.205|75.4183",36.204999999999998,75.418300000000002,75.418300000000002,-28.34,7790,{"$f":"CONVERT(_Data[[#This Row],[Metres]],\"m\",\"ft\")","v":25557.742782152232}]
[29,"Rakaposhi","36.1422|74.5527",36.142200000000003,74.552700000000002,74.552700000000002,-31.88,7788,{"$f":"CONVERT(_Data[[#This Row],[Metres]],\"m\",\"ft\")","v":25551.181102362203}]
[30,"Namcha Barwa","29.6305|95.0552",29.630500000000001,95.055199999999999,95.055199999999999,-39.75,7782,{"$f":"CONVERT(_Data[[#This Row],[Metres]],\"m\",\"ft\")","v":25531.496062992126}]
[31,"Batura II","36.3|74.31",36.299999999999997,74.31,74.31,-32.94,7762,{"$f":"CONVERT(_Data[[#This Row],[Metres]],\"m\",\"ft\")","v":25465.879265091862}]
[32,"Kamet","30.9203|79.5936",30.920300000000001,79.593599999999995,79.593599999999995,-20.02,7756,{"$f":"CONVERT(_Data[[#This Row],[Metres]],\"m\",\"ft\")","v":25446.194225721785}]
[33,"Saltoro Kangri","35.4002|76.8486",35.400199999999998,76.848600000000005,76.848600000000005,-22.15,7742,{"$f":"CONVERT(_Data[[#This Row],[Metres]],\"m\",\"ft\")","v":25400.262467191602}]
[34,"Batura III","36.5308|74.5014",36.530799999999999,74.501400000000004,74.501400000000004,-33.200000000000003,7729,{"$f":"CONVERT(_Data[[#This Row],[Metres]],\"m\",\"ft\")","v":25357.61154855643}]
[35,"Kongur Tagh","38.6333|75.3333",38.633299999999998,75.333299999999994,75.333299999999994,-33.979999999999997,7719,{"$f":"CONVERT(_Data[[#This Row],[Metres]],\"m\",\"ft\")","v":25324.803149606298}]
[36,"Jannu","27.6827|88.0458",27.682700000000001,88.0458,88.0458,-31.06,7710,{"$f":"CONVERT(_Data[[#This Row],[Metres]],\"m\",\"ft\")","v":25295.27559055118}]
[37,"Molamenqing","28.3547|85.8108",28.354700000000001,85.8108,85.8108,-27.86,7710,{"$f":"CONVERT(_Data[[#This Row],[Metres]],\"m\",\"ft\")","v":25295.27559055118}]
[38,"Gurla Mandhata","30.4383|81.2992",30.438300000000002,81.299199999999999,81.299199999999999,-23.72,7694,{"$f":"CONVERT(_Data[[#This Row],[Metres]],\"m\",\"ft\")","v":25242.782152230971}]
[39,"Tirich Mir","36.2458|71.8439",36.245800000000003,71.843900000000005,71.843900000000005,-30.86,7690,{"$f":"CONVERT(_Data[[#This Row],[Metres]],\"m\",\"ft\")","v":25229.65879265092}]
[40,"Saser Kangri","34.865|77.7525",34.865000000000002,77.752499999999998,77.752499999999998,-21.99,7672,{"$f":"CONVERT(_Data[[#This Row],[Metres]],\"m\",\"ft\")","v":25170.603674540682}]
[41,"Chogolisa","35.6163|76.5777",35.616300000000003,76.577699999999993,76.577699999999993,-22.75,7665,{"$f":"CONVERT(_Data[[#This Row],[Metres]],\"m\",\"ft\")","v":25147.63779527559}]
[42,"Shispare","36.4344|74.6692",36.434399999999997,74.669200000000004,74.669200000000004,-32.54,7611,{"$f":"CONVERT(_Data[[#This Row],[Metres]],\"m\",\"ft\")","v":24970.472440944883}]
[43,"Changtse","28.0167|86.9",28.0167,86.9,86.9,-28.4,7583,{"$f":"CONVERT(_Data[[#This Row],[Metres]],\"m\",\"ft\")","v":24878.608923884516}]
[44,"Trivor","36.2875|75.0861",36.287500000000001,75.086100000000002,75.086100000000002,-29.87,7577,{"$f":"CONVERT(_Data[[#This Row],[Metres]],\"m\",\"ft\")","v":24858.923884514435}]
[45,"Gangkhar Puensum","28.0486|90.4545",28.0486,90.454499999999996,90.454499999999996,-31.07,7570,{"$f":"CONVERT(_Data[[#This Row],[Metres]],\"m\",\"ft\")","v":24835.958005249344}]
[46,"Mount Gongga","29.5958|101.8792",29.595800000000001,101.8792,101.8792,-31.48,7556,{"$f":"CONVERT(_Data[[#This Row],[Metres]],\"m\",\"ft\")","v":24790.026246719161}]
[47,"Annapurna III",null,28.539000000000001,84,84,-38.56,7555,{"$f":"CONVERT(_Data[[#This Row],[Metres]],\"m\",\"ft\")","v":24786.745406824146}]
[48,"Kula Kangri","28.227|90.616",28.227,90.616,90.616,-30.29,7554,{"$f":"CONVERT(_Data[[#This Row],[Metres]],\"m\",\"ft\")","v":24783.464566929135}]
[49,"Chogolisa II",null,35.616300000000003,76.578999999999994,76.578999999999994,-22.75,7554,{"$f":"CONVERT(_Data[[#This Row],[Metres]],\"m\",\"ft\")","v":24783.464566929135}]
[50,"Muztagh Ata","38.2759|75.1161",38.2759,75.116100000000003,75.116100000000003,-30.75,7546,{"$f":"CONVERT(_Data[[#This Row],[Metres]],\"m\",\"ft\")","v":24757.217847769029}]
[51,"Skyang Kangri","35.9267|76.5675",35.926699999999997,76.567499999999995,76.567499999999995,-22,7545,{"$f":"CONVERT(_Data[[#This Row],[Metres]],\"m\",\"ft\")","v":24753.937007874014}]
[52,"Yukshin Gardan Sar","36.2508|75.3732",36.250799999999998,75.373199999999997,75.373199999999997,-28.53,7530,{"$f":"CONVERT(_Data[[#This Row],[Metres]],\"m\",\"ft\")","v":24704.72440944882}]
[53,"Annapurna IV",null,28.539000000000001,84.087000000000003,84.087000000000003,-37.979999999999997,7525,{"$f":"CONVERT(_Data[[#This Row],[Metres]],\"m\",\"ft\")","v":24688.320209973754}]
[54,"Mamostong Kangri","35.1408|77.5775",35.140799999999999,77.577500000000001,77.577500000000001,-21.11,7516,{"$f":"CONVERT(_Data[[#This Row],[Metres]],\"m\",\"ft\")","v":24658.792650918636}]
[55,"Ismoil Somoni Peak","38.9167|72.0167",38.916699999999999,72.0167,72.0167,-32.67,7495,{"$f":"CONVERT(_Data[[#This Row],[Metres]],\"m\",\"ft\")","v":24589.895013123358}]
[56,"Pumari Chhish","36.2111|75.2528",36.211100000000002,75.252799999999993,75.252799999999993,-28.97,7492,{"$f":"CONVERT(_Data[[#This Row],[Metres]],\"m\",\"ft\")","v":24580.052493438321}]
[57,"Noshaq","36.4317|71.8283",36.431699999999999,71.828299999999999,71.828299999999999,-30.84,7492,{"$f":"CONVERT(_Data[[#This Row],[Metres]],\"m\",\"ft\")","v":24580.052493438321}]
[58,"Passu Sar","36.4878|74.5878",36.4878,74.587800000000001,74.587800000000001,-32.950000000000003,7476,{"$f":"CONVERT(_Data[[#This Row],[Metres]],\"m\",\"ft\")","v":24527.559055118109}]
[59,"Malubiting","36.0389|74.9008",36.038899999999998,74.900800000000004,74.900800000000004,-30.03,7458,{"$f":"CONVERT(_Data[[#This Row],[Metres]],\"m\",\"ft\")","v":24468.503937007874}]
[60,"Gangapurna",null,28.606000000000002,83.965000000000003,83.965000000000003,-37.409999999999997,7455,{"$f":"CONVERT(_Data[[#This Row],[Metres]],\"m\",\"ft\")","v":24458.661417322834}]
[61,"Jengish Chokusu","42.0358|80.1292",42.035800000000002,80.129199999999997,80.129199999999997,-38.229999999999997,7439,{"$f":"CONVERT(_Data[[#This Row],[Metres]],\"m\",\"ft\")","v":24406.167979002625}]
[62,"K12 (mountain)","35.3213|76.9854",35.3213333333333,76.984999999999999,76.984999999999999,-21.86,7428,{"$f":"CONVERT(_Data[[#This Row],[Metres]],\"m\",\"ft\")","v":24370.078740157482}]
[63,"Istor-o-Nal","36.3869|71.8892",36.386899999999997,71.889200000000002,71.889200000000002,-30.8,7403,{"$f":"CONVERT(_Data[[#This Row],[Metres]],\"m\",\"ft\")","v":24288.057742782152}]
[64,"Ghent Kangri","35.5175|76.8003",35.517499999999998,76.800299999999993,76.800299999999993,-21.99,7401,{"$f":"CONVERT(_Data[[#This Row],[Metres]],\"m\",\"ft\")","v":24281.496062992126}]
[65,"Haramosh Peak","35.8414|74.8978",35.8414,74.897800000000004,{"$f":"IF(E76<0,E76+360,E76)","v":74.897800000000004},-29.42,7397,{"$f":"CONVERT(_Data[[#This Row],[Metres]],\"m\",\"ft\")","v":24268.372703412075}]
[66,"Kabru","27.635|88.1183",27.635000000000002,88.118300000000005,88.118300000000005,-31.34,7394,{"$f":"CONVERT(_Data[[#This Row],[Metres]],\"m\",\"ft\")","v":24258.530183727034}]
[67,"Ultar","36.3997|74.6919",36.399700000000003,74.691900000000004,74.691900000000004,-32.340000000000003,7388,{"$f":"CONVERT(_Data[[#This Row],[Metres]],\"m\",\"ft\")","v":24238.845144356954}]
[68,"Rimo I","35.3558|77.3681",35.355800000000002,77.368099999999998,77.368099999999998,-20.71,7385,{"$f":"CONVERT(_Data[[#This Row],[Metres]],\"m\",\"ft\")","v":24229.002624671917}]
[69,"Sherpi Kangri","35.465|76.7722",35.465000000000003,76.772199999999998,76.772199999999998,-22.28,7380,{"$f":"CONVERT(_Data[[#This Row],[Metres]],\"m\",\"ft\")","v":24212.598425196851}]
[70,"Labuche Kang","28.3042|86.3508",28.304200000000002,86.350800000000007,86.350800000000007,-26.6,7367,{"$f":"CONVERT(_Data[[#This Row],[Metres]],\"m\",\"ft\")","v":24169.947506561679}]
[71,"Kirat Chuli","27.7833|88.2",27.783300000000001,88.2,88.2,-29.42,7365,{"$f":"CONVERT(_Data[[#This Row],[Metres]],\"m\",\"ft\")","v":24163.385826771653}]
[72,"Skil Brum","35.8508|76.4292",35.8508,76.429199999999994,76.429199999999994,-22.93,7360,{"$f":"CONVERT(_Data[[#This Row],[Metres]],\"m\",\"ft\")","v":24146.981627296587}]
[73,"Gimmigela Chuli",null,27.738333333333301,88.15,88.15,-30.01,7350,{"$f":"CONVERT(_Data[[#This Row],[Metres]],\"m\",\"ft\")","v":24114.173228346455}]
[74,"Bojohagur Duanasir","36.3997|74.6919",36.399700000000003,74.691900000000004,74.691900000000004,-32.340000000000003,7329,{"$f":"CONVERT(_Data[[#This Row],[Metres]],\"m\",\"ft\")","v":24045.27559055118}]
[75,"Chamlang","27.7756|86.9797",27.775600000000001,86.979699999999994,86.979699999999994,-31.42,7319,{"$f":"CONVERT(_Data[[#This Row],[Metres]],\"m\",\"ft\")","v":24012.467191601048}]
[76,"Jomolhari","27.8242|89.27",27.824166666666599,89.27,89.27,-28.4,7314,{"$f":"CONVERT(_Data[[#This Row],[Metres]],\"m\",\"ft\")","v":23996.062992125986}]
[77,"Baltoro Kangri","35.648|76.6698",35.648000000000003,76.669799999999995,76.669799999999995,-22.2,7312,{"$f":"CONVERT(_Data[[#This Row],[Metres]],\"m\",\"ft\")","v":23989.501312335957}]
[78,"Siguang Ri",null,28.15,86.683000000000007,86.683000000000007,-27.05,7308,{"$f":"CONVERT(_Data[[#This Row],[Metres]],\"m\",\"ft\")","v":23976.377952755905}]
[79,"The Crown (mountain)","36.1083|76.2125",36.108333000000002,76.212999999999994,76.212999999999994,-23.86,7295,{"$f":"CONVERT(_Data[[#This Row],[Metres]],\"m\",\"ft\")","v":23933.727034120733}]
[80,"Gyala Peri","29.8142|94.9683",29.8142,94.968299999999999,94.968299999999999,-38.590000000000003,7294,{"$f":"CONVERT(_Data[[#This Row],[Metres]],\"m\",\"ft\")","v":23930.446194225722}]
[81,"Porong Ri",null,28.386944,85.718999999999994,85.718999999999994,-28.06,7292,{"$f":"CONVERT(_Data[[#This Row],[Metres]],\"m\",\"ft\")","v":23923.884514435696}]
[82,"Baintha Brakk","35.9478|75.7536",35.947800000000001,75.753600000000006,75.753600000000006,-27.17,7285,{"$f":"CONVERT(_Data[[#This Row],[Metres]],\"m\",\"ft\")","v":23900.918635170605}]
[83,"Yutmaru Sar",null,36.233333000000002,75.367000000000004,75.367000000000004,-28.55,7283,{"$f":"CONVERT(_Data[[#This Row],[Metres]],\"m\",\"ft\")","v":23894.356955380579}]
[84,"K6 (mountain)","35.4183|76.5517",35.418300000000002,76.551699999999997,76.551699999999997,-23.61,7282,{"$f":"CONVERT(_Data[[#This Row],[Metres]],\"m\",\"ft\")","v":23891.076115485565}]
[85,"Kangpenqing",null,28.55,85.55,85.55,-28.12,7281,{"$f":"CONVERT(_Data[[#This Row],[Metres]],\"m\",\"ft\")","v":23887.79527559055}]
[86,"Muztagh Tower","35.8283|76.3608",35.828299999999999,76.360799999999998,76.360799999999998,-23.43,7273,{"$f":"CONVERT(_Data[[#This Row],[Metres]],\"m\",\"ft\")","v":23861.548556430447}]
[87,"Mana Peak",null,32.840000000000003,79.417000000000002,79.417000000000002,-25,7272,{"$f":"CONVERT(_Data[[#This Row],[Metres]],\"m\",\"ft\")","v":23858.267716535433}]
[88,"Diran","36.1222|74.6606",36.122199999999999,74.660600000000002,74.660600000000002,-31.39,7257,{"$f":"CONVERT(_Data[[#This Row],[Metres]],\"m\",\"ft\")","v":23809.055118110235}]
[89,"Apsarasas Kangri",null,35.533333333333303,77.150000000000006,77.150000000000006,-20.89,7245,{"$f":"CONVERT(_Data[[#This Row],[Metres]],\"m\",\"ft\")","v":23769.685039370077}]
[90,"Langtang Lirung","28.2561|85.5194",28.2561,85.519400000000005,85.519400000000005,-31.62,7227,{"$f":"CONVERT(_Data[[#This Row],[Metres]],\"m\",\"ft\")","v":23710.629921259842}]
[91,"Annapurna South",null,28.518000000000001,83.805999999999997,83.805999999999997,-40.4,7219,{"$f":"CONVERT(_Data[[#This Row],[Metres]],\"m\",\"ft\")","v":23684.383202099736}]
[92,"Khartaphu",null,28.063333333333301,86.977000000000004,86.977000000000004,-28.37,7213,{"$f":"CONVERT(_Data[[#This Row],[Metres]],\"m\",\"ft\")","v":23664.698162729659}]
[93,"Tongshanjiabu","28.1867|89.9575",28.186699999999998,89.957499999999996,89.957499999999996,-29.58,7207,{"$f":"CONVERT(_Data[[#This Row],[Metres]],\"m\",\"ft\")","v":23645.013123359578}]
[94,"Langtang Ri",null,28.3813888888888,85.683999999999997,85.683999999999997,-28.32,7205,{"$f":"CONVERT(_Data[[#This Row],[Metres]],\"m\",\"ft\")","v":23638.451443569553}]
[95,"Kangphu Kang",null,28.154999999999902,90.063000000000002,90.063000000000002,-29.61,7204,{"$f":"CONVERT(_Data[[#This Row],[Metres]],\"m\",\"ft\")","v":23635.170603674542}]
[96,"Melungtse","27.972|86.4325",27.972000000000001,86.432500000000005,86.432500000000005,-29.38,7181,{"$f":"CONVERT(_Data[[#This Row],[Metres]],\"m\",\"ft\")","v":23559.711286089238}]
[97,"Liushi Shan","35.3158|80.9158",35.315800000000003,80.915800000000004,80.915800000000004,-25.5,7167,{"$f":"CONVERT(_Data[[#This Row],[Metres]],\"m\",\"ft\")","v":23513.779527559054}]
[98,"Baruntse","27.8833|86.9833",27.883299999999998,86.9833,86.9833,-29.96,7162,{"$f":"CONVERT(_Data[[#This Row],[Metres]],\"m\",\"ft\")","v":23497.375328083988}]
[99,"Pumori","28.0147|86.8281",28.014700000000001,86.828100000000006,86.828100000000006,-28.18,7161,{"$f":"CONVERT(_Data[[#This Row],[Metres]],\"m\",\"ft\")","v":23494.094488188977}]
[100,"Nemjung","28.735|84.4167",28.734999999999999,84.416700000000006,84.416700000000006,-32.01,7140,{"$f":"CONVERT(_Data[[#This Row],[Metres]],\"m\",\"ft\")","v":23425.196850393702}]
[101,"Udren Zom","36.5172|71.9208",36.517200000000003,71.9208,71.9208,-30.66,7140,{"$f":"CONVERT(_Data[[#This Row],[Metres]],\"m\",\"ft\")","v":23425.196850393702}]
[102,"Nun Kun","33.98|76.0217",33.979999999999997,76.021699999999996,76.021699999999996,-24.8,7135,{"$f":"CONVERT(_Data[[#This Row],[Metres]],\"m\",\"ft\")","v":23408.792650918636}]
[103,"Gauri Sankar","27.965|86.3355",27.965,86.335499999999996,86.335499999999996,-30.28,7134,{"$f":"CONVERT(_Data[[#This Row],[Metres]],\"m\",\"ft\")","v":23405.511811023622}]
[104,"Tilicho Peak","28.6844|83.8044",28.6844,83.804400000000001,83.804400000000001,-37.31,7134,{"$f":"CONVERT(_Data[[#This Row],[Metres]],\"m\",\"ft\")","v":23405.511811023622}]
[105,"Lenin Peak","39.3425|72.8776",39.342500000000001,72.877600000000001,72.877600000000001,-32.08,7134,{"$f":"CONVERT(_Data[[#This Row],[Metres]],\"m\",\"ft\")","v":23405.511811023622}]
[106,"Api (mountain)","30.0042|80.9333",30.004200000000001,80.933300000000003,80.933300000000003,-29.76,7132,{"$f":"CONVERT(_Data[[#This Row],[Metres]],\"m\",\"ft\")","v":23398.950131233596}]
[107,"Pauhunri","27.9533|88.8425",27.953299999999999,88.842500000000001,88.842500000000001,-28.12,7128,{"$f":"CONVERT(_Data[[#This Row],[Metres]],\"m\",\"ft\")","v":23385.826771653545}]
[108,"Peak Korzhenevskaya","39.0573|72.0098",39.057299999999998,72.009799999999998,72.009799999999998,-33.19,7105,{"$f":"CONVERT(_Data[[#This Row],[Metres]],\"m\",\"ft\")","v":23310.36745406824}]
[109,"Lunpo Gangri","29.8333|84.6133",29.833300000000001,84.613299999999995,84.613299999999995,-27.56,7095,{"$f":"CONVERT(_Data[[#This Row],[Metres]],\"m\",\"ft\")","v":23277.559055118109}]
[110,"Dunagiri","30.5325|79.8339",30.532499999999999,79.8339,79.8339,-19.77,7066,{"$f":"CONVERT(_Data[[#This Row],[Metres]],\"m\",\"ft\")","v":23182.414698162731}]
[111,"Kangto","27.865|92.5325",27.864999999999998,92.532499999999999,92.532499999999999,-28.49,7060,{"$f":"CONVERT(_Data[[#This Row],[Metres]],\"m\",\"ft\")","v":23162.72965879265}]
[112,"Nyegyi Kansang","27.9367|92.6667",27.936699999999998,92.666700000000006,92.666700000000006,-29.78,7047,{"$f":"CONVERT(_Data[[#This Row],[Metres]],\"m\",\"ft\")","v":23120.078740157482}]
[113,"Kezhen Peak","35.925|76.175",35.924999999999997,76.174999999999997,76.174999999999997,-24.52,7038,{"$f":"CONVERT(_Data[[#This Row],[Metres]],\"m\",\"ft\")","v":23090.551181102361}]
[114,"Shah Dhar","36.6717|72.2317",36.671700000000001,72.231700000000004,72.231700000000004,-30.33,7038,{"$f":"CONVERT(_Data[[#This Row],[Metres]],\"m\",\"ft\")","v":23090.551181102361}]
[115,"Spantik","36.0573|74.958",36.057299999999998,74.957999999999998,74.957999999999998,-29.85,7027,{"$f":"CONVERT(_Data[[#This Row],[Metres]],\"m\",\"ft\")","v":23054.461942257218}]
[116,"Khan Tengri","42.2108|80.175",42.210799999999999,80.174999999999997,80.174999999999997,-38.020000000000003,7010,{"$f":"CONVERT(_Data[[#This Row],[Metres]],\"m\",\"ft\")","v":22998.687664041994}]
[117,"Machapuchare","28.4975|83.946",28.497499999999999,83.945999999999998,83.945999999999998,-39.85,6993,{"$f":"CONVERT(_Data[[#This Row],[Metres]],\"m\",\"ft\")","v":22942.913385826771}]
[118,"Kang Guru","28.6575|84.3014",28.657499999999999,84.301400000000001,84.301400000000001,-34.01,6981,{"$f":"CONVERT(_Data[[#This Row],[Metres]],\"m\",\"ft\")","v":22903.543307086613}]
[119,"Lenin Peak","39.3425|72.8776",39.342500000000001,72.877600000000001,72.877600000000001,-32.08,6974,{"$f":"CONVERT(_Data[[#This Row],[Metres]],\"m\",\"ft\")","v":22880.577427821521}]
[120,"Ulugh Muztagh","36.4125|87.3842",36.412500000000001,87.384200000000007,87.384200000000007,-38.46,6973,{"$f":"CONVERT(_Data[[#This Row],[Metres]],\"m\",\"ft\")","v":22877.29658792651}]
[121,"Aconcagua","-32.6533|-70.0111",-32.653300000000002,-70.011099999999999,289.9889,32.17,6962,{"$f":"CONVERT(_Data[[#This Row],[Metres]],\"m\",\"ft\")","v":22841.207349081364}]
[122,"Lunkho e Dosare","36.7758|72.44",36.775799999999997,72.44,72.44,-30.27,6901,{"$f":"CONVERT(_Data[[#This Row],[Metres]],\"m\",\"ft\")","v":22641.076115485565}]
[123,"Ojos del Salado","-27.109|-68.541",-27.109000000000002,-68.540999999999997,291.459,43.06,6891,{"$f":"CONVERT(_Data[[#This Row],[Metres]],\"m\",\"ft\")","v":22608.267716535433}]
[124,"Siniolchu","27.7114|88.3178",27.711400000000001,88.317800000000005,88.317800000000005,-29.52,6888,{"$f":"CONVERT(_Data[[#This Row],[Metres]],\"m\",\"ft\")","v":22598.425196850392}]
[125,"Nanda Kot","30.2817|80.0683",30.281700000000001,80.068299999999994,80.068299999999994,-25.42,6861,{"$f":"CONVERT(_Data[[#This Row],[Metres]],\"m\",\"ft\")","v":22509.84251968504}]
[126,"Angel Sar","35.8492|76.4906",35.849200000000003,76.490600000000001,76.490600000000001,-22.57,6858,{"$f":"CONVERT(_Data[[#This Row],[Metres]],\"m\",\"ft\")","v":22500}]
[127,"Chongra Peak","35.3263|74.6776",35.326300000000003,74.677599999999998,74.677599999999998,-29.51,6830,{"$f":"CONVERT(_Data[[#This Row],[Metres]],\"m\",\"ft\")","v":22408.136482939633}]
[128,"Ama Dablam","27.8611|86.8611",27.8611,86.861099999999993,86.861099999999993,-29.87,6812,{"$f":"CONVERT(_Data[[#This Row],[Metres]],\"m\",\"ft\")","v":22349.081364829395}]
[129,"Monte Pissis","-27.7559|-68.798",-27.7559,-68.798000000000002,{"$f":"IF(E140<0,E140+360,E140)","v":291.202},40.409999999999997,6795,{"$f":"CONVERT(_Data[[#This Row],[Metres]],\"m\",\"ft\")","v":22293.307086614172}]
[130,"Biarchedi","35.7031|76.4102",35.703099999999999,76.410200000000003,76.410200000000003,-23.46,6781,{"$f":"CONVERT(_Data[[#This Row],[Metres]],\"m\",\"ft\")","v":22247.375328083988}]
[131,"Huascarán Sur",null,-9.1219999999999999,-76.603999999999999,283.39600000000002,21.02,6768,{"$f":"CONVERT(_Data[[#This Row],[Metres]],\"m\",\"ft\")","v":22204.72440944882}]
[132,"Nevado Tres Cruces","-27.0511|-68.8017",-27.051100000000002,-68.801699999999997,291.19830000000002,42.19,6749,{"$f":"CONVERT(_Data[[#This Row],[Metres]],\"m\",\"ft\")","v":22142.38845144357}]
[133,"Kawagarbo","28.4383|98.6833",28.438300000000002,98.683300000000003,98.683300000000003,-36.36,6740,{"$f":"CONVERT(_Data[[#This Row],[Metres]],\"m\",\"ft\")","v":22112.860892388453}]
[134,"Llullaillaco","-24.7199|-68.5369",-24.719899999999999,-68.536900000000003,291.4631,40.03,6739,{"$f":"CONVERT(_Data[[#This Row],[Metres]],\"m\",\"ft\")","v":22109.580052493438}]
[135,"Cho Polu","27.9192|86.9819",27.9192,86.981899999999996,86.981899999999996,-29.57,6735,{"$f":"CONVERT(_Data[[#This Row],[Metres]],\"m\",\"ft\")","v":22096.456692913387}]
[136,"Mount Pandim","27.5775|88.2158",27.577500000000001,88.215800000000002,88.215800000000002,-31.76,6691,{"$f":"CONVERT(_Data[[#This Row],[Metres]],\"m\",\"ft\")","v":21952.099737532808}]
[137,"Num Ri","27.8947|86.9708",27.8947,86.970799999999997,86.970799999999997,-29.79,6677,{"$f":"CONVERT(_Data[[#This Row],[Metres]],\"m\",\"ft\")","v":21906.167979002625}]
[138,"Gul Lasht Zom",null,36.333333333299997,71.917000000000002,71.917000000000002,-30.79,6657,{"$f":"CONVERT(_Data[[#This Row],[Metres]],\"m\",\"ft\")","v":21840.551181102361}]
[139,"Huascarán Norte",null,-9.1216666666666608,-76.603999999999999,283.39600000000002,21.01,6655,{"$f":"CONVERT(_Data[[#This Row],[Metres]],\"m\",\"ft\")","v":21833.989501312335}]
[140,"Khumbutse","28.0203|86.8731",28.020299999999999,86.873099999999994,86.873099999999994,-28.27,6640,{"$f":"CONVERT(_Data[[#This Row],[Metres]],\"m\",\"ft\")","v":21784.776902887141}]
[141,"Mount Kailash","31.0628|81.3325",31.062799999999999,81.332499999999996,81.332499999999996,-24.67,6638,{"$f":"CONVERT(_Data[[#This Row],[Metres]],\"m\",\"ft\")","v":21778.215223097111}]
[142,"Yerupajá",null,-10.2666666666666,-76.900000000000006,283.10000000000002,25.64,6635,{"$f":"CONVERT(_Data[[#This Row],[Metres]],\"m\",\"ft\")","v":21768.372703412075}]
[143,"Thamserku","27.7903|86.7875",27.790299999999998,86.787499999999994,86.787499999999994,-30.87,6623,{"$f":"CONVERT(_Data[[#This Row],[Metres]],\"m\",\"ft\")","v":21729.002624671917}]
[144,"Incahuasi","-27.042|-68.28",-27.042000000000002,-68.28,291.72000000000003,42.53,6621,{"$f":"CONVERT(_Data[[#This Row],[Metres]],\"m\",\"ft\")","v":21722.440944881891}]
[145,"Manirang","31.9533|78.3667",31.953299999999999,78.366699999999994,78.366699999999994,-27.96,6597,{"$f":"CONVERT(_Data[[#This Row],[Metres]],\"m\",\"ft\")","v":21643.700787401576}]
[146,"Nilkantha (mountain)","30.72|79.4",30.72,79.400000000000006,79.400000000000006,-19.57,6596,{"$f":"CONVERT(_Data[[#This Row],[Metres]],\"m\",\"ft\")","v":21640.419947506562}]
[147,"Sickle Moon Peak","33.6025|76.1317",33.602499999999999,76.131699999999995,76.131699999999995,-25.47,6574,{"$f":"CONVERT(_Data[[#This Row],[Metres]],\"m\",\"ft\")","v":21568.241469816272}]
[148,"Phuparash Peak","36.0502|74.825",36.050199999999997,74.825000000000003,74.825000000000003,-30.39,6574,{"$f":"CONVERT(_Data[[#This Row],[Metres]],\"m\",\"ft\")","v":21568.241469816272}]
[149,"Buni Zom","36.1542|72.3275",36.154200000000003,72.327500000000001,72.327500000000001,-30.28,6551,{"$f":"CONVERT(_Data[[#This Row],[Metres]],\"m\",\"ft\")","v":21492.782152230971}]
[150,"Nevado Sajama","-18.108|-68.883",-18.108000000000001,-68.882999999999996,291.11700000000002,44.28,6542,{"$f":"CONVERT(_Data[[#This Row],[Metres]],\"m\",\"ft\")","v":21463.254593175854}]
[151,"Taboche","27.8967|86.7775",27.896699999999999,86.777500000000003,86.777500000000003,-29.3,6501,{"$f":"CONVERT(_Data[[#This Row],[Metres]],\"m\",\"ft\")","v":21328.740157480315}]
[152,"Singu Chuli","28.5833|83.9",28.583300000000001,83.9,83.9,-38.380000000000003,6501,{"$f":"CONVERT(_Data[[#This Row],[Metres]],\"m\",\"ft\")","v":21328.740157480315}]
[153,"Cerro El Muerto","-27.0575|-68.4839",-27.057500000000001,-68.483900000000006,291.51609999999999,42.98,6488,{"$f":"CONVERT(_Data[[#This Row],[Metres]],\"m\",\"ft\")","v":21286.089238845143}]
[154,"Mera Peak","27.709|86.8685",27.709,86.868499999999997,86.868499999999997,-32.33,6476,{"$f":"CONVERT(_Data[[#This Row],[Metres]],\"m\",\"ft\")","v":21246.719160104985}]
[155,"Illimani","-16.6539|-67.7847",-16.6539,-67.784700000000001,292.21530000000001,41.82,6462,{"$f":"CONVERT(_Data[[#This Row],[Metres]],\"m\",\"ft\")","v":21200.787401574802}]
[156,"Hiunchuli","28.51|83.85",28.51,83.85,83.85,-40.25,6441,{"$f":"CONVERT(_Data[[#This Row],[Metres]],\"m\",\"ft\")","v":21131.889763779527}]
[157,"Cholatse","27.9198|86.766",27.919799999999999,86.766000000000005,86.766000000000005,-29.01,6440,{"$f":"CONVERT(_Data[[#This Row],[Metres]],\"m\",\"ft\")","v":21128.608923884516}]
[158,"Janq'u Uma","-15.8533|-68.5408",-15.853300000000001,-68.540800000000004,291.45920000000001,46.18,6427,{"$f":"CONVERT(_Data[[#This Row],[Metres]],\"m\",\"ft\")","v":21085.958005249344}]
[159,"Coropuna","-15.5203|-72.6572",-15.520300000000001,-72.657200000000003,287.34280000000001,43.61,6425,{"$f":"CONVERT(_Data[[#This Row],[Metres]],\"m\",\"ft\")","v":21079.396325459318}]
[160,"Antofalla","-25.567|-67.9106",-25.567,-67.910600000000002,292.08940000000001,42.55,6409,{"$f":"CONVERT(_Data[[#This Row],[Metres]],\"m\",\"ft\")","v":21026.902887139109}]
[161,"Huandoy","-9.0273|-77.6628",-9.0273000000000003,-77.662800000000004,282.3372,20.63,6395,{"$f":"CONVERT(_Data[[#This Row],[Metres]],\"m\",\"ft\")","v":20980.971128608922}]
[162,"Illampu","-15.8167|-68.5333",-15.816700000000001,-68.533299999999997,291.4667,46.02,6368,{"$f":"CONVERT(_Data[[#This Row],[Metres]],\"m\",\"ft\")","v":20892.38845144357}]
[163,"Kusum Kanguru","27.7306|86.7908",27.730599999999999,86.790800000000004,86.790800000000004,-31.94,6367,{"$f":"CONVERT(_Data[[#This Row],[Metres]],\"m\",\"ft\")","v":20889.107611548556}]
[164,"Kinnaur Kailash",null,31.930555999999999,77.173000000000002,77.173000000000002,-33.549999999999997,6349,{"$f":"CONVERT(_Data[[#This Row],[Metres]],\"m\",\"ft\")","v":20830.052493438321}]
[165,"Parinacota (volcano)",null,-18.166667,-69.150000000000006,290.85000000000002,44.5,6348,{"$f":"CONVERT(_Data[[#This Row],[Metres]],\"m\",\"ft\")","v":20826.771653543306}]
[166,"Siula Grande","-10.2947|-76.8917",-10.294700000000001,-76.8917,283.10829999999999,25.78,6344,{"$f":"CONVERT(_Data[[#This Row],[Metres]],\"m\",\"ft\")","v":20813.648293963255}]
[167,"Bamba Dhura","30.44|80.28",30.44,80.28,80.28,-23.64,6334,{"$f":"CONVERT(_Data[[#This Row],[Metres]],\"m\",\"ft\")","v":20780.839895013123}]
[168,"Ampato","-15.8167|-71.8833",-15.816700000000001,-71.883300000000006,288.11669999999998,44.08,6288,{"$f":"CONVERT(_Data[[#This Row],[Metres]],\"m\",\"ft\")","v":20629.921259842518}]
[169,"Pomerape",null,-18.125800000000002,-69.127499999999998,290.8725,44.51,6282,{"$f":"CONVERT(_Data[[#This Row],[Metres]],\"m\",\"ft\")","v":20610.236220472441}]
[170,"Amne Machin","34.7983|99.4625",34.798299999999998,99.462500000000006,99.462500000000006,-38.35,6282,{"$f":"CONVERT(_Data[[#This Row],[Metres]],\"m\",\"ft\")","v":20610.236220472441}]
[171,"Salcantay","-13.3336|-72.5444",-13.333600000000001,-72.544399999999996,287.4556,42.59,6271,{"$f":"CONVERT(_Data[[#This Row],[Metres]],\"m\",\"ft\")","v":20574.146981627298}]
[172,"Chimborazo (volcano)","-1.464|-78.815",-1.4691669999999999,-78.816999999999993,281.18299999999999,25.96,6267,{"$f":"CONVERT(_Data[[#This Row],[Metres]],\"m\",\"ft\")","v":20561.023622047243}]
[173,"Kongde Ri","27.8047|86.6253",27.8047,86.625299999999996,86.625299999999996,-30.99,6187,{"$f":"CONVERT(_Data[[#This Row],[Metres]],\"m\",\"ft\")","v":20298.556430446195}]
[174,"Aucanquilcha","-21.22|-68.4683",-21.22,-68.468299999999999,291.5317,42.3,6176,{"$f":"CONVERT(_Data[[#This Row],[Metres]],\"m\",\"ft\")","v":20262.467191601048}]
[175,"Mount McKinley","63.0694|-151.0072",63.069400000000002,-151.00720000000001,208.99279999999999,16.809999999999999,6168,{"$f":"CONVERT(_Data[[#This Row],[Metres]],\"m\",\"ft\")","v":20236.220472440946}]
[176,"Imja Tse","27.921|86.936",27.920999999999999,86.936000000000007,86.936000000000007,-29.38,6160,{"$f":"CONVERT(_Data[[#This Row],[Metres]],\"m\",\"ft\")","v":20209.973753280839}]
[177,"Stok Kangri","33.9833|77.4333",33.9833,77.433300000000003,77.433300000000003,-24.11,6137,{"$f":"CONVERT(_Data[[#This Row],[Metres]],\"m\",\"ft\")","v":20134.514435695539}]
[178,"Pisang Peak",null,28.646667000000001,84.186000000000007,84.186000000000007,-34.94,6091,{"$f":"CONVERT(_Data[[#This Row],[Metres]],\"m\",\"ft\")","v":19983.595800524934}]
[179,"Huayna Potosí",null,-16.262499999999999,-68.153999999999996,291.846,44.49,6088,{"$f":"CONVERT(_Data[[#This Row],[Metres]],\"m\",\"ft\")","v":19973.753280839894}]
[180,"Aracar","-24.2872|-67.7928",-24.287199999999999,-67.7928,292.2072,41.09,6082,{"$f":"CONVERT(_Data[[#This Row],[Metres]],\"m\",\"ft\")","v":19954.068241469817}]
[181,"Chachakumani","-15.9858|-68.3817",-15.985799999999999,-68.381699999999995,291.61829999999998,45.83,6074,{"$f":"CONVERT(_Data[[#This Row],[Metres]],\"m\",\"ft\")","v":19927.82152230971}]
[182,"Chachani","-16.1914|-71.5297",-16.191400000000002,-71.529700000000005,288.47030000000001,43.28,6057,{"$f":"CONVERT(_Data[[#This Row],[Metres]],\"m\",\"ft\")","v":19872.047244094487}]
[183,"Acotango",null,-18.382200000000001,-69.047799999999995,290.9522,44.38,6052,{"$f":"CONVERT(_Data[[#This Row],[Metres]],\"m\",\"ft\")","v":19855.643044619421}]
[184,"Socompa","-24.395|-68.245",-24.395,-68.245000000000005,291.755,40.33,6051,{"$f":"CONVERT(_Data[[#This Row],[Metres]],\"m\",\"ft\")","v":19852.36220472441}]
[185,"Acamarachi","-23.2931|-67.6197",-23.293099999999999,-67.619699999999995,292.38030000000003,42.52,6046,{"$f":"CONVERT(_Data[[#This Row],[Metres]],\"m\",\"ft\")","v":19835.958005249344}]
[186,"Wallqa Wallqa","-15.8167|-71.8833",-15.816700000000001,-71.883300000000006,288.11669999999998,44.08,6025,{"$f":"CONVERT(_Data[[#This Row],[Metres]],\"m\",\"ft\")","v":19767.060367454069}]
[187,"Uturunku","-22.27|-67.18",-22.27,-67.180000000000007,292.82,44.06,6020,{"$f":"CONVERT(_Data[[#This Row],[Metres]],\"m\",\"ft\")","v":19750.656167979003}]
[188,"Mitre Peak, Pakistan",null,35.700000000000003,76.48,76.48,-23.05,6010,{"$f":"CONVERT(_Data[[#This Row],[Metres]],\"m\",\"ft\")","v":19717.847769028871}]
[189,"Mount Logan","60.5672|-140.4028",60.5672,-140.40280000000001,219.59719999999999,16.46,5959,{"$f":"CONVERT(_Data[[#This Row],[Metres]],\"m\",\"ft\")","v":19550.524934383204}]
[190,"Alpamayo","-8.8789|-77.6536",-8.8788999999999998,-77.653599999999997,282.34640000000002,18.96,5947,{"$f":"CONVERT(_Data[[#This Row],[Metres]],\"m\",\"ft\")","v":19511.154855643046}]
[191,"Cerro Lípez",null,-21.914000000000001,-66.885000000000005,293.11500000000001,43.37,5929,{"$f":"CONVERT(_Data[[#This Row],[Metres]],\"m\",\"ft\")","v":19452.099737532808}]
[192,"Licancabur","-22.8336|-67.8828",-22.833600000000001,-67.882800000000003,292.11720000000003,41.68,5920,{"$f":"CONVERT(_Data[[#This Row],[Metres]],\"m\",\"ft\")","v":19422.572178477691}]
[193,"Cotopaxi","-0.6801|-78.438",-0.68410000000000004,-78.438000000000002,{"$f":"IF(E204<0,E204+360,E204)","v":281.56200000000001},27.46,5897,{"$f":"CONVERT(_Data[[#This Row],[Metres]],\"m\",\"ft\")","v":19347.11286089239}]
[194,"Mount Kilimanjaro","-3.0762|37.3528",-3.0758000000000001,37.352800000000002,37.352800000000002,-16.260000000000002,5895,{"$f":"CONVERT(_Data[[#This Row],[Metres]],\"m\",\"ft\")","v":19340.551181102361}]
[195,"Hkakabo Razi","28.3167|97.4667",28.316700000000001,97.466700000000003,97.466700000000003,-38.65,5881,{"$f":"CONVERT(_Data[[#This Row],[Metres]],\"m\",\"ft\")","v":19294.619422572177}]
[196,"Misti","-16.2944|-71.4089",-16.294,-71.409000000000006,288.59100000000001,43.09,5822,{"$f":"CONVERT(_Data[[#This Row],[Metres]],\"m\",\"ft\")","v":19101.049868766404}]
[197,"Cayambe (volcano)","0.029|-77.986",2.9000000000000001E-2,-77.986000000000004,282.01400000000001,24.45,5790,{"$f":"CONVERT(_Data[[#This Row],[Metres]],\"m\",\"ft\")","v":18996.062992125986}]
[198,"Pico Cristóbal Colón",null,-10.837999999999999,-73.686999999999998,286.31299999999999,27.24,5776,{"$f":"CONVERT(_Data[[#This Row],[Metres]],\"m\",\"ft\")","v":18950.131233595799}]
[199,"Antisana","-0.4814|-78.1408",-0.48499999999999999,-78.140799999999999,281.85919999999999,26.06,5753,{"$f":"CONVERT(_Data[[#This Row],[Metres]],\"m\",\"ft\")","v":18874.671916010499}]
[200,"Nevado Pisco","-9.0016|-77.6292",-9.0015999999999998,-77.629199999999997,282.37080000000003,20.38,5752,{"$f":"CONVERT(_Data[[#This Row],[Metres]],\"m\",\"ft\")","v":18871.391076115484}]
[201,"Nevado Anallajsi","-17.9265|-68.9092",-17.926500000000001,-68.909199999999998,291.0908,44.3,5750,{"$f":"CONVERT(_Data[[#This Row],[Metres]],\"m\",\"ft\")","v":18864.829396325458}]
[202,"Pokalde","27.9375|86.8358",27.9375,86.835800000000006,86.835800000000006,-28.91,5745,{"$f":"CONVERT(_Data[[#This Row],[Metres]],\"m\",\"ft\")","v":18848.425196850392}]
[203,"Ubinas","-16.3511|-70.9019",-16.351099999999999,-70.901899999999998,289.09809999999999,44.07,5672,{"$f":"CONVERT(_Data[[#This Row],[Metres]],\"m\",\"ft\")","v":18608.923884514435}]
[204,"Mount Elbrus","43.355|42.4392",43.354999999999997,42.4392,42.4392,23,5642,{"$f":"CONVERT(_Data[[#This Row],[Metres]],\"m\",\"ft\")","v":18510.498687664043}]
[205,"Mehrbani Peak","36.1978|74.0847",36.197800000000001,74.084699999999998,74.084699999999998,-32.18,5639,{"$f":"CONVERT(_Data[[#This Row],[Metres]],\"m\",\"ft\")","v":18500.656167979003}]
[206,"Pico de Orizaba","19.03|-97.27",19.03,-97.27,262.73,-3.72,5636,{"$f":"CONVERT(_Data[[#This Row],[Metres]],\"m\",\"ft\")","v":18490.813648293963}]
[207,"Mount Damavand","35.9539|52.1119",35.953899999999997,52.111899999999999,52.111899999999999,0.86,5610,{"$f":"CONVERT(_Data[[#This Row],[Metres]],\"m\",\"ft\")","v":18405.511811023622}]
[208,"Nevado Mismi","-15.5253|-71.6908",-15.5253,-71.690799999999996,288.30920000000003,45.71,5597,{"$f":"CONVERT(_Data[[#This Row],[Metres]],\"m\",\"ft\")","v":18362.860892388453}]
[209,"Jade Dragon Snow Mountain","27.0983|100.175",27.098299999999998,100.175,100.175,-35.909999999999997,5596,{"$f":"CONVERT(_Data[[#This Row],[Metres]],\"m\",\"ft\")","v":18359.580052493438}]
[210,"Lascar (volcano)","-23.3653|-67.7297",-23.367000000000001,-67.733000000000004,292.267,41.65,5592,{"$f":"CONVERT(_Data[[#This Row],[Metres]],\"m\",\"ft\")","v":18346.456692913387}]

{"sheet":"CenterDistances","index":3,"n_rows":221,"n_cols":6,"rows_kept":221,"cut":false,"hidden":false,"merged":[]}
["FROM:","Mark Biegert"]
["SUBJECT:","Data Gathering for Mountains"]
["DATE:","2014-12-17"]
[]
["Key Parameters"]
["a",6378137,"Semi-major ellipsoide axis"]
["b",6356752.2999999998,"Semi-minor ellipsoid axis"]
[]
["Summary Table"]
[]
["Name","Latitude","Longitude","Geoid","Altitude","Distance"]
["Chimborazo",-1.4691669999999999,-78.816999999999993,25.96,6267,{"$f":"(((_a^4*COS(B12*PI()/180)^2+_b^4*SIN(B12*PI()/180)^2)/(_a^2*COS(B12*PI()/180)^2+_b^2*SIN(B12*PI()/180)^2))+2*(D12+E12)*(_a^2*COS(B12*PI()/180)^2+_b^2*SIN(B12*PI()/180)^2)^0.5+(D12+E12)^2)^0.5","v":6384416.019943432}]
["Huascarán Sur",-9.1219999999999999,-76.603999999999999,21.02,6768,6384392.9134815298]
["Huascarán Norte",-9.1216666666666608,-76.603999999999999,21.01,6655,6384279.9421823723]
["Yerupajá",-10.2666666666666,-76.900000000000006,25.64,6635,6384123.8319278983]
["Cotopaxi",-0.68410000000000004,-78.438000000000002,27.46,5897,6384058.4370295666]
["Huandoy",-9.0273000000000003,-77.662800000000004,20.63,6395,6384030.4460808132]
["Mount Kilimanjaro",-3.0758000000000001,37.352800000000002,-16.260000000000002,5895,6383954.684581182]
["Cayambe (volcano)",2.9000000000000001E-2,-77.986000000000004,24.45,5790,6383951.4445673618]
["Antisana",-0.48499999999999999,-78.140799999999999,26.06,5753,6383914.5405439707]
["Siula Grande",-10.294700000000001,-76.8917,25.78,6344,6383829.3261770951]
["Alpamayo",-8.8788999999999998,-77.653599999999997,18.96,5947,6383597.6704062633]
["Nevado Pisco",-9.0015999999999998,-77.629199999999997,20.38,5752,6383390.1415571077]
["Salcantay",-13.333600000000001,-72.544399999999996,42.59,6271,6383322.2275042804]
["Pico Cristóbal Colón",-10.837999999999999,-73.686999999999998,27.24,5776,6383190.2503094235]
["Coropuna",-15.520300000000001,-72.657200000000003,43.61,6425,6383086.3690797165]
["Janq'u Uma",-15.853300000000001,-68.540800000000004,46.18,6427,6383026.6957934322]
["Illampu",-15.816700000000001,-68.533299999999997,46.02,6368,6382974.6568662226]
["Illimani",-16.6539,-67.784700000000001,41.82,6462,6382897.8910653079]
["Ampato",-15.816700000000001,-71.883300000000006,44.08,6288,6382892.7169923624]
["Nevado Sajama",-18.108000000000001,-68.882999999999996,44.28,6542,6382673.0695536742]
["Chachakumani",-15.985799999999999,-68.381699999999995,45.83,6074,6382647.4432991389]
["Wallqa Wallqa",-15.816700000000001,-71.883300000000006,44.08,6025,6382629.7173972512]
["Huayna Potosí",-16.262499999999999,-68.153999999999996,44.49,6088,6382605.3875869634]
["Chachani",-16.191400000000002,-71.529700000000005,43.28,6057,6382587.3173706904]
["Parinaquta (volcano)",-18.166667,-69.150000000000006,44.5,6348,6382466.4221267719]
["Pomerape",-18.125800000000002,-69.127499999999998,44.51,6282,6382409.3996830797]
["El Misti",-16.294,-71.409000000000006,43.09,5822,6382331.7059014738]
["Mount Everest",27.988099999999999,86.925299999999993,-28.73,8848,6382277.4123109896]
["Nevado Mismi",-15.5253,-71.690799999999996,45.71,5597,6382259.5147858458]
["Ubinas",-16.351099999999999,-70.901899999999998,44.07,5672,6382171.2709137267]
["Acotango",-18.382200000000001,-69.047799999999995,44.38,6052,6382122.7197402064]
["Kangchenjunga",27.702999999999999,88.147400000000005,-30.37,8586,6382101.2522371383]
["Lhotse",27.966699999999999,86.933300000000003,-28.94,8516,6381951.7906663576]
["Nevado Anallajsi",-17.926500000000001,-68.909199999999998,44.3,5750,6381920.6720267646]
["Makalu",27.889500000000002,87.089500000000001,-30.28,8462,6381920.1856493605]
["Cho Oyu",28.094000000000001,86.661000000000001,-27.34,8201,6381599.1586678494]
["Aucanquilcha",-21.22,-68.468299999999999,42.3,6176,6381574.0965870274]
["Pico de Orizaba",19.03,-97.27,-3.72,5636,6381512.7076390823]
["Manaslu",28.549399999999999,84.561899999999994,-35.06,8156,6381405.1249793991]
["Dhaulagiri",28.6965,83.492999999999995,-39.520000000000003,8167,6381365.7015009271]
["Gyachung Kang",28.097999999999999,86.742199999999997,-27.4,7952,6381348.8649336509]
["Shishapangma",28.354500000000002,85.775999999999996,-28.05,8012,6381328.7972172638]
["Annapurna",28.5961,83.820300000000003,-38.78,8091,6381321.8298207568]
["Nuptse",27.9664,86.89,-28.78,7861,6381297.0455028908]
["Chomo Lonzo",27.93,87.108000000000004,-29.95,7804,6381250.0721069984]
["Jannu",27.682700000000001,88.0458,-31.06,7710,6381230.7713845205]
["Llullaillaco",-24.719899999999999,-68.536900000000003,40.03,6739,6381202.1571063343]
["Annapurna II",28.539000000000001,84.137,-37.659999999999997,7937,6381186.7696618382]
["Himalchuli",28.435500000000001,84.632199999999997,-37.43,7893,6381175.2398847723]
["Cerro Lípez",-21.914000000000001,-66.885000000000005,43.37,5929,6381152.1572698476]
["Uturunku",-22.27,-67.180000000000007,44.06,6020,6381151.7973423041]
["Ngadi Chuli",28.503299999999999,84.567499999999995,-36.14,7871,6381133.4190413244]
["Molamenqing",28.354700000000001,85.8108,-27.86,7710,6381026.9262898015]
["Changtse",28.0167,86.9,-28.4,7583,6381003.9386542961]
["Gangkhar Puensum",28.0486,90.454499999999996,-31.07,7570,6380978.4367587632]
["Kabru",27.635000000000002,88.118300000000005,-31.34,7394,6380929.06265024]
["Kula Kangri",28.227,90.616,-30.29,7554,6380908.0950913541]
["Acamarachi",-23.293099999999999,-67.619699999999995,42.52,6046,6380905.2176534031]
["Licancabur",-22.833600000000001,-67.882800000000003,41.68,5920,6380901.2893278096]
["Kirat Chuli",27.783300000000001,88.2,-29.42,7365,6380856.6287356084]
["Gimmigela Chuli",27.738333333333301,88.15,-30.01,7350,6380854.8080376619]
["Chamlang",27.775600000000001,86.979699999999994,-31.42,7319,6380810.9877989925]
["Annapurna III",28.539000000000001,84,-38.56,7555,6380803.8711741529]
["Jomolhari",27.824166666666599,89.27,-28.4,7314,6380794.1221553972]
["Annapurna IV",28.539000000000001,84.087000000000003,-37.979999999999997,7525,{"$f":"(((_a^4*COS(B76*PI()/180)^2+_b^4*SIN(B76*PI()/180)^2)/(_a^2*COS(B76*PI()/180)^2+_b^2*SIN(B76*PI()/180)^2))+2*(D76+E76)*(_a^2*COS(B76*PI()/180)^2+_b^2*SIN(B76*PI()/180)^2)^0.5+(D76+E76)^2)^0.5","v":6380774.4512903579}]
["Labuche Kang",28.304200000000002,86.350800000000007,-26.6,7367,6380700.861114556]
["Siguang Ri",28.15,86.683000000000007,-27.05,7308,6380689.1557548176]
["Namcha Barwa",29.630500000000001,95.055199999999999,-39.75,7782,6380685.1144577749]
["Gangapurna",28.606000000000002,83.965000000000003,-37.409999999999997,7455,6380684.1104770573]
["Aracar",-24.287199999999999,-67.7928,41.09,6082,6380667.4452029197]
["Ojos del Salado",-27.109000000000002,-68.540999999999997,43.06,6891,6380659.9976411872]
["Antofalla",-25.567,-67.910600000000002,42.55,6409,6380632.7776866034]
["Baruntse",27.883299999999998,86.9833,-29.96,7162,6380622.4148862315]
["Khartaphu",28.063333333333301,86.977000000000004,-28.37,7213,6380619.5946296966]
["Melungtse",27.972000000000001,86.432500000000005,-29.38,7181,6380614.7247378798]
["Socompa",-24.395,-68.245000000000005,40.33,6051,6380605.6340012513]
["Porong Ri",28.386944,85.718999999999994,-28.06,7292,6380598.7108851513]
["Pumori",28.014700000000001,86.828100000000006,-28.18,7161,6380582.7764559658]
["Kangphu Kang",28.154999999999902,90.063000000000002,-29.61,7204,6380581.0507402206]
["Tongshanjiabu",28.186699999999998,89.957499999999996,-29.58,7207,6380574.278488568]
["Langtang Lirung",28.2561,85.519400000000005,-31.62,7227,6380570.7531845989]
["Gauri Sankar",27.965,86.335499999999996,-30.28,7134,6380568.9791147197]
["Pauhunri",27.953299999999999,88.842500000000001,-28.12,7128,6380568.7389055463]
["Kangpenqing",28.55,85.55,-28.12,7281,6380536.8812434189]
["Nevado Tres Cruces",-27.051100000000002,-68.801699999999997,42.19,6749,6380534.5605826788]
["Kangto",27.864999999999998,92.532499999999999,-28.49,7060,6380527.5042470368]
["Langtang Ri",28.3813888888888,85.683999999999997,-28.32,7205,6380513.1775318859]
["Nanda Devi",30.3767,79.970799999999997,-22.77,7816,6380495.9020033609]
["Nyegyi Kansang",27.936699999999998,92.666700000000006,-29.78,7047,6380491.1848727213]
["Mount Gongga",29.595800000000001,101.8792,-31.48,7556,6380478.4651626367]
["Annapurna South",28.518000000000001,83.805999999999997,-40.4,7219,6380472.5801510271]
["Lascar Volcano",-23.367000000000001,-67.733000000000004,41.65,5592,6380430.4041516045]
["Incahuasi",-27.042000000000002,-68.28,42.53,6621,6380409.6385243563]
["Siniolchu",27.711400000000001,88.317800000000005,-29.52,6888,6380401.5398628032]
["Monte Pissis",-27.7559,-68.798000000000002,40.409999999999997,6795,6380364.8525786772]
["Gurla Mandhata",30.438300000000002,81.299199999999999,-23.72,7694,6380352.9622940989]
["Tilicho Peak",28.6844,83.804400000000001,-37.31,7134,6380338.7022006912]
["Nemjung",28.734999999999999,84.416700000000006,-32.01,7140,6380334.1604063259]
["Ama Dablam",27.8611,86.861099999999993,-29.87,6812,6380279.3223690111]
["Cerro El Muerto",-27.057500000000001,-68.483900000000006,42.98,6488,6380272.4259043243]
["Kamet",30.920300000000001,79.593599999999995,-20.02,7756,6380261.4139582003]
["Machapuchare",28.497499999999999,83.945999999999998,-39.85,6993,6380253.5197519856]
["Mount Pandim",27.577500000000001,88.215800000000002,-31.76,6691,6380243.1862355797]
["Kang Guru",28.657499999999999,84.301400000000001,-34.01,6981,6380197.4172278726]
["Cho Polu",27.9192,86.981899999999996,-29.57,6735,6380184.776338404]
["Gyala Peri",29.8142,94.968299999999999,-38.590000000000003,7294,6380139.4863456255]
["Num Ri",27.8947,86.970799999999997,-29.79,6677,6380134.0851517785]
["Thamserku",27.790299999999998,86.787499999999994,-30.87,6623,6380111.0367539423]
["Khumbutse",28.020299999999999,86.873099999999994,-28.27,6640,6380059.9631008245]
["Kawagarbo",28.438300000000002,98.683300000000003,-36.36,6740,6380022.4432277326]
["Mera Peak",27.709,86.868499999999997,-32.33,6476,6379987.4654412605]
["Taboche",27.896699999999999,86.777500000000003,-29.3,6501,6379957.9614116792]
["Lunpo Gangri",29.833300000000001,84.613299999999995,-27.56,7095,6379945.3915926749]
["Api (mountain)",30.004200000000001,80.933300000000003,-29.76,7132,6379925.2749494091]
["Cholatse",27.919799999999999,86.766000000000005,-29.01,6440,6379890.1530397041]
["Kusum Kanguru",27.730599999999999,86.790800000000004,-31.94,6367,6379872.2482967572]
["Singu Chuli",28.583300000000001,83.9,-38.380000000000003,6501,6379736.2326341225]
["Dunagiri",30.532499999999999,79.8339,-19.77,7066,6379698.2985768598]
["Hiunchuli",28.51,83.85,-40.25,6441,6379697.2267328156]
["Kongde Ri",27.8047,86.625299999999996,-30.99,6187,6379670.5050839754]
["Imja Tse",27.920999999999999,86.936000000000007,-29.38,6160,6379609.4152502231]
["Nanda Kot",30.281700000000001,80.068299999999994,-25.42,6861,6379569.0373728639]
["K2",35.881399999999999,76.513499999999993,-22.37,8611,6379419.8602605974]
["Pisang Peak",28.646667000000001,84.186000000000007,-34.94,6091,6379309.8779259771]
["Jade Dragon Snow Mountain",27.098299999999998,100.175,-35.909999999999997,5596,6379289.2561768629]
["Hkakabo Razi",28.316700000000001,97.466700000000003,-38.65,5881,6379198.9391088067]
["Pokalde",27.9375,86.835800000000006,-28.91,5745,6379189.8138632635]
["Nilkantha (mountain)",30.72,79.400000000000006,-19.57,6596,6379167.3926823167]
["Nanga Parbat",35.237499999999997,74.589200000000005,-30.1,8125,{"$f":"(((_a^4*COS(B140*PI()/180)^2+_b^4*SIN(B140*PI()/180)^2)/(_a^2*COS(B140*PI()/180)^2+_b^2*SIN(B140*PI()/180)^2))+2*(D140+E140)*(_a^2*COS(B140*PI()/180)^2+_b^2*SIN(B140*PI()/180)^2)^0.5+(D140+E140)^2)^0.5","v":6379152.9016110804}]
["Mana Peak",32.840000000000003,79.417000000000002,-25,7272,6379132.2799766148]
["Mount Kailash",31.062799999999999,81.332499999999996,-24.67,6638,6379092.001338074]
["Bamba Dhura",30.44,80.28,-23.64,6334,6378992.4960920913]
["Aconcagua",-32.653300000000002,-70.011099999999999,32.17,6962,6378942.6350200642]
["Gasherbrum I",35.720799999999997,76.709699999999998,-21.85,8068,6378934.1092150975]
["Gasherbrum II",35.758600000000001,76.652799999999999,-21.99,8035,6378887.627643398]
["Broad Peak",35.810600000000001,76.568100000000001,-22.26,8047,6378880.9940279089]
["Saser Kangri",34.865000000000002,77.752499999999998,-21.99,7672,6378838.3679678328]
["Gasherbrum III",35.7333,76.633300000000006,-22.14,7946,6378807.4085497111]
["Gasherbrum IV",35.7667,76.616699999999994,-22.13,7932,6378781.6284355167]
["Manirang",31.953299999999999,78.366699999999994,-27.96,6597,6378752.6715390617]
["Saltoro Kangri",35.400199999999998,76.848600000000005,-22.15,7742,6378720.7230495643]
["Masherbrum",35.642800000000001,76.304699999999997,-24.32,7821,6378712.1519000977]
["Nun Kun",33.979999999999997,76.021699999999996,-24.8,7135,6378605.6635968816]
["Mamostong Kangri",35.140799999999999,77.577500000000001,-21.11,7516,6378586.794257558]
["Chogolisa",35.616300000000003,76.577699999999993,-22.75,7665,6378567.0636107586]
["Khunyang Chhish",36.205199999999998,75.207700000000003,-29.15,7852,6378539.3885903759]
["Distaghil Sar",36.325800000000001,75.188299999999998,-29.44,7885,6378529.2711583879]
["Kinnaur Kailash",31.930555999999999,77.173000000000002,-33.549999999999997,6349,6378506.6766231013]
["Rakaposhi",36.142200000000003,74.552700000000002,-31.88,7788,6378495.0081457999]
["Kanjut Sar",36.204999999999998,75.418300000000002,-28.34,7790,6378478.2698777718]
["Chogolisa II",35.616300000000003,76.578999999999994,-22.75,7554,6378456.064169406]
["K12 (mountain)",35.3213333333333,76.984999999999999,-21.86,7428,6378434.7223942513]
["Batura II",36.299999999999997,74.31,-32.94,7762,6378411.9387426088]
["Rimo I",35.355800000000002,77.368099999999998,-20.71,7385,6378380.7669839077]
["Batura Sar",36.51,74.526899999999998,-33.14,7795,6378370.0475435508]
["Tirich Mir",36.245800000000003,71.843900000000005,-30.86,7690,6378361.2681248719]
["Ghent Kangri",35.517499999999998,76.800299999999993,-21.99,7401,6378338.6242085118]
["Skyang Kangri",35.926699999999997,76.567499999999995,-22,7545,6378338.2155551473]
["Sherpi Kangri",35.465000000000003,76.772199999999998,-22.28,7380,6378335.8087011706]
["Batura III",36.530799999999999,74.501400000000004,-33.200000000000003,7729,6378296.5804998539]
["K6 (mountain)",35.418300000000002,76.551699999999997,-23.61,7282,6378252.9025488766]
["Trivor",36.287500000000001,75.086100000000002,-29.87,7577,6378234.4500644794]
["Shispare",36.434399999999997,74.669200000000004,-32.54,7611,6378213.5572510548]
["Haramosh Peak",35.8414,74.897800000000004,-29.42,7397,6378212.9551243717]
["Malubiting",36.038899999999998,74.900800000000004,-30.03,7458,6378203.4705689903]
["Baltoro Kangri",35.648000000000003,76.669799999999995,-22.2,7312,6378203.4411633424]
["Yukshin Gardan Sar",36.250799999999998,75.373199999999997,-28.53,7530,6378201.8236818304]
["Skil Brum",35.8508,76.429199999999994,-22.93,7360,6378179.1232892498]
["Apsarasas Kangri",35.533333333333303,77.150000000000006,-20.89,7245,6378178.15100672]
["Pumari Chhish",36.211100000000002,75.252799999999993,-28.97,7492,6378177.4765846357]
["Sickle Moon Peak",33.602499999999999,76.131699999999995,-25.47,6574,6378173.8254234223]
["Liushi Shan",35.315800000000003,80.915800000000004,-25.5,7167,6378172.0266851168]
["Muztagh Tower",35.828299999999999,76.360799999999998,-23.43,7273,6378099.5746861426]
["Noshaq",36.431699999999999,71.828299999999999,-30.84,7492,6378097.2184658106]
["Baintha Brakk",35.947800000000001,75.753600000000006,-27.17,7285,6378065.582092396]
["Passu Sar",36.4878,74.587800000000001,-32.950000000000003,7476,6378059.1432780577]
["Istor-o-Nal",36.386899999999997,71.889200000000002,-30.8,7403,6378024.1937993653]
["The Crown (mountain)",36.108333000000002,76.212999999999994,-23.86,7295,6378022.038272934]
["Ultar",36.399700000000003,74.691900000000004,-32.340000000000003,7388,6378003.1018688576]
["Diran",36.122199999999999,74.660600000000002,-31.39,7257,6377971.5924774585]
["Yutmaru Sar",36.233333000000002,75.367000000000004,-28.55,7283,6377961.0061584543]
["Bojohagur Duanasir",36.399700000000003,74.691900000000004,-32.340000000000003,7329,6377944.1021711919]
["Kezhen Peak",35.924999999999997,76.174999999999997,-24.52,7038,6377829.2994881719]
["Chongra Peak",35.326300000000003,74.677599999999998,-29.51,6830,6377827.3313167645]
["Spantik",36.057299999999998,74.957999999999998,-29.85,7027,6377766.1347673377]
["Udren Zom",36.517200000000003,71.9208,-30.66,7140,6377714.966992029]
["Angel Sar",35.849200000000003,76.490600000000001,-22.57,6858,6377678.0512993643]
["Biarchedi",35.703099999999999,76.410200000000003,-23.46,6781,6377651.7509586951]
["Stok Kangri",33.9833,77.433300000000003,-24.11,6137,6377607.220323843]
["Ulugh Muztagh",36.412500000000001,87.384200000000007,-38.46,6973,6377577.4313663682]
["Shah Dhar",36.671700000000001,72.231700000000004,-30.33,7038,6377558.2320775557]
["Kongur Tagh",38.633299999999998,75.333299999999994,-33.979999999999997,7719,6377529.046567847]
["Muztagh Ata",38.2759,75.116100000000003,-30.75,7546,{"$f":"(((_a^4*COS(B204*PI()/180)^2+_b^4*SIN(B204*PI()/180)^2)/(_a^2*COS(B204*PI()/180)^2+_b^2*SIN(B204*PI()/180)^2))+2*(D204+E204)*(_a^2*COS(B204*PI()/180)^2+_b^2*SIN(B204*PI()/180)^2)^0.5+(D204+E204)^2)^0.5","v":6377488.9548257887}]
["Amne Machin",34.798299999999998,99.462500000000006,-38.35,6282,6377455.2894773055]
["Lunkho e Dosare",36.775799999999997,72.44,-30.27,6901,6377384.1388560506]
["Phuparash Peak",36.050199999999997,74.825000000000003,-30.39,6574,6377315.1123325927]
["Gul Lasht Zom",36.333333333299997,71.917000000000002,-30.79,6657,6377297.2502986845]
["Buni Zom",36.154200000000003,72.327500000000001,-30.28,6551,6377255.3586860206]
["Ismoil Somoni Peak",38.916699999999999,72.0167,-32.67,7495,6377203.2595655974]
["Mitre Peak, Pakistan",35.700000000000003,76.48,-23.05,6010,6376882.2585089244]
["Peak Korzhenevskaya",39.057299999999998,72.009799999999998,-33.19,7105,6376761.5073121637]
["Lenin Peak",39.342500000000001,72.877600000000001,-32.08,7134,6376687.5231746268]
["Lenin Peak",39.342500000000001,72.877600000000001,-32.08,6974,6376527.5240391614]
["Mount Damavand",35.953899999999997,52.111899999999999,0.86,5610,6376416.462034828]
["Mehrbani Peak",36.197800000000001,74.084699999999998,-32.18,5639,6376325.9958738787]
["Jengish Chokusu",42.035800000000002,80.129199999999997,-38.229999999999997,7439,6375994.1322072195]
["Khan Tengri",42.210799999999999,80.174999999999997,-38.020000000000003,7010,6375500.4136707326]
["Mount Elbrus",43.354999999999997,42.4392,23,5642,6373767.9775949335]
["Mount Logan",60.5672,-140.40280000000001,16.46,5959,6367924.5954692038]
["Mount McKinley",63.069400000000002,-151.00720000000001,16.809999999999999,6168,6367353.0453966856]

{"sheet":"ShortList","index":4,"n_rows":33,"n_cols":6,"rows_kept":33,"cut":false,"hidden":false,"merged":[]}
["FROM:","Mark Biegert"]
["SUBJECT:","Short List for Post"]
["DATE:","2013-12-17"]
[]
["Name","Latitude\n(decimal °)","Longitude\n(decimal °)","Geoid\n(m)","Elevation\n(m)","Distance\n(km)"]
["Chimborazo",-1.4691669999999999,-78.816999999999993,25.96,6267,6384416.019943432]
["Huascarán Sur",-9.1219999999999999,-76.603999999999999,21.02,6768,6384392.9134815298]
["Huascarán Norte",-9.1216666666666608,-76.603999999999999,21.01,6655,6384279.9421823723]
["Yerupajá",-10.2666666666666,-76.900000000000006,25.64,6635,6384123.8319278983]
["Cotopaxi",-0.68410000000000004,-78.438000000000002,27.46,5897,6384058.4370295666]
["Huandoy",-9.0273000000000003,-77.662800000000004,20.63,6395,6384030.4460808132]
["Mount Kilimanjaro",-3.0758000000000001,37.352800000000002,-16.260000000000002,5895,6383954.684581182]
["Cayambe (volcano)",2.9000000000000001E-2,-77.986000000000004,24.45,5790,6383951.4445673618]
["Antisana",-0.48499999999999999,-78.140799999999999,26.06,5753,6383914.5405439707]
["Siula Grande",-10.294700000000001,-76.8917,25.78,6344,6383829.3261770951]
["Alpamayo",-8.8788999999999998,-77.653599999999997,18.96,5947,6383597.6704062633]
["Nevado Pisco",-9.0015999999999998,-77.629199999999997,20.38,5752,6383390.1415571077]
["Salcantay",-13.333600000000001,-72.544399999999996,42.59,6271,6383322.2275042804]
["Pico Cristóbal Colón",-10.837999999999999,-73.686999999999998,27.24,5776,6383190.2503094235]
["Coropuna",-15.520300000000001,-72.657200000000003,43.61,6425,6383086.3690797165]
["Janq'u Uma",-15.853300000000001,-68.540800000000004,46.18,6427,6383026.6957934322]
["Illampu",-15.816700000000001,-68.533299999999997,46.02,6368,6382974.6568662226]
["Illimani",-16.6539,-67.784700000000001,41.82,6462,6382897.8910653079]
["Ampato",-15.816700000000001,-71.883300000000006,44.08,6288,6382892.7169923624]
["Nevado Sajama",-18.108000000000001,-68.882999999999996,44.28,6542,6382673.0695536742]
["Chachakumani",-15.985799999999999,-68.381699999999995,45.83,6074,6382647.4432991389]
["Wallqa Wallqa",-15.816700000000001,-71.883300000000006,44.08,6025,6382629.7173972512]
["Huayna Potosí",-16.262499999999999,-68.153999999999996,44.49,6088,6382605.3875869634]
["Chachani",-16.191400000000002,-71.529700000000005,43.28,6057,6382587.3173706904]
["Parinaquta (volcano)",-18.166667,-69.150000000000006,44.5,6348,6382466.4221267719]
["Pomerape",-18.125800000000002,-69.127499999999998,44.51,6282,6382409.3996830797]
["El Misti",-16.294,-71.409000000000006,43.09,5822,6382331.7059014738]
["Mount Everest",27.988099999999999,86.925299999999993,-28.73,8848,6382277.4123109896]